{"text_format":"1","workbook":"xlsx","n_sheets":1,"sheets":["TDSheet"],"not_rendered":{"charts":0,"images":1,"macros":1,"external_links":0,"defined_names":0,"comments":0,"pivot_tables":0},"unopened":[],"bounds":{"document_bytes":16777216,"sheet_cells":100000,"rows_first":2000,"rows_last":500,"rows_between":2000,"halvings":0,"cell_chars":16384,"cell_head_chars":4096},"cells_cut":0,"cells_raw":0,"read":"whole","date_system":"1900"}

{"sheet":"TDSheet","index":0,"n_rows":1121,"n_cols":7,"rows_kept":1121,"cut":false,"hidden":false,"merged":[[9,0,9,6],[10,0,11,0],[10,1,11,1],[10,2,11,2],[10,3,10,6],[0,0,1,2],[0,3,0,5],[1,3,1,5],[2,0,4,5],[5,0,6,0],[5,1,6,4],[5,5,6,5],[7,0,8,5]]}
[null,null,null,"Прайс-лист 2018 / 2019"]
[null,null,null,"действителен с 01.12.2018"]
["Для рассчета цены в рублях после двойного клика введите в ячейку курс ЦБ РФ Рубль/Евро \nна интересующую Вас дату:"]
[]
[]
[">>>>>>>>>>",75.621700000000004,null,null,null,"<<<<<<<<<<"]
[]
["Оплата товара производится в рублях по курсу ЦБ РФ + 2%"]
[]
["Артикулы, не указанные в прайс-листе, следует запрашивать отдельно"]
["Артикульный номер","Описание","Ед.","Рекомендуемая розничная цена за Ед."]
[null,null,null,"в Евро\nбез НДС","НДС","в Евро\nс НДС","в Рублях\nс НДС"]
["100-0051-04","Кабель-мультикор микрофонный SC-PLANET FMC04, конструкция: 4 х 2 х 0,19 мм², оболочка: S-PVC 8,0 мм, цвет:  черный","м",3.8,0.18,4.4800000000000004,{"$f":"ROUND(F13*$B$6*(1+0.02),2)","v":345.56}]
["100-0051-12+2","Кабель-мультикор микрофонный SC-PLANET FMC12+2, конструкция: 14 х 2 х 0,19 мм², оболочка: S-PVC 12,4 мм, цвет:  черный","м",10.98,0.18,12.96,{"$f":"ROUND(F14*$B$6*(1+0.02),2)","v":999.66}]
["100-0051-48+2","Кабель-мультикор микрофонный SC-PLANET FMC48+2, конструкция: 50 x 2 х 0,19 мм², оболочка: S-PVC 23,7 мм, цвет:  черный","м",36.78,0.18,43.39,3346.85]
["100-0101-02","Кабель-мультикор микрофонный SC-MISTRAL MCF02 AES/EBU 110 Ом, конструкция: 2 х 2 х 0,22 мм², оболочка: S-PVC 9,0 мм, цвет:  черный","м",3.76,0.18,4.43,341.7]
["100-0101-04","Кабель-мультикор микрофонный SC-MISTRAL MCF04 AES/EBU 110 Ом, конструкция: 4 х 2 х 0,22 мм², оболочка: S-PVC 11,0 мм, цвет:  черный","м",5.33,0.18,6.28,484.4]
["100-0101-04F","Кабель-мультикор микрофонный SC-MISTRAL MCF04 FRNC негорючий AES/EBU 110 Ом, конструкция: 4 х 2 х 0,22 мм², оболочка: FRNC 11,0 мм, цвет:  черный","м",6.67,0.18,7.87,607.04999999999995]
["100-0101-08","Кабель-мультикор микрофонный SC-MISTRAL MCF08 AES/EBU 110 Ом, конструкция: 8 x 2 х 0,22 мм², оболочка: S-PVC 14,8 мм, цвет:  черный","м",10.46,0.18,12.35,952.61]
["100-0101-08F","Кабель-мультикор микрофонный SC-MISTRAL MCF08 FRNC негорючий AES/EBU 110 Ом, конструкция: 8 x 2 х 0,22 мм², оболочка: FRNC 15,0 мм, цвет:  черный","м",11.3,0.18,13.35,1029.74]
["100-0101-12","Кабель-мультикор микрофонный SC-MISTRAL MCF12 AES/EBU 110 Ом, конструкция: 12 x 2  х 0,22 мм², оболочка: S-PVC 17,6 мм, цвет:  черный","м",13.63,0.18,16.09,1241.0899999999999]
["100-0101-12F","Кабель-мультикор микрофонный SC-MISTRAL MCF12 FRNC негорючий AES/EBU 110 Ом, конструкция: 12 x 2  х 0,22 мм², оболочка: FRNC 16,9 мм, цвет:  черный","м",15.93,0.18,18.78,1448.58]
["100-0101-16","Кабель-мультикор микрофонный SC-MISTRAL MCF16 AES/EBU 110 Ом, конструкция: 16 x 2 х 0,22 мм², оболочка: S-PVC 19,4 мм, цвет:  черный","м",17.93,0.18,21.15,1631.39]
["100-0101-24","Кабель-мультикор микрофонный SC-MISTRAL MCF24 AES/EBU 110 Ом, конструкция: 24 x 2 х 0,22 мм², оболочка: S-PVC 24,5 мм, цвет:  черный","м",26.83,0.18,31.65,2441.3000000000002]
["100-0101-32","Кабель-мультикор микрофонный SC-MISTRAL MCF32 AES/EBU 110 Ом, конструкция: 32 х 2 х 0,22 мм², оболочка: S-PVC 26,8 мм, цвет:  черный","м",35.22,0.18,41.54,3204.15]
["100-0302-02","Кабель цифровой многоканальный / модуляционный SC-MATRIX MMC02 негорючий, AES/EBU 110 Ом, конструкция: 2 х 2 х 0,25 мм², оболочка: FRNC 10,0 мм, цвет:  синий","м",6.2,0.18,7.33,565.39]
["100-0302-04","Кабель цифровой многоканальный / модуляционный SC-MATRIX MMC04 негорючий, AES/EBU 110 Ом, конструкция: 4 х 2 х 0,25 мм², оболочка: FRNC 11,9 мм, цвет:  синий","м",9.76,0.18,11.52,888.59]
["100-0302-08","Кабель цифровой многоканальный / модуляционный SC-MATRIX MMC08 негорючий, AES/EBU 110 Ом, конструкция: 8 x 2 х 0,25 мм², оболочка: FRNC 15,5 мм, цвет:  синий","м",16.59,0.18,19.57,1509.52]
["100-0302-12","Кабель цифровой многоканальный / модуляционный SC-MATRIX MMC12 негорючий, AES/EBU 110 Ом, конструкция: 12 x 2  х 0,25 мм², оболочка: FRNC 19,9 мм, цвет:  синий","м",26.61,0.18,31.41,2422.7800000000002]
["100-0302-16","Кабель цифровой многоканальный / модуляционный SC-MATRIX MMC16 негорючий, AES/EBU 110 Ом, конструкция: 16 x 2 х 0,25 мм², оболочка: FRNC 21,5 мм, цвет:  синий","м",31.11,0.18,36.72,2832.37]
["100-0351-10","Кабель-мультикор микрофонный SC-AURA DMCK10, конструкция: 10 х 2 х 0,15 мм², оболочка: PVC 14,4 мм, цвет:  черный","м",17.89,0.18,21.13,1629.84]
["100-0351-10F","Кабель-мультикор микрофонный SC-AURA DMCK10 FRNC негорючий, конструкция: 10 х 2 х 0,15 мм², оболочка: SOFT PUR FRNC 12,0 мм, цвет:  черный","м",19.11,0.18,22.54,1738.6]
["100-0401-08","Кабель-мультикор микрофонный SC-TRANSFER HIGHFLEX AMCK08, конструкция: 8 x 2 х 0,14 мм², оболочка: PUR 9,9 мм, цвет:  черный","м",13.61,0.18,16.04,1237.23]
["100-0401-12","Кабель-мультикор микрофонный SC-TRANSFER HIGHFLEX AMCK12, конструкция: 12 x 2  х 0,14 мм², оболочка: PUR 11,5 мм, цвет:  черный","м",19.02,0.18,22.43,1730.12]
["100-0401-16","Кабель-мультикор микрофонный SC-TRANSFER HIGHFLEX AMCK16, конструкция: 16 x 2 х 0,14 мм², оболочка: PUR 14,5 мм, цвет:  черный","м",21.96,0.18,25.89,1997]
["100-0401-32","Кабель-мультикор микрофонный SC-TRANSFER HIGHFLEX AMCK32, конструкция: 32 х 2 х 0,14 мм², оболочка: PUR 18,6 мм, цвет:  черный","м",39.299999999999997,0.18,46.37,3576.71]
["100-0401-48","Кабель-мультикор микрофонный SC-TRANSFER HIGHFLEX AMCK48, конструкция: 48 х 2 х 0,14 мм², оболочка: PUR 21,8 мм, цвет:  черный","м",57.65,0.18,68.02,5246.66]
["100-0451-02","Кабель-мультикор микрофонный SC-QUANTUM HIGHFLEX QMC02 AES/EBU 110 Ом, конструкция: 2 х 2 х 0,14 мм², оболочка: S-PVC 8,5 мм, цвет:  черный","м",3.72,0.18,4.37,337.08]
["100-0451-04","Кабель-мультикор микрофонный SC-QUANTUM HIGHFLEX QMC04 AES/EBU 110 Ом, конструкция: 4 х 2 х 0,14 мм², оболочка: S-PVC 10,2 мм, цвет:  черный","м",5.8,0.18,6.85,528.37]
["100-0451-08","Кабель-мультикор микрофонный SC-QUANTUM HIGHFLEX QMC08 AES/EBU 110 Ом, конструкция: 8 x 2 х 0,14 мм², оболочка: S-PVC 13,8 мм, цвет:  черный","м",10.78,0.18,12.72,981.15]
["100-0451-12","Кабель-мультикор микрофонный SC-QUANTUM HIGHFLEX QMC12 AES/EBU 110 Ом, конструкция: 12 x 2  х 0,14 мм², оболочка: S-PVC 16,0 мм, цвет:  черный","м",16.11,0.18,19.02,1467.09]
["100-0451-16","Кабель-мультикор микрофонный SC-QUANTUM HIGHFLEX QMC16 AES/EBU 110 Ом, конструкция: 16 x 2 х 0,14 мм², оболочка: S-PVC 17,5 мм, цвет:  черный","м",19.78,0.18,23.35,1801.08]
["100-0451-20","Кабель-мультикор микрофонный SC-QUANTUM HIGHFLEX QMC20 AES/EBU 110 Ом, конструкция: 20 х 2 х 0,14 мм², оболочка: S-PVC 19,5 мм, цвет:  черный","м",25.46,0.18,30.04,2317.11]
["100-0451-24","Кабель-мультикор микрофонный SC-QUANTUM HIGHFLEX QMC24 AES/EBU 110 Ом, конструкция: 24 x 2 х 0,14 мм², оболочка: S-PVC 21,5 мм, цвет:  черный","м",29.07,0.18,34.299999999999997,2645.7]
["100-0451-32","Кабель-мультикор микрофонный SC-QUANTUM HIGHFLEX QMC32 AES/EBU 110 Ом, конструкция: 32 х 2 х 0,14 мм², оболочка: S-PVC 24,0 мм, цвет:  черный","м",38.5,0.18,45.43,3504.2]
["100-0451-48","Кабель-мультикор микрофонный SC-QUANTUM HIGHFLEX QMC48 AES/EBU 110 Ом, конструкция: 48 х 2 х 0,14 мм², оболочка: S-PVC 29,0 мм, цвет:  черный","м",56.65,0.18,66.849999999999994,5156.42]
["100-0501-02","Кабель-мультикор микрофонный SC-PEGASUS CMCK02 AES/EBU 110 Ом, конструкция: 2 х 4 х 0,20 мм², оболочка: S-PVC 13,5 мм, цвет:  черный","м",12.67,0.18,14.96,1153.93]
["100-0501-04","Кабель-мультикор микрофонный SC-PEGASUS CMCK04 AES/EBU 110 Ом, конструкция: 4 х 4 х 0,20 мм², оболочка: S-PVC 15,4 мм, цвет:  черный","м",20.65,0.18,24.37,1879.76]
["100-0501-08","Кабель-мультикор микрофонный SC-PEGASUS CMCK08 AES/EBU 110 Ом, конструкция: 8 x 4 х 0,20 мм², оболочка: S-PVC 21,0 мм, цвет:  черный","м",36.409999999999997,0.18,42.98,3315.23]
["100-0616-02","Кабель связи / коммуникационный SC-LOGICABLE LG MOD6LG02 негорючий, конструкция: 2 х 2 х 0,60 мм, оболочка: FRNC 4,9 мм, цвет:  серый","м",0.79,0.18,0.94,72.510000000000005]
["100-0616-03","Кабель связи / коммуникационный SC-LOGICABLE LG MOD6LG03 негорючий, конструкция: 3 х 2 х 0,60 мм, оболочка: FRNC 6,2 мм, цвет:  серый","м",1.18,0.18,1.39,107.22]
["100-0616-04","Кабель связи / коммуникационный SC-LOGICABLE LG MOD6LG04 негорючий, конструкция: 4 х 2 х 0,60 мм, оболочка: FRNC 6,6 мм, цвет:  серый","м",1.39,0.18,1.63,125.73]
["100-0616-05","Кабель связи / коммуникационный SC-LOGICABLE LG MOD6LG05 негорючий, конструкция: 5 х 2 х 0,60 мм, оболочка: FRNC 7,1 мм, цвет:  серый","м",1.73,0.18,2.0299999999999998,156.58000000000001]
["100-0616-06","Кабель связи / коммуникационный SC-LOGICABLE LG MOD6LG06 негорючий, конструкция: 6 x 2 х 0,60 мм, оболочка: FRNC 7,6 мм, цвет:  серый","м",1.84,0.18,2.16,166.61]
["100-0616-08","Кабель связи / коммуникационный SC-LOGICABLE LG MOD6LG08 негорючий, конструкция: 8 x 2 х 0,60 мм, оболочка: FRNC 8,1 мм, цвет:  серый","м",2.42,0.18,2.85,219.83]
["100-0616-10","Кабель связи / коммуникационный SC-LOGICABLE LG MOD6LG10 негорючий, конструкция: 10 х 2 х 0,60 мм, оболочка: FRNC 9,3 мм, цвет:  серый","м",2.87,0.18,3.39,261.48]
["100-0616-100","Кабель связи / коммуникационный SC-LOGICABLE LG MOD6LG100 негорючий, конструкция: 10 х 2 х 0,60 мм, оболочка: FRNC 22,1 мм, цвет:  серый","м",24.48,0.18,28.89,2228.41]
["100-0616-20","Кабель связи / коммуникационный SC-LOGICABLE LG MOD6LG20 негорючий, конструкция: 20 х 2 х 0,60 мм, оболочка: FRNC 10,9 мм, цвет:  серый","м",5.48,0.18,6.48,499.83]
["100-0616-30","Кабель связи / коммуникационный SC-LOGICABLE LG MOD6LG30 негорючий, конструкция: 20 х 2 х 0,60 мм, оболочка: FRNC 13,7 мм, цвет:  серый","м",8.11,0.18,9.58,738.95]
["100-0616-40","Кабель связи / коммуникационный SC-LOGICABLE LG MOD6LG40 негорючий, конструкция: 40 х 2 х 0,60 мм, оболочка: FRNC 14,5 мм, цвет:  серый","м",10.44,0.18,12.32,950.29]
["100-0616-50","Кабель связи / коммуникационный SC-LOGICABLE LG MOD6LG50 негорючий, конструкция: 50 x 2 х 0,60 мм, оболочка: FRNC 16,5 мм, цвет:  серый","м",12.53,0.18,14.79,1140.81]
["100-0806-02","Кабель связи / коммуникационный SC-LOGICABLE LG MOD8LG02 негорючий, конструкция: 2 х 2 х 0,80 мм, оболочка: FRNC 6,1 мм, цвет:  серый","м",1.21,0.18,1.42,109.53]
["100-0806-03","Кабель связи / коммуникационный SC-LOGICABLE LG MOD8LG03 негорючий, конструкция: 3 х 2 х 0,80 мм, оболочка: FRNC 8,0 мм, цвет:  серый","м",1.87,0.18,2.21,170.47]
["100-0806-04","Кабель связи / коммуникационный SC-LOGICABLE LG MOD8LG04 негорючий, конструкция: 4 х 2 х 0,80 мм, оболочка: FRNC 8,7 мм, цвет:  серый","м",2.2400000000000002,0.18,2.65,204.41]
["100-0806-06","Кабель связи / коммуникационный SC-LOGICABLE LG MOD8LG06 негорючий, конструкция: 6 x 2 х 0,80 мм, оболочка: FRNC 10,1 мм, цвет:  серый","м",3.18,0.18,3.76,290.02]
["100-0806-08","Кабель связи / коммуникационный SC-LOGICABLE LG MOD8LG08 негорючий, конструкция: 8 x 2 х 0,80 мм, оболочка: FRNC 10,2 мм, цвет:  серый","м",4.05,0.18,4.7699999999999996,367.93]
["100-0806-10","Кабель связи / коммуникационный SC-LOGICABLE LG MOD8LG10 негорючий, конструкция: 10 х 2 х 0,80 мм, оболочка: FRNC 13,1 мм, цвет:  серый","м",5.03,0.18,5.94,458.18]
["100-0806-20","Кабель связи / коммуникационный SC-LOGICABLE LG MOD8LG20 негорючий, конструкция: 20 х 2 х 0,80 мм, оболочка: FRNC 15,6 мм, цвет:  серый","м",9.39,0.18,11.08,854.65]
["100-0806-30","Кабель связи / коммуникационный SC-LOGICABLE LG MOD8LG30 негорючий, конструкция: 30 х 2 х 0,80 мм, оболочка: FRNC 19,4 мм, цвет:  серый","м",13.84,0.18,16.34,1260.3699999999999]
["100-0806-40","Кабель связи / коммуникационный SC-LOGICABLE LG MOD8LG40 негорючий, конструкция: 40 х 2 х 0,80 мм, оболочка: FRNC 20,9 мм, цвет:  серый","м",18.16,0.18,21.44,1653.76]
["100-0806-50","Кабель связи / коммуникационный SC-LOGICABLE LG MOD8LG50 негорючий, конструкция: 50 x 2 х 0,80 мм, оболочка: FRNC 23,7 мм, цвет:  серый","м",22.52,0.18,26.56,2048.6799999999998]
["100-1156-01","Кабель цифровой многоканальный / модуляционный SC-LOGICABLE MP MODF01 негорючий, AES/EBU 110 Ом, конструкция: 1 х 2 х 0,57 мм, оболочка: FRNC / LSZH 5,5 мм, цвет:  серый","м",2.5,0.18,2.93,226]
["100-1156-02","Кабель цифровой многоканальный / модуляционный SC-LOGICABLE MP MODF02 негорючий, AES/EBU 110 Ом, конструкция: 2 х 2 х 0,57 мм, оболочка: FRNC / LSZH 9,0 мм, цвет:  серый","м",5.0199999999999996,0.18,5.93,457.41]
["100-1156-03","Кабель цифровой многоканальный / модуляционный SC-LOGICABLE MP MODF03 негорючий, AES/EBU 110 Ом, конструкция: 3 х 2 х 0,57 мм, оболочка: FRNC / LSZH 9,2 мм, цвет:  серый","м",5.87,0.18,6.91,533]
["100-1156-04","Кабель цифровой многоканальный / модуляционный SC-LOGICABLE MP MODF04 негорючий, AES/EBU 110 Ом, конструкция: 4 х 2 х 0,57 мм, оболочка: FRNC / LSZH 11,1 мм, цвет:  серый","м",7.02,0.18,8.2799999999999994,638.66999999999996]
["100-1156-06","Кабель цифровой многоканальный / модуляционный SC-LOGICABLE MP MODF06 негорючий, AES/EBU 110 Ом, конструкция: 6 x 2 х 0,57 мм, оболочка: FRNC / LSZH 12,4 мм, цвет:  серый","м",10.37,0.18,12.24,944.12]
["100-1156-06C","Кабель цифровой многоканальный / модуляционный SC-LOGICABLE MP MODF06 негорючий (CPR версия), AES/EBU 110 Ом, конструкция: 6 x 2 х 0,57 мм, оболочка: FRNC / LSZH 12,4 мм, цвет:  серый","м",10.43,0.18,12.33,951.06]
["100-1156-08","Кабель цифровой многоканальный / модуляционный SC-LOGICABLE MP MODF08 негорючий, AES/EBU 110 Ом, конструкция: 8 x 2 х 0,57 мм, оболочка: FRNC / LSZH 14,0 мм, цвет:  серый","м",12.3,0.18,14.52,{"$f":"ROUND(F78*$B$6*(1+0.02),2)","v":1119.99}]
["100-1156-10","Кабель цифровой многоканальный / модуляционный SC-LOGICABLE MP MODF10 негорючий, AES/EBU 110 Ом, конструкция: 10 х 2 х 0,57 мм, оболочка: FRNC / LSZH 15,3 мм, цвет:  серый","м",15.8,0.18,18.649999999999999,1438.55]
["100-1156-12","Кабель цифровой многоканальный / модуляционный SC-LOGICABLE MP MODF12 негорючий, AES/EBU 110 Ом, конструкция: 12 x 2  х 0,57 мм, оболочка: FRNC / LSZH 17,2 мм, цвет:  серый","м",19.3,0.18,22.78,1757.12]
["100-1156-20","Кабель цифровой многоканальный / модуляционный SC-LOGICABLE MP MODF20 негорючий, AES/EBU 110 Ом, конструкция: 20 х 2 х 0,57 мм, оболочка: FRNC / LSZH 22,6 мм, цвет:  серый","м",28.15,0.18,33.22,2562.4]
["100-1156-20C","Кабель цифровой многоканальный / модуляционный SC-LOGICABLE MP MODF20 негорючий (CPR версия), AES/EBU 110 Ом, конструкция: 20 х 2 х 0,57 мм, оболочка: FRNC / LSZH 22,6 мм, цвет:  серый","м",28.39,0.18,33.520000000000003,2585.54]
["100-1156-24","Кабель цифровой многоканальный / модуляционный SC-LOGICABLE MP MODF24 негорючий, AES/EBU 110 Ом, конструкция: 24 x 2 х 0,57 мм, оболочка: FRNC / LSZH 23,6 мм, цвет:  серый","м",33.700000000000003,0.18,39.76,3066.85]
["100-1156-24C","Кабель цифровой многоканальный / модуляционный SC-LOGICABLE MP MODF24 негорючий (CPR версия), AES/EBU 110 Ом, конструкция: 24 x 2 х 0,57 мм, оболочка: FRNC / LSZH 23,6 мм, цвет:  серый","м",34.020000000000003,0.18,40.15,3096.94]
["100-1156-32","Кабель цифровой многоканальный / модуляционный SC-LOGICABLE MP MODF32 негорючий, AES/EBU 110 Ом, конструкция: 32 х 2 х 0,57 мм, оболочка: FRNC / LSZH 27,0 мм, цвет:  серый","м",42.37,0.18,50,3856.71]
["100-1173-02","Кабель пожарной сигнализации LOGICABLE SAFETY BD MODFS02 негорючий Е90, конструкция: 2 х 2 х 0,80 мм, оболочка: HM2 7,7 мм, цвет:  красный","м",5.26,0.18,6.22,479.77]
["100-1173-04","Кабель пожарной сигнализации LOGICABLE SAFETY BD MODFS04 негорючий Е90, конструкция: 4 х 2 х 0,80 мм, оболочка: HM2 11,6 мм, цвет:  красный","м",7.93,0.18,9.3699999999999992,722.75]
["100-1173-08","Кабель пожарной сигнализации LOGICABLE SAFETY BD MODFS08 негорючий Е90, конструкция: 8 x 2 х 0,80 мм, оболочка: HM2 17,9 мм, цвет:  красный","м",15,0.18,17.7,1365.27]
["100-1173-12","Кабель пожарной сигнализации LOGICABLE SAFETY BD MODFS12 негорючий Е90, конструкция: 12 x 2  х 0,80 мм, оболочка: HM2 18,7 мм, цвет:  красный","м",22.39,0.18,26.43,2038.66]
["200-0001","Кабель микрофонный SC-STAGE 22 HIGHFLEX, конструкция: 2 х 0,22 мм², оболочка: PVC 6,4 мм, цвет:  черный","м",1.57,0.18,1.83,141.16]
["200-0001NE","Кабель микрофонный SC-STAGE 22 HIGHFLEX без маркировки на оболочке, конструкция: 2 х 0,22 мм², оболочка: PVC 6,4 мм, цвет:  черный","м",1.57,0.18,1.83,141.16]
["200-0002","Кабель микрофонный SC-STAGE 22 HIGHFLEX, конструкция: 2 х 0,22 мм², оболочка: PVC 6,4 мм, цвет:  синий","м",1.57,0.18,1.83,141.16]
["200-0003","Кабель микрофонный SC-STAGE 22 HIGHFLEX, конструкция: 2 х 0,22 мм², оболочка: PVC 6,4 мм, цвет:  красный","м",1.57,0.18,1.83,141.16]
["200-0004","Кабель микрофонный SC-STAGE 22 HIGHFLEX, конструкция: 2 х 0,22 мм², оболочка: PVC 6,4 мм, цвет:  зеленый","м",1.57,0.18,1.83,141.16]
["200-0006","Кабель микрофонный SC-STAGE 22 HIGHFLEX, конструкция: 2 х 0,22 мм², оболочка: PVC 6,4 мм, цвет:  серый","м",1.57,0.18,1.83,141.16]
["200-0007","Кабель микрофонный SC-STAGE 22 HIGHFLEX, конструкция: 2 х 0,22 мм², оболочка: PVC 6,4 мм, цвет:  желтый","м",1.57,0.18,1.83,141.16]
["200-0008","Кабель микрофонный SC-STAGE 22 HIGHFLEX, конструкция: 2 х 0,22 мм², оболочка: PVC 6,4 мм, цвет:  фиолетовый","м",1.57,0.18,1.83,141.16]
["200-0051","Кабель микрофонный SC-CLUB SERIES MKII, конструкция: 2 х 0,34 мм², оболочка: PVC 6,5 мм, цвет:  черный","м",1.78,0.18,2.09,161.21]
["200-0051F","Кабель микрофонный SC-CLUB SERIES MKII негорючий, конструкция: 2 х 0,34 мм², оболочка: FRNC 6,5 мм, цвет:  черный","м",2.41,0.18,2.85,219.83]
["200-0051NE","Кабель микрофонный SC-CLUB SERIES MKII без маркировки на оболочке, конструкция: 2 х 0,34 мм², оболочка: PVC 6,5 мм, цвет:  черный","м",1.78,0.18,2.09,161.21]
["200-0051T","Кабель микрофонный SC-TEMPOFLEX MICROPHONE негорючий жаростойкий (до 130° C), конструкция: 2 х 0,34 мм², оболочка: TPE 7,3 мм, цвет:  черный","м",5.2,0.18,6.13,472.83]
["200-0052","Кабель микрофонный SC-CLUB SERIES MKII, конструкция: 2 х 0,34 мм², оболочка: PVC 6,5 мм, цвет:  синий","м",1.78,0.18,2.09,161.21]
["200-0053","Кабель микрофонный SC-CLUB SERIES MKII, конструкция: 2 х 0,34 мм², оболочка: PVC 6,5 мм, цвет:  красный","м",1.78,0.18,2.09,161.21]
["200-0057V","Кабель микрофонный SC-CLUB SERIES MKII винтажный, конструкция: 2 х 0,34 мм², оболочка: PVC + текстильная оплетка 6,5 мм, цвет:  желтый / коричневый","м",2.85,0.18,3.37,259.94]
["200-008M","Кабель микрофонный SC-CAPTAIN FLEXIBLE, конструкция: 2 х 0,22 мм², оболочка: PVC 6,5 мм, цвет:  темно-зеленый (оливковый)","м",1.83,0.18,2.15,165.84]
["200-0101","Кабель микрофонный SC-SOURCE MKII HIGHFLEX, конструкция: 2 х 0,25 мм², оболочка: PVC 6,5 мм, цвет:  черный","м",2.37,0.18,2.8,215.98]
["200-0101F","Кабель микрофонный SC-SOURCE MKII HIGHFLEX негорючий, конструкция: 2 х 0,25 мм², оболочка: FRNC 6,5 мм, цвет:  черный","м",3.13,0.18,3.7,285.39999999999998]
["200-0102","Кабель микрофонный SC-SOURCE MKII HIGHFLEX, конструкция: 2 х 0,25 мм², оболочка: PVC 6,5 мм, цвет:  синий","м",2.37,0.18,2.8,215.98]
["200-0103","Кабель микрофонный SC-SOURCE MKII HIGHFLEX, конструкция: 2 х 0,25 мм², оболочка: PVC 6,5 мм, цвет:  красный","м",2.37,0.18,2.8,215.98]
["200-0140AQ","Кабель микрофонный цифровой, водонепроницаемый SC-AQUA MARINEX MIKRO без галогенов, AES/EBU 110 Ом, конструкция: 2 х 0,14 мм², оболочка: PUR-SR 4,6 мм, цвет:  белый","м",3.96,0.18,4.67,360.22]
["200-0141AQ","Кабель микрофонный цифровой, водонепроницаемый SC-AQUA MARINEX MIKRO без галогенов, AES/EBU 110 Ом, конструкция: 2 х 0,14 мм², оболочка: PUR-SR 4,6 мм, цвет:  черный","м",3.96,0.18,4.67,360.22]
["200-0151","Кабель микрофонный SC-PRIMUS, конструкция: 2 х 0,50 мм², оболочка: PVC 6,7 мм, цвет:  черный","м",2.54,0.18,3.02,232.95]
["200-0151F","Кабель микрофонный SC-PRIMUS FRNC негорючий, конструкция: 2 х 0,50 мм², оболочка: FRNC 6,5 мм, цвет:  черный","м",2.85,0.18,3.35,258.39999999999998]
["200-0152","Кабель микрофонный SC-PRIMUS, конструкция: 2 х 0,50 мм², оболочка: PVC 6,7 мм, цвет:  синий","м",2.54,0.18,3.02,232.95]
["200-0186","Кабель для ламповых микрофонов SC-OCTAVE TUBE 7-и жильный, конструкция: 5x0,14 мм²(Аудио)+2x0,50 мм²(Управление), оболочка: PVC 6,5 мм, цвет:  серый","м",4.93,0.18,5.83,449.69]
["200-0241AQ","Кабель микрофонный цифровой, водонепроницаемый SC-AQUA MARINEX MIKRO 25 без галогенов, AES/EBU 110 Ом, конструкция: 2 х 0,25 мм², оболочка: PUR-SR 7,2 мм, цвет:  черный","м",9.4600000000000009,0.18,11.17,861.59]
["200-0251","Кабель микрофонный SC-GALILEO 238, конструкция: 2 х 0,38 мм², оболочка: PVC 7,0 мм, цвет:  черный","м",3.37,0.18,3.98,306.99]
["200-0271","Кабель микрофонный SC-GALILEO 238 Plus, конструкция: 2 х 0,38 мм², оболочка: PVC 7,0 мм, цвет:  черный","м",3.61,0.18,4.26,328.59]
["200-0281","Кабель микрофонный цифровой  SC-CARBOKAB 225 AES/EBU 110 Ом, конструкция: 2 х 0,25 мм², оболочка: S-PVC 7,6 мм, цвет:  черный","м",8.17,0.18,9.65,744.34]
["200-0301","Кабель микрофонный SC-SQUARE 4-CORE MKII HIGHFLEX перекрестный, конструкция: 4 х 0,20 мм², оболочка: PVC 6,5 мм, цвет:  черный","м",2.8,0.18,3.3,254.54]
["200-0301NE","Кабель микрофонный SC-SQUARE 4-CORE MKII HIGHFLEX перекрестный без маркировки на оболочке, конструкция: 4 х 0,20 мм², оболочка: PVC 6,5 мм, цвет:  черный","м",2.8,0.18,3.3,254.54]
["200-0311","Кабель микрофонный / патч-корд SC-SCUBA 14 HIGHFLEX, конструкция: 2 х 0,14 мм², оболочка: PVC 3,8 мм, цвет:  черный","м",1.33,0.18,1.57,121.1]
["200-0313","Кабель микрофонный / патч-корд SC-SCUBA 14 HIGHFLEX, конструкция: 2 х 0,14 мм², оболочка: PVC 3,8 мм, цвет:  красный","м",1.33,0.18,1.57,121.1]
["200-0314","Кабель микрофонный / патч-корд SC-SCUBA 14 HIGHFLEX, конструкция: 2 х 0,14 мм², оболочка: PVC 3,8 мм, цвет:  зеленый","м",1.33,0.18,1.57,121.1]
["200-0316","Кабель микрофонный / патч-корд SC-SCUBA 14 HIGHFLEX, конструкция: 2 х 0,14 мм², оболочка: PVC 3,8 мм, цвет:  серый","м",1.33,0.18,1.57,121.1]
["200-0317","Кабель микрофонный / патч-корд SC-SCUBA 14 HIGHFLEX, конструкция: 2 х 0,14 мм², оболочка: PVC 3,8 мм, цвет:  желтый","м",1.33,0.18,1.57,121.1]
["200-0350","Кабель микрофонный / патч-корд SC-GOBLIN, конструкция: 2 х 0,14 мм², оболочка: PVC 4,6 мм, цвет:  белый","м",1.57,0.18,1.85,142.69999999999999]
["200-0351","Кабель микрофонный / патч-корд SC-GOBLIN, конструкция: 2 х 0,14 мм², оболочка: PVC 4,6 мм, цвет:  черный","м",1.57,0.18,1.85,142.69999999999999]
["200-0352","Кабель микрофонный / патч-корд SC-GOBLIN, конструкция: 2 х 0,14 мм², оболочка: PVC 4,6 мм, цвет:  синий","м",1.57,0.18,1.85,142.69999999999999]
["200-0353","Кабель микрофонный / патч-корд SC-GOBLIN, конструкция: 2 х 0,14 мм², оболочка: PVC 4,6 мм, цвет:  красный","м",1.57,0.18,1.85,142.69999999999999]
["200-0356","Кабель микрофонный / патч-корд SC-GOBLIN, конструкция: 2 х 0,14 мм², оболочка: PVC 4,6 мм, цвет:  серый","м",1.57,0.18,1.85,142.69999999999999]
["200-0371","Кабель микрофонный SC-MICRO-STAGE AES/EBU 110 Ом, конструкция: 2 х 0,14 мм², оболочка: PVC 5,8 мм, цвет:  черный","м",1.57,0.18,1.85,142.69999999999999]
["200-0372","Кабель микрофонный SC-MICRO-STAGE AES/EBU 110 Ом, конструкция: 2 х 0,14 мм², оболочка: PVC 5,8 мм, цвет:  синий","м",1.57,0.18,1.85,142.69999999999999]
["200-0400","Кабель патч-корд балансный SC-ISOPOD SO-F22, конструкция: 2 х 0,22 мм², оболочка: PVC 3,3 мм, цвет:  белый","м",1,0.18,1.2,92.56]
["200-0401","Кабель патч-корд балансный SC-ISOPOD SO-F22, конструкция: 2 х 0,22 мм², оболочка: PVC 3,3 мм, цвет:  черный","м",1,0.18,1.2,92.56]
["200-0401F","Кабель патч-корд балансный SC-ISOPOD SO-F22F негорючий, конструкция: 2 х 0,22 мм², оболочка: FRNC 3,3 мм, цвет:  черный","м",1.28,0.18,1.52,117.24]
["200-0402","Кабель патч-корд балансный SC-ISOPOD SO-F22, конструкция: 2 х 0,22 мм², оболочка: PVC 3,3 мм, цвет:  синий","м",1,0.18,1.2,92.56]
["200-0403","Кабель патч-корд балансный SC-ISOPOD SO-F22, конструкция: 2 х 0,22 мм², оболочка: PVC 3,3 мм, цвет:  красный","м",1,0.18,1.2,92.56]
["200-0404","Кабель патч-корд балансный SC-ISOPOD SO-F22, конструкция: 2 х 0,22 мм², оболочка: PVC 3,3 мм, цвет:  зеленый","м",1,0.18,1.2,92.56]
["200-0405","Кабель патч-корд балансный SC-ISOPOD SO-F22, конструкция: 2 х 0,22 мм², оболочка: PVC 3,3 мм, цвет:  оранжевый","м",1,0.18,1.2,92.56]
["200-0406","Кабель патч-корд балансный SC-ISOPOD SO-F22, конструкция: 2 х 0,22 мм², оболочка: PVC 3,3 мм, цвет:  серый","м",1,0.18,1.2,92.56]
["200-0407","Кабель патч-корд балансный SC-ISOPOD SO-F22, конструкция: 2 х 0,22 мм², оболочка: PVC 3,3 мм, цвет:  желтый","м",1,0.18,1.2,{"$f":"ROUND(F142*$B$6*(1+0.02),2)","v":92.56}]
["200-0408","Кабель патч-корд балансный SC-ISOPOD SO-F22, конструкция: 2 х 0,22 мм², оболочка: PVC 3,3 мм, цвет:  фиолетовый","м",1,0.18,1.2,92.56]
["200-0451","Кабель микрофонный / патч-корд SC-CICADA SO-D14, конструкция: 2 х 0,14 мм², оболочка: PUR 2,6 мм, цвет:  черный","м",1.39,0.18,1.63,125.73]
["200-0461","Кабель микрофонный / патч-корд SC-CICADA 4, конструкция: 4 х 0,42 мм, оболочка: PUR 3,4 мм, цвет:  черный","м",1.59,0.18,1.87,144.24]
["200-0551","Кабель микрофонный цифровой  SC-PEACOCK MKII двупарный AES/EBU 110 Ом, конструкция: 2 х 2 х 0,22 мм², оболочка: S-PVC 4,5 x 9,2 мм, цвет:  черный","м",3.59,0.18,4.24,327.05]
["200-0552","Кабель микрофонный цифровой  SC-PEACOCK MKII двупарный AES/EBU 110 Ом, конструкция: 2 х 2 х 0,22 мм², оболочка: S-PVC 4,5 x 9,2 мм, цвет:  синий","м",3.59,0.18,4.24,327.05]
["200-0601","Кабель микрофонный SC-SYMBIOTIC, конструкция: 2 х 0,20 мм², оболочка: PVC 5,2 мм, цвет:  черный","м",2.59,0.18,3.04,234.49]
["200-0601H3","Кабель микрофонный SC-SYMBIOTIC 3 3-х жильный, конструкция: 3 х 0,20 мм², оболочка: TPE 5,2 мм, цвет:  черный","м",3.37,0.18,3.98,306.99]
["200-0711","Кабель микрофонный SC-CLUB BLACK ZILK AES/EBU 110 Ом, конструкция: 2 х 0,25 мм², оболочка: S-PVC 7,3 мм, цвет:  черный матовый полупрозрачный","м",2.91,0.18,3.43,264.57]
["200-0713","Кабель микрофонный SC-CLUB RED ZILK AES/EBU 110 Ом, конструкция: 2 х 0,25 мм², оболочка: S-PVC 7,3 мм, цвет:  бордовый","м",2.91,0.18,3.43,264.57]
["201-0101","Кабель микрофонный SC-SOURCE MKII HIGHFLEX, конструкция: 2 х 0,25 мм², оболочка: PUR 6,5 мм, цвет:  черный","м",3.61,0.18,4.26,328.59]
["201-0406","Кабель патч-корд балансный SC-ISOPOD SO-F50, конструкция: 2 х 0,50 мм², оболочка: PVC 4,2 мм, цвет:  серый","м",1.48,0.18,1.74,134.21]
["300-0021","Кабель инструментальный SC-TRICONE MKII, конструкция: 1 х 0,22 мм², оболочка: PVC 5,9 мм, цвет:  черный","м",1.41,0.18,1.65,127.27]
["300-0021NE","Кабель инструментальный SC-TRICONE MKII без маркировки на оболочке, конструкция: 1 х 0,22 мм², оболочка: PVC 5,9 мм, цвет:  черный","м",1.41,0.18,1.65,127.27]
["300-0022","Кабель инструментальный SC-TRICONE MKII, конструкция: 1 х 0,22 мм², оболочка: PVC 5,9 мм, цвет:  синий","м",1.41,0.18,1.65,127.27]
["300-0023","Кабель инструментальный SC-TRICONE MKII, конструкция: 1 х 0,22 мм², оболочка: PVC 5,9 мм, цвет:  красный","м",1.41,0.18,1.65,127.27]
["300-0024","Кабель инструментальный SC-TRICONE MKII, конструкция: 1 х 0,22 мм², оболочка: PVC 5,9 мм, цвет:  зеленый","м",1.41,0.18,1.65,127.27]
["300-0031","Кабель инструментальный / патч-корд SC-ONYX TYNEE, конструкция: 1 х 0,22 мм², оболочка: PVC 4,0 мм, цвет:  черный","м",0.93,0.18,1.0900000000000001,84.08]
["300-0051","Кабель инструментальный SC-SPIRIT, конструкция: 1 х 0,50 мм², оболочка: PVC 7,0 мм, цвет:  черный","м",2.91,0.18,3.43,264.57]
["300-0071","Кабель инструментальный SC-SPIRIT XXL, конструкция: 1 х 0,75 мм², оболочка: PVC 6,8 мм, цвет:  коричневый / прозрачный","м",3.17,0.18,3.74,288.48]
["300-008M","Кабель инструментальный SC-COLONEL INCREDIBLE 2-х жильный HIGH END, конструкция: 2 х 0,35 мм², оболочка: PVC 7,2 мм, цвет:  темно-зеленый (оливковый)","м",3.5,0.18,4.13,318.56]
["300-0091","Кабель инструментальный SC-SPIRIT LLX \"LOW LOSS\", конструкция: 1 х 0,38 мм², оболочка: PVC 7,5 мм, цвет:  черный","м",3.83,0.18,4.5,347.1]
["300-0110","Кабель инструментальный SC-CLASSIQUE, конструкция: 1 х 0,50 мм², оболочка: PVC + текстильная оплетка 6,5 мм, цвет:  черный/белый","м",3.46,0.18,4.07,313.94]
["300-0112","Кабель инструментальный SC-CLASSIQUE, конструкция: 1 х 0,50 мм², оболочка: PVC + текстильная оплетка 6,5 мм, цвет:  черный/синий","м",3.46,0.18,4.07,313.94]
["300-0117","Кабель инструментальный SC-CLASSIQUE, конструкция: 1 х 0,50 мм², оболочка: PVC + текстильная оплетка 6,5 мм, цвет:  желтый / коричневый","м",3.46,0.18,4.07,313.94]
["300-0270","Кабель инструментальный SC-TRICONE XXL, конструкция: 1 х 0,50 мм², оболочка: LLC (Long Life Compound) 5,9 мм, цвет:  белый","м",2,0.18,2.37,182.81]
["300-0271","Кабель инструментальный SC-TRICONE XXL, конструкция: 1 х 0,50 мм², оболочка: LLC (Long Life Compound) 5,9 мм, цвет:  черный","м",2,0.18,2.37,182.81]
["300-0272","Кабель инструментальный SC-TRICONE XXL, конструкция: 1 х 0,50 мм², оболочка: LLC (Long Life Compound) 5,9 мм, цвет:  синий","м",2,0.18,2.37,182.81]
["300-0273","Кабель инструментальный SC-TRICONE XXL, конструкция: 1 х 0,50 мм², оболочка: LLC (Long Life Compound) 5,9 мм, цвет:  красный","м",2,0.18,2.37,182.81]
["300-0351","Кабель инструментальный SC-SPIRIT BLACK ZILK, конструкция: 1 х 0,25 мм², оболочка: PVC 7,2 мм, цвет:  черный матовый полупрозрачный","м",2.96,0.18,3.5,269.97000000000003]
["301-1101","Кабель комбинированный SC-TRICONE SYMASYM, конструкция: 1х(1х0,22 мм²)(Инстр.) + 1х(2х0,14 мм²) (Микроф.), оболочка: PVC 11,5 мм, цвет:  черный","м",8.15,0.18,9.6300000000000008,742.8]
["301-2413","Кабель комбинированный SC-TRICONE 241P, конструкция: 4х(1х0,22мм²) (Инстр.) + 2х(2х0,14мм²) (Аудио) + 1х(4х2х0,14мм²) (CAT.5e) + 1х(3х0,75мм²) (Питание), оболочка: PVC 21,8 мм, цвет:  черный","м",28.15,0.18,33.22,2562.4]
["320-0061","Кабель инструментальный / патч-корд SC-ONYX 2008 2-х жильный, конструкция: 2 x 1 х 0,08 мм², оболочка: PVC 2,6 x 5,9 мм, цвет:  черный","м",1.35,0.18,1.61,124.19]
["320-0101","Кабель инструментальный / патч-корд SC-ONYX 2025 2-х жильный, конструкция: 2 x 1 х 0,25 мм², оболочка: PVC 3,8 x 8,3 мм, цвет:  черный","м",2.2599999999999998,0.18,2.65,204.41]
["320-0102","Кабель инструментальный / патч-корд SC-ONYX 2025 2-х жильный, конструкция: 2 x 1 х 0,08 мм², оболочка: PVC 3,8 x 8,3 мм, цвет:  синий","м",2.2599999999999998,0.18,2.65,204.41]
["320-0252","Кабель инструментальный SC-SINUS CONTROL с дополнительным проводом управления, конструкция: 2х1х0,35 мм² (Инстр. коакс.) + 1х0,35 мм² (Управл.), оболочка: S-PVC 4,5 x 9,2 мм, цвет:  синий","м",3.52,0.18,4.1500000000000004,320.11]
["380-0056-02014","Кабель управления SC-CONTROL FLEX негорючий, конструкция: 2 х 0,14 мм², оболочка: PVC 3,8 мм, цвет:  серый","м",0.84,0.18,1,77.13]
["380-0056-02025","Кабель управления SC-CONTROL FLEX негорючий, конструкция: 2 х 0,25 мм², оболочка: PVC 4,2 мм, цвет:  серый","м",0.97,0.18,1.1299999999999999,87.16]
["380-0056-02034","Кабель управления SC-CONTROL FLEX негорючий, конструкция: 2 х 0,34 мм², оболочка: PVC 4,6 мм, цвет:  серый","м",1.1000000000000001,0.18,1.31,101.05]
["380-0056-02050","Кабель управления SC-CONTROL FLEX негорючий, конструкция: 2 х 0,50 мм², оболочка: PVC 5,5 мм, цвет:  серый","м",1.47,0.18,1.73,133.44]
["380-0056-02075","Кабель управления SC-CONTROL FLEX негорючий, конструкция: 2 х 0,75 мм², оболочка: PVC 6,1 мм, цвет:  серый","м",1.71,0.18,2.02,155.81]
["380-0056-03014","Кабель управления SC-CONTROL FLEX негорючий, конструкция: 3 х 0,14 мм², оболочка: PVC 4,0 мм, цвет:  серый","м",0.95,0.18,1.1100000000000001,85.62]
["380-0056-03025","Кабель управления SC-CONTROL FLEX негорючий, конструкция: 3 х 0,25 мм², оболочка: PVC 4,4 мм, цвет:  серый","м",1.18,0.18,1.39,107.22]
["380-0056-03034","Кабель управления SC-CONTROL FLEX негорючий, конструкция: 3 х 0,34 мм², оболочка: PVC 4,9 мм, цвет:  серый","м",1.39,0.18,1.65,127.27]
["380-0056-03050","Кабель управления SC-CONTROL FLEX негорючий, конструкция: 3 х 0,50 мм², оболочка: PVC 5,8 мм, цвет:  серый","м",1.34,0.18,1.58,121.87]
["380-0056-03075","Кабель управления SC-CONTROL FLEX негорючий, конструкция: 3 х 0,75 мм², оболочка: PVC 6,5 мм, цвет:  серый","м",2.29,0.18,2.71,209.03]
["380-0056-04014","Кабель управления SC-CONTROL FLEX негорючий, конструкция: 4 х 0,14 мм², оболочка: PVC 4,2 мм, цвет:  серый","м",1.1299999999999999,0.18,1.32,101.82]
["380-0056-04025","Кабель управления SC-CONTROL FLEX негорючий, конструкция: 4 х 0,25 мм², оболочка: PVC 4,7 мм, цвет:  серый","м",1.4,0.18,1.65,127.27]
["380-0056-04034","Кабель управления SC-CONTROL FLEX негорючий, конструкция: 4 х 0,34 мм², оболочка: PVC 5,5 мм, цвет:  серый","м",1.58,0.18,1.87,144.24]
["380-0056-04050","Кабель управления SC-CONTROL FLEX негорючий, конструкция: 4 х 0,50 мм², оболочка: PVC 6,3 мм, цвет:  серый","м",2.1800000000000002,0.18,2.56,197.46]
["380-0056-04075","Кабель управления SC-CONTROL FLEX негорючий, конструкция: 4 х 0,75 мм², оболочка: PVC 7,0 мм, цвет:  серый","м",2.74,0.18,3.23,249.14]
["380-0056-05014","Кабель управления SC-CONTROL FLEX негорючий, конструкция: 5 х 0,14 мм², оболочка: PVC 4,5 мм, цвет:  серый","м",1.23,0.18,1.44,111.07]
["380-0056-05025","Кабель управления SC-CONTROL FLEX негорючий, конструкция: 5 х 0,25 мм², оболочка: PVC 5,4 мм, цвет:  серый","м",1.52,0.18,1.79,138.07]
["380-0056-05034","Кабель управления SC-CONTROL FLEX негорючий, конструкция: 5 х 0,34 мм², оболочка: PVC 5,9 мм, цвет:  серый","м",1.89,0.18,2.23,172.01]
["380-0056-05050","Кабель управления SC-CONTROL FLEX негорючий, конструкция: 5 х 0,50 мм², оболочка: PVC 6,7 мм, цвет:  серый","м",2.66,0.18,3.15,242.97]
["380-0056-05075","Кабель управления SC-CONTROL FLEX негорючий, конструкция: 5 х 0,75 мм², оболочка: PVC 7,5 мм, цвет:  серый","м",2.65,0.18,3.13,241.43]
["380-0056-06014","Кабель управления SC-CONTROL FLEX негорючий, конструкция: 6 х 0,14 мм², оболочка: PVC 4,8 мм, цвет:  серый","м",1.37,0.18,1.61,124.19]
["380-0056-06025","Кабель управления SC-CONTROL FLEX негорючий, конструкция: 6 х 0,25 мм², оболочка: PVC 5,7 мм, цвет:  серый","м",1.82,0.18,2.15,165.84]
["380-0056-06034","Кабель управления SC-CONTROL FLEX негорючий, конструкция: 6 х 0,34 мм², оболочка: PVC 6,3 мм, цвет:  серый","м",2.2400000000000002,0.18,2.65,204.41]
["380-0056-06050","Кабель управления SC-CONTROL FLEX негорючий, конструкция: 6 х 0,50 мм², оболочка: PVC (пламяподавляющая) 7,2 мм, цвет:  серый","м",3.1,0.18,3.66,282.31]
["380-0056-06075","Кабель управления SC-CONTROL FLEX негорючий, конструкция: 6 х 0,75 мм², оболочка: PVC 8,1 мм, цвет:  серый","м",4.21,0.18,4.97,383.36]
["380-0056-07014","Кабель управления SC-CONTROL FLEX негорючий, конструкция: 7 х 0,14 мм², оболочка: PVC 4,8 мм, цвет:  серый","м",1.55,0.18,1.82,140.38]
["380-0056-07025","Кабель управления SC-CONTROL FLEX негорючий, конструкция: 7 х 0,25 мм², оболочка: PVC 5,7 мм, цвет:  серый","м",1.94,0.18,2.29,176.64]
["380-0056-07034","Кабель управления SC-CONTROL FLEX негорючий, конструкция: 7 х 0,34 мм², оболочка: PVC 6,3 мм, цвет:  серый","м",2.52,0.18,2.98,229.86]
["380-0056-07050","Кабель управления SC-CONTROL FLEX негорючий, конструкция: 7 х 0,50 мм², оболочка: PVC 7,2 мм, цвет:  серый","м",3.52,0.18,4.1500000000000004,{"$f":"ROUND(F206*$B$6*(1+0.02),2)","v":320.11}]
["380-0056-07075","Кабель управления SC-CONTROL FLEX негорючий, конструкция: 7 х 0,75 мм², оболочка: PVC 8,1 мм, цвет:  серый","м",3.53,0.18,4.16,320.88]
["380-0056-08014","Кабель управления SC-CONTROL FLEX негорючий, конструкция: 8 х 0,14 мм², оболочка: PVC 5,5 мм, цвет:  серый","м",1.69,0.18,2,154.27000000000001]
["380-0056-08025","Кабель управления SC-CONTROL FLEX негорючий, конструкция: 8 х 0,25 мм², оболочка: PVC 6,3 мм, цвет:  серый","м",2.19,0.18,2.58,199.01]
["380-0056-08034","Кабель управления SC-CONTROL FLEX негорючий, конструкция: 8 х 0,34 мм², оболочка: PVC 7,0 мм, цвет:  серый","м",2.66,0.18,3.13,241.43]
["380-0056-08050","Кабель управления SC-CONTROL FLEX негорючий, конструкция: 8 х 0,50 мм², оболочка: PVC 8,0 мм, цвет:  серый","м",3.97,0.18,4.68,360.99]
["380-0056-08075","Кабель управления SC-CONTROL FLEX негорючий, конструкция: 8 х 0,75 мм², оболочка: PVC 9,2 мм, цвет:  серый","м",4.87,0.18,5.74,442.75]
["380-0056-10014","Кабель управления SC-CONTROL FLEX негорючий, конструкция: 10 х 0,14 мм², оболочка: PVC 6,1 мм, цвет:  серый","м",1.98,0.18,2.34,180.49]
["380-0056-10025","Кабель управления SC-CONTROL FLEX негорючий, конструкция: 10 х 0,25 мм², оболочка: PVC 6,9 мм, цвет:  серый","м",2.58,0.18,3.03,233.72]
["380-0056-10034","Кабель управления SC-CONTROL FLEX негорючий, конструкция: 10 х 0,34 мм², оболочка: PVC 7,7 мм, цвет:  серый","м",3.45,0.18,4.08,314.70999999999998]
["380-0056-10050","Кабель управления SC-CONTROL FLEX негорючий, конструкция: 10 х 0,50 мм², оболочка: PVC 9,1 мм, цвет:  серый","м",4.58,0.18,5.4,416.52]
["380-0056-10075","Кабель управления SC-CONTROL FLEX негорючий, конструкция: 10 х 0,75 мм², оболочка: PVC 10,4 мм, цвет:  серый","м",5.82,0.18,6.87,529.91]
["380-0056-12014","Кабель управления SC-CONTROL FLEX негорючий, конструкция: 12 х 0,14 мм², оболочка: PVC 6,3 мм, цвет:  серый","м",2.19,0.18,2.6,200.55]
["380-0056-12025","Кабель управления SC-CONTROL FLEX негорючий, конструкция: 12 х 0,25 мм², оболочка: PVC 7,1 мм, цвет:  серый","м",3.11,0.18,3.68,283.85000000000002]
["380-0056-12034","Кабель управления SC-CONTROL FLEX негорючий, конструкция: 12 х 0,34 мм², оболочка: PVC 7,9 мм, цвет:  серый","м",3.76,0.18,4.4400000000000004,342.48]
["380-0056-12050","Кабель управления SC-CONTROL FLEX негорючий, конструкция: 12 х 0,50 мм², оболочка: PVC 9,4 мм, цвет:  серый","м",4.0999999999999996,0.18,4.82,371.79]
["380-0056-12075","Кабель управления SC-CONTROL FLEX негорючий, конструкция: 12 х 0,75 мм², оболочка: PVC (пламяподавляющая) 10,8 мм, цвет:  серый","м",6.73,0.18,7.94,612.45000000000005]
["380-0056-14014","Кабель управления SC-CONTROL FLEX негорючий, конструкция: 14 х 0,14 мм², оболочка: PVC 6,5 мм, цвет:  серый","м",2.4500000000000002,0.18,2.89,222.92]
["380-0056-14025","Кабель управления SC-CONTROL FLEX негорючий, конструкция: 14 х 0,25 мм², оболочка: PVC 7,4 мм, цвет:  серый","м",3.94,0.18,4.6500000000000004,358.67]
["380-0056-16014","Кабель управления SC-CONTROL FLEX негорючий, конструкция: 16 х 0,14 мм², оболочка: PVC 6,8 мм, цвет:  серый","м",2.94,0.18,3.45,266.11]
["380-0056-16025","Кабель управления SC-CONTROL FLEX негорючий, конструкция: 16 х 0,25 мм², оболочка: PVC 7,8 мм, цвет:  серый","м",4.1100000000000003,0.18,4.8499999999999996,374.1]
["380-0056-16050","Кабель управления SC-CONTROL FLEX негорючий, конструкция: 16 х 0,50 мм², оболочка: PVC 10,4 мм, цвет:  серый","м",7.42,0.18,8.74,674.15]
["380-0056-18014","Кабель управления SC-CONTROL FLEX негорючий, конструкция: 18 х 0,14 мм², оболочка: PVC 7,1 мм, цвет:  серый","м",2.4700000000000002,0.18,2.9,223.69]
["380-0056-18034","Кабель управления SC-CONTROL FLEX негорючий, конструкция: 18 х 0,34 мм², оболочка: PVC 9,3 мм, цвет:  серый","м",6.47,0.18,7.65,590.08000000000004]
["380-0056-18075","Кабель управления SC-CONTROL FLEX негорючий, конструкция: 18 х 0,75 мм², оболочка: PVC 12,5 мм, цвет:  серый","м",10.27,0.18,12.11,934.09]
["380-0056-25014","Кабель управления SC-CONTROL FLEX негорючий, конструкция: 25 х 0,14 мм², оболочка: PVC 8,1 мм, цвет:  серый","м",5.19,0.18,6.13,472.83]
["380-0056-25025","Кабель управления SC-CONTROL FLEX негорючий, конструкция: 25 х 0,25 мм², оболочка: PVC 9,6 мм, цвет:  серый","м",6.97,0.18,8.23,634.80999999999995]
["380-0241-05034AQ","Кабель управления водонепроницаемый SC-AQUA MARINEX LED CONTROL без галогенов RGBW, конструкция: 5 х 0,34 мм², оболочка: PUR-SR 5,1 мм, цвет:  черный","м",2.97,0.18,3.5,269.97000000000003]
["400-0075","Кабель акустический плоский (параллельный) класса HiFi SC-TWINCORD, конструкция: 2 х 0,75 мм², оболочка: PVC 4,5 x 2,8 мм, цвет:  прозрачный","м",0.77,0.18,0.9,69.42]
["400-0150","Кабель акустический плоский (параллельный) класса HiFi SC-TWINCORD, конструкция: 2 х 1,5 мм², оболочка: PVC 6,5 x 2,8 мм, цвет:  прозрачный","м",1.6,0.18,1.89,145.78]
["400-0250","Кабель акустический плоский (параллельный) класса HiFi SC-TWINCORD, конструкция: 2 х 2,5 мм², оболочка: PVC 7,5 x 3,5 мм, цвет:  прозрачный","м",2.37,0.18,2.79,215.2]
["400-0400","Кабель акустический плоский (параллельный) класса HiFi SC-TWINCORD, конструкция: 2 х 4,0 мм², оболочка: PVC 8,6 x 4,2 мм, цвет:  прозрачный","м",3.79,0.18,4.47,344.79]
["400-0600","Кабель акустический плоский (параллельный) класса HiFi SC-TWINCORD, конструкция: 2 х 6,0 мм², оболочка: PVC 11,2 x 5,5 мм мм, цвет:  прозрачный","м",6.21,0.18,7.32,564.62]
["401-0150-WS","Кабель акустический плоский (параллельный) класса HiFi SC-PRISMA 215, конструкция: 2 х 1,5 мм², оболочка: PVC 8,0 х 3,3 мм, цвет:  белый","м",1.88,0.18,2.2200000000000002,171.24]
["401-0250-WS","Кабель акустический плоский (параллельный) класса HiFi SC-PRISMA 225, конструкция: 2 х 2,5 мм², оболочка: PVC 9,7 х 4,0 мм, цвет:  белый","м",2.83,0.18,3.34,257.63]
["401-0400-WS","Кабель акустический плоский (параллельный) класса HiFi SC-PRISMA 240, конструкция: 2 х 4,0 мм², оболочка: PVC 9,8 х 4,8 мм, цвет:  белый","м",4.3600000000000003,0.18,5.16,398.01]
["415-0050NE","Кабель акустический круглый для мобильного применения SC-MERIDIAN MOBILE SP215 без маркировки на оболочке, конструкция: 2 х 1,5 мм², оболочка: PVC 6,8 мм, цвет:  белый","м",1.94,0.18,2.29,176.64]
["415-0051","Кабель акустический круглый для мобильного применения SC-MERIDIAN MOBILE SP215, конструкция: 2 х 1,5 мм², оболочка: PVC 6,8 мм, цвет:  черный","м",1.94,0.18,2.29,176.64]
["415-0051F","Кабель акустический круглый инсталляционный SC-MERIDIAN INSTALL SP215 FRNC негорючий, конструкция: 2 х 1,5 мм², оболочка: FRNC 6,8 мм, цвет:  черный","м",2.5499999999999998,0.18,3.02,232.95]
["415-0051FC","Кабель акустический круглый инсталляционный SC-MERIDIAN INSTALL SP215 FRNC (CPR) негорючий (CPR версия), конструкция: 2 х 1,38 мм, оболочка: FRNC / LSZH 6,8 мм, цвет:  черный","м",2.65,0.18,3.11,239.89]
["415-0055E30","Кабель акустический круглый инсталляционный SC-MERIDIAN INSTALL SP215 E30 негорючий Е30, конструкция: 2 х 1,5 мм², оболочка: FRNC 9,0 мм, цвет:  оранжевый","м",4.71,0.18,5.56,428.87]
["415-0056","Кабель акустический круглый для мобильного применения SC-MERIDIAN MOBILE SP215, конструкция: 2 х 1,5 мм², оболочка: PVC 6,8 мм, цвет:  темно-серый","м",1.94,0.18,2.29,176.64]
["415-0056FG","Кабель акустический круглый инсталляционный SC-MERIDIAN INSTALL SP215 FG негорючий экранированный, конструкция: 2 х 1,5 мм², оболочка: FRNC 8,0 мм, цвет:  темно-серый","м",3.95,0.18,4.66,359.45]
["415-0310","Кабель акустический плоский (параллельный) SC-TRIBUN, конструкция: 2 х 1,5 мм², оболочка: PVC 12,8 х 2,4 мм, цвет:  белый","м",2.31,0.18,2.74,211.35]
["420-0075-SW","Кабель акустический плоский (параллельный) SC-NYFAZ, конструкция: 2 х 0,75 мм², оболочка: PVC 4,5 x 2,3 мм, цвет:  черный","м",0.73,0.18,0.85,65.56]
["420-0075-WS","Кабель акустический плоский (параллельный) SC-NYFAZ, конструкция: 2 х 0,75 мм², оболочка: PVC 4,5 x 2,3 мм, цвет:  белый","м",0.77,0.18,0.92,70.959999999999994]
["420-0150-SW","Кабель акустический плоский (параллельный) SC-NYFAZ, конструкция: 2 х 1,5 мм², оболочка: PVC 6,5 x 2,8 мм, цвет:  черный","м",1.47,0.18,1.73,133.44]
["420-0150-WS","Кабель акустический плоский (параллельный) SC-NYFAZ, конструкция: 2 х 1,5 мм², оболочка: PVC 6,5 x 2,8 мм, цвет:  белый","м",1.48,0.18,1.76,135.76]
["420-0250-SW","Кабель акустический плоский (параллельный) SC-NYFAZ, конструкция: 2 х 2,5 мм², оболочка: PVC 7,5 x 3,5 мм, цвет:  черный","м",2.3199999999999998,0.18,2.74,211.35]
["420-0400-SW","Кабель акустический плоский (параллельный) SC-NYFAZ, конструкция: 2 х 4,0 мм², оболочка: PVC 10,2 x 4,4 мм, цвет:  черный","м",3.52,0.18,4.16,320.88]
["425-0050","Кабель акустический круглый для мобильного применения SC-MERIDIAN MOBILE SP225, конструкция: 2 х 2,5 мм², оболочка: PVC 7,8 мм, цвет:  белый","м",2.73,0.18,3.21,247.6]
["425-0051","Кабель акустический круглый для мобильного применения SC-MERIDIAN MOBILE SP225, конструкция: 2 х 2,5 мм², оболочка: PVC 7,8 мм, цвет:  черный","м",2.73,0.18,3.21,247.6]
["425-0051F","Кабель акустический круглый инсталляционный SC-MERIDIAN INSTALL SP225 FRNC негорючий, конструкция: 2 х 2,5 мм², оболочка: FRNC 7,8 мм, цвет:  черный","м",3.29,0.18,3.89,300.05]
["425-0051FC","Кабель акустический круглый инсталляционный SC-MERIDIAN INSTALL SP225 FRNC (CPR) негорючий (CPR версия), конструкция: 2 х 1,78 мм, оболочка: FRNC / LSZH 8,2 мм, цвет:  черный","м",3.52,0.18,4.1500000000000004,320.11]
["425-0051P","Кабель акустический круглый для мобильного применения SC-MERIDIAN MOBILE SP225, конструкция: 2 х 2,5 мм², оболочка: PUR 7,8 мм, цвет:  черный","м",3.52,0.18,4.1500000000000004,320.11]
["425-0055E30","Кабель акустический круглый инсталляционный SC-MERIDIAN INSTALL SP225 E30 негорючий Е30, конструкция: 2 х 2,5 мм², оболочка: FRNC 9,8 мм, цвет:  оранжевый","м",5.6,0.18,6.6,509.09]
["425-0055E30M","Кабель акустический круглый инсталляционный SC-MERIDIAN INSTALL SP225 E30M негорючий Е30, конструкция: 1 х 2,5 мм², оболочка: FRNC 11,9 мм, цвет:  оранжевый","м",5.55,0.18,6.55,505.23]
["425-0056","Кабель акустический круглый для мобильного применения SC-MERIDIAN MOBILE SP225, конструкция: 2 х 2,5 мм², оболочка: PVC 7,8 мм, цвет:  темно-серый","м",2.73,0.18,3.21,247.6]
["425-0056FG","Кабель акустический круглый инсталляционный SC-MERIDIAN INSTALL SP225 FG негорючий экранированный, конструкция: 2 х 2,5 мм², оболочка: FRNC 8,3 мм, цвет:  темно-серый","м",5.16,0.18,6.1,470.52]
["425-008M","Кабель акустический круглый для мобильного применения SC-MAJOR INVISIBLE, конструкция: 2 х 2,5 мм², оболочка: PVC 7,8 мм, цвет:  темно-зеленый (оливковый)","м",2.82,0.18,3.32,256.08999999999997]
["425-0151","Кабель акустический плоский (параллельный) класса HIGH END SC-ORBIT 225 MKII, конструкция: 2 х 2,5 мм², оболочка: PVC 10,2 x 4,8 мм, цвет:  черный прозрачный","м",3.45,0.18,4.08,314.70999999999998]
["425-0201","Кабель акустический коаксиальный SC-MAGELLAN SPK225, конструкция: 2 х 2,5 мм², оболочка: PVC 6,0 мм, цвет:  черный","м",3.31,0.18,3.9,300.82]
["425-0201F","Кабель акустический коаксиальный SC-MAGELLAN SPK225 FRNC негорючий, конструкция: 2 х 2,5 мм², оболочка: FRNC 6,0 мм, цвет:  черный","м",3.53,0.18,4.16,320.88]
["425-0241AQ","Кабель акустический круглый водонепроницаемый SC-AQUA MARINEX SPEAKER 225 без галогенов экранированный, конструкция: 2 х 2,5 мм², оболочка: PUR-SR 8,2 мм, цвет:  черный","м",9.0299999999999994,0.18,10.66,822.25]
["425-0310","Кабель акустический плоский (параллельный) SC-TRIBUN, конструкция: 2 х 2,5 мм², оболочка: PVC 14,6 x 2,6 мм, цвет:  белый","м",3.18,0.18,3.75,{"$f":"ROUND(F270*$B$6*(1+0.02),2)","v":289.25}]
["440-0051","Кабель акустический круглый для мобильного применения SC-MERIDIAN MOBILE SP240, конструкция: 2 х 4,0 мм², оболочка: PVC 9,5 мм, цвет:  черный","м",4.5199999999999996,0.18,5.32,410.35]
["440-0051FC","Кабель акустический круглый инсталляционный SC-MERIDIAN INSTALL SP240 FRNC (CPR) негорючий (CPR версия), конструкция: 2 х 4,0 мм², оболочка: FRNC / LSZH 10,2 мм, цвет:  черный","м",5.52,0.18,6.5,501.37]
["440-0055E30","Кабель акустический круглый инсталляционный SC-MERIDIAN INSTALL SP240 E30 негорючий Е30, конструкция: 2 х 4,0 мм², оболочка: FRNC 12,6 мм, цвет:  оранжевый","м",8.89,0.18,10.48,808.37]
["440-0055E30M","Кабель акустический круглый инсталляционный SC-MERIDIAN INSTALL SP240 E30 негорючий Е30, конструкция: 2 х 4,0 мм², оболочка: Силикон FRNC 12,8 мм, цвет:  оранжевый","м",9.02,0.18,10.65,821.48]
["440-0056","Кабель акустический круглый для мобильного применения SC-MERIDIAN MOBILE SP240, конструкция: 2 х 4,0 мм², оболочка: PVC 9,5 мм, цвет:  темно-серый","м",4.5199999999999996,0.18,5.32,410.35]
["440-0056FG","Кабель акустический круглый инсталляционный SC-MERIDIAN INSTALL SP240 FG негорючий экранированный, конструкция: 2 х 4,0 мм², оболочка: FRNC 10,1 мм, цвет:  темно-серый","м",7.4,0.18,8.73,673.38]
["440-0151","Кабель акустический плоский (параллельный) класса HIGH END SC-ORBIT 240 MKII, конструкция: 2 х 4,0 мм², оболочка: PVC 12 x 5,9 мм, цвет:  черный прозрачный","м",4.78,0.18,5.65,435.81]
["440-0201","Кабель акустический коаксиальный SC-MAGELLAN SPK240, конструкция: 2 х 4,0 мм², оболочка: PVC 8,0 мм, цвет:  черный","м",5.19,0.18,6.13,472.83]
["440-0201F","Кабель акустический коаксиальный SC-MAGELLAN SPK240 FRNC негорючий, конструкция: 2 х 4,0 мм², оболочка: FRNC 8,0 мм, цвет:  черный","м",5.29,0.18,6.24,481.32]
["440-0241AQ","Кабель акустический круглый водонепроницаемый SC-AQUA MARINEX SPEAKER 240 без галогенов экранированный, конструкция: 2 х 4,0 мм², оболочка: PUR-SR 11,2 мм, цвет:  черный","м",12.77,0.18,15.08,1163.18]
["440-0256","Кабель акустический круглый с дополнительной жилой управления SC-ECLIPSE SPQ240 MKII, конструкция: 2х4,0 мм² (Аудио)+1х0,50 мм² (Управление), оболочка: PVC 9,5 мм, цвет:  серый","м",5.52,0.18,6.5,501.37]
["440-0310","Кабель акустический плоский (параллельный) SC-TRIBUN, конструкция: 2 х 4,0 мм², оболочка: PVC 17,5 х 3,0 мм, цвет:  белый","м",4.6100000000000003,0.18,5.44,419.61]
["460-0056","Кабель акустический круглый для мобильного применения SC-MERIDIAN MOBILE SP260, конструкция: 2 х 6,0 мм², оболочка: PVC 10,0 мм, цвет:  темно-серый","м",6.29,0.18,7.42,572.34]
["460-0056F","Кабель акустический круглый инсталляционный SC-MERIDIAN INSTALL SP260 FRNC негорючий, конструкция: 2 х 6,0 мм², оболочка: FRNC 11,2 мм, цвет:  темно-серый","м",8.6300000000000008,0.18,10.19,786]
["460-0201F","Кабель акустический коаксиальный SC-MAGELLAN SPK260 FRNC негорючий, конструкция: 2 х 6,0 мм², оболочка: FRNC 11,2 мм, цвет:  черный","м",7.05,0.18,8.31,640.98]
["462-0100-205","Кабель акустический плоский (параллельный) SC-FLUKOS SF, конструкция: 2 х 0,50 мм², оболочка: PVC 8,6 x 1,3 мм, цвет:  белый","м",2.99,0.18,3.52,271.51]
["462-0100-225","Кабель акустический плоский (параллельный) SC-FLUKOS SF, конструкция: 2 х 2,5 мм², оболочка: PVC 15,9 х 2,2 мм, цвет:  белый","м",5.49,0.18,6.48,499.83]
["485-0052-240","Кабель-мультикор акустический класса HIGH END SC-DUAL BLUE, конструкция: 2 х 4,0 мм², оболочка: S-PVC 15,8 мм, цвет:  синий прозрачный","м",23.83,0.18,28.12,2169.0100000000002]
["485-0052-440","Кабель-мультикор акустический класса HIGH END SC-QUADRA BLUE, конструкция: 4 х 4,0 мм², оболочка: PVC 14,5 мм, цвет:  синий прозрачный","м",28.1,0.18,33.159999999999997,2557.77]
["490-0051-1640","Кабель-мультикор акустический SC-ELEPHANT ROBUST SPM1640, конструкция: 16 х 4,0 мм², оболочка: PVC 20,5 мм, цвет:  черный","м",38.44,0.18,45.37,3499.58]
["490-0051-4025","Кабель-мультикор акустический SC-ELEPHANT SPM4025, конструкция: 4x4,0 мм² + 2x2,5 мм², оболочка: PVC 14,8 мм, цвет:  черный","м",11.53,0.18,13.61,1049.8]
["490-0051-415","Кабель-мультикор акустический SC-ELEPHANT SPM415, конструкция: 4 х 1,5 мм², оболочка: PVC 8,6 мм, цвет:  черный","м",3.81,0.18,4.5,347.1]
["490-0051-415F","Кабель-мультикор акустический SC-ELEPHANT SPM415 FRNC негорючий, конструкция: 4 х 1,5 мм², оболочка: FRNC 8,6 мм, цвет:  черный","м",4.37,0.18,5.16,398.01]
["490-0051-425","Кабель-мультикор акустический SC-ELEPHANT SPM425, конструкция: 4 х 2,5 мм², оболочка: PVC 10,2 мм, цвет:  черный","м",5.23,0.18,6.16,475.15]
["490-0051-425F","Кабель-мультикор акустический SC-ELEPHANT SPM425 FRNC негорючий, конструкция: 4 х 0,25 мм², оболочка: FRNC 9,0 мм, цвет:  черный","м",5.66,0.18,6.68,515.26]
["490-0051-440","Кабель-мультикор акустический SC-ELEPHANT ROBUST SPM440, конструкция: 4 х 4,0 мм², оболочка: PVC 11,0 мм, цвет:  черный","м",7.82,0.18,9.23,711.95]
["490-0051-440F","Кабель-мультикор акустический SC-ELEPHANT ROBUST SPM440 FRNC негорючий, конструкция: 4 х 4,0 мм², оболочка: FRNC 11,0 мм, цвет:  черный","м",9.66,0.18,11.4,879.33]
["490-0051-460F","Кабель-мультикор акустический SC-ELEPHANT ROBUST SPM460 FRNC негорючий, конструкция: 4 х 6,0 мм², оболочка: FRNC 13,2 мм, цвет:  черный","м",12.9,0.18,15.23,1174.75]
["490-0051-525","Кабель-мультикор акустический SC-ELEPHANT SPM525, конструкция: 5 х 2,5 мм², оболочка: PVC 11,5 мм, цвет:  черный","м",6.89,0.18,8.1300000000000008,627.1]
["490-0051-540","Кабель-мультикор акустический SC-ELEPHANT ROBUST SPM540, конструкция: 5 х 4,0 мм², оболочка: PVC 12,5 мм, цвет:  черный","м",10.27,0.18,12.13,935.64]
["490-0051-825F","Кабель-мультикор акустический SC-ELEPHANT SPM825 FRNC негорючий, конструкция: 8 х 2,5 мм², оболочка: FRNC 12,5 мм, цвет:  черный","м",10.24,0.18,12.1,933.32]
["490-0051-840F","Кабель-мультикор акустический SC-ELEPHANT SPM840 FRNC негорючий, конструкция: 8 х 4,0 мм², оболочка: FRNC 15,6 мм, цвет:  черный","м",15.95,0.18,18.82,1451.66]
["490-0155-440E30","Кабель-мультикор акустический SC-ELEPHANT ROBUST SPM440 E30 негорючий, конструкция: 4 х 4,0 мм², оболочка: FRNC 12,8 мм, цвет:  черный","м",10.52,0.18,12.4,956.46]
["490-0251-440","Кабель-мультикор акустический SC-ELEPHANT ROBUST SPM440 PUR, конструкция: 4 х 4,0 мм², оболочка: PUR 11,0 мм, цвет:  черный","м",10.06,0.18,11.89,917.12]
["490-0351-825","Кабель-мультикор акустический SC-ELEPHANT SPM825, конструкция: 8 х 2,5 мм², оболочка: PVC 15,3 мм, цвет:  черный","м",11.52,0.18,13.58,1047.48]
["490-0351-840","Кабель-мультикор акустический SC-ELEPHANT ROBUST SPM840, конструкция: 8 х 4,0 мм², оболочка: PVC 18,5 мм, цвет:  черный","м",17.309999999999999,0.18,20.420000000000002,1575.08]
["500-0051-1","Кабель комбинированный SC-MONOLITH POWER DMX 1, конструкция: 1x(2x0,25 мм²) (AES/EBU, DMX) + 1х(3x1,5 мм²) (Питание), оболочка: PVC 12,4 мм, цвет:  черный","м",8.74,0.18,10.3,794.48]
["500-0051-2","Кабель комбинированный SC-MONOLITH POWER DMX 2, конструкция: 2х(2х0,14 мм²) (AES&EBU, DMX) + 1х(3 х1,5 мм²) (Питание), оболочка: PVC 12,3 мм, цвет:  черный","м",10.35,0.18,12.22,942.58]
["500-0051-4","Кабель комбинированный SC-MONOLITH POWER DMX 4, конструкция: 4x(2x0,14 мм²) (AES/EBU, DMX) + 1х(3x1,5 мм²) (Питание), оболочка: PVC 13,2 мм, цвет:  черный","м",13.61,0.18,16.04,1237.23]
["500-0101-1","Кабель комбинированный SC-KOLORITH 1, конструкция: 1х(2х0,35 мм²) (Аудио) + 2х2,0 мм² (Питание), оболочка: PVC 7,4 мм, цвет:  черный","м",5.8,0.18,6.85,528.37]
["500-0101-1F","Кабель комбинированный SC-KOLORITH 1 FRNC негорючий, конструкция: 1х(2х0,35 мм²) (Аудио) + 2х2,0 мм² (Питание), оболочка: FRNC 7,4 мм, цвет:  черный","м",6.96,0.18,8.1999999999999993,632.5]
["500-0111-1","Кабель комбинированный SC-KOLORITH MINI, конструкция: 2х0,25 мм² (Аудио) + 2х1,0 мм² (Питание), оболочка: PVC 6,5 мм, цвет:  черный","м",4.1100000000000003,0.18,4.8499999999999996,374.1]
["500-0111-1F","Кабель комбинированный SC-KOLORITH MINI FRNC негорючий, конструкция: 2х0,25 мм² (Аудио) + 2х1,0 мм² (Питание), оболочка: FRNC 6,5 мм, цвет:  черный","м",4.5199999999999996,0.18,5.35,412.67]
["500-0121-1","Кабель управления SC-BUS Control cable для BUS-систем AES/EBU 110 Ом, конструкция: 2х1,00 мм² + 2х0,35 мм², оболочка: PVC 9,3 мм, цвет:  черный","м",3.26,0.18,3.85,296.97000000000003]
["500-0141-1","Кабель комбинированный SC-MONOCAT 111C, конструкция: 1х(4x2x0,14 мм²) (CAT) + 1х(2х0,22 мм²) (DMX) + 3x2,5 мм² (Питание), оболочка: PVC 16,0 мм, цвет:  черный","м",13.15,0.18,15.52,1197.1199999999999]
["500-0151-1","Кабель комбинированный SC-MONOCAT 110C, конструкция: 1х(4x2x0,14 мм²) (CAT) + 3 x2,5 мм² (Питание), оболочка: PVC 13,8 мм, цвет:  черный","м",9.08,0.18,10.71,826.11]
["500-0161-2","Кабель комбинированный SC-MONOCAT 202, конструкция: 2x(4x2x0,14 мм²) (CAT) + 2x(2x0,25 мм²) (DMX), оболочка: PVC 15,6 мм, цвет:  черный","м",23.61,0.18,27.85,2148.19]
["500-0191-2","Кабель комбинированный SC-MONOCAT POWER 212, конструкция: 2x(4x2x0,57 мм) (CAT) + 2x(2x0,25 мм²) (DMX) + 1х(3х2,5 мм²) (Питание), оболочка: PVC 21,8 мм, цвет:  черный","м",27.33,0.18,32.26,2488.35]
["500-0191-4","Кабель комбинированный SC-MONOCAT POWER 414, конструкция: 4x(4x2x0,51 мм) (CAT) + 4x(2x0,25 мм²) (DMX) + 1х(3х2,5 мм²) (Питание), оболочка: PVC 27,0 мм, цвет:  черный","м",46.93,0.18,55.37,4270.92]
["500-0240AQ","Кабель комбинированный водонепроницаемый SC-AQUA MARINEX POWER+DMX без галогенов, конструкция: 1x(2x0,14 мм²) (AES/EBU, DMX) + 3x1,5 мм² (Питание), оболочка: PUR-SR 9,4 мм, цвет:  белый","м",10.28,0.18,12.13,935.64]
["500-0241AQ","Кабель комбинированный водонепроницаемый SC-AQUA MARINEX POWER+DMX без галогенов, конструкция: 1x(2x0,14 мм²) (AES/EBU, DMX) + 3x1,5 мм² (Питание), оболочка: PUR-SR 9,4 мм, цвет:  черный","м",10.09,0.18,11.91,918.67]
["500-0281-2","Кабель комбинированный SC-MONOLITH POWER DMX 2 HV, конструкция: 2x(2x0,25 мм²) (AES/EBU, DMX) + 1х(3x2,5 мм²) (Питание), оболочка: PVC 16,0 мм, цвет:  черный","м",13.87,0.18,16.37,1262.69]
["500-0281-4","Кабель комбинированный SC-MONOLITH POWER DMX 4 HV, конструкция: 4x(2x0,25 мм²) (AES/EBU, DMX) + 1х(3x2,5 мм²) (Питание), оболочка: PVC 18,0 мм, цвет:  черный","м",19.350000000000001,0.18,22.83,1760.97]
["500-0281-8","Кабель комбинированный SC-MONOLITH POWER DMX 8 HV, конструкция: 8x(2x0,14 мм²) (AES/EBU, DMX) + 1х(3x2,5 мм²) (Питание), оболочка: PVC 17,4 мм, цвет:  черный","м",19.43,0.18,22.91,1767.14]
["500-0406","Кабель микрофонный / патч-корд SC-ISOPOD SO-F22D AES/EBU 110 Ом, конструкция: 2 х 0,22 мм², оболочка: PVC 3,3 мм, цвет:  серый","м",1.1299999999999999,0.18,1.33,102.59]
["501-0171-8","Кабель комбинированный SC-MONOCAT POWER 810, конструкция: 8x(4x2x0,14 мм²) (CAT) + 1х(3 x2,5 мм²) (Питание), оболочка: PUR 26,4 мм, цвет:  черный","м",46.3,0.18,54.65,4215.38]
["501-0191-2","Кабель комбинированный SC-MONOCAT POWER 212, конструкция: 1х(2x4x0,57 мм) (CAT) + 1х(2х0,25 мм²) (DMX) + 1х(3x2,5 мм²) (Питание), оболочка: PUR 21,8 мм, цвет:  черный","м",31.98,0.18,37.72,2909.5]
["502-0051-1","Кабель комбинированный SC-MONOLITH POWER DMX 1 COMPACT, конструкция: 1x(2x0,14 мм²) (AES/EBU, DMX) + 3x1,5 мм² (Питание), оболочка: PVC 9,5 мм, цвет:  черный","м",6.93,0.18,8.1999999999999993,632.5]
["520-0051","Кабель цифровой AES/EBU & DMX SC-BINARY 234 AES/EBU MKII, конструкция: 2 х 0,34 мм², оболочка: PVC 6,2 мм, цвет:  черный","м",2.39,0.18,2.8,215.98]
["520-0051F","Кабель цифровой AES/EBU & DMX SC-BINARY 234 AES/EBU MKII негорючий, конструкция: 2 х 0,34 мм², оболочка: FRNC 5,6 мм, цвет:  черный","м",2.74,0.18,3.24,249.91]
["520-0052","Кабель цифровой AES/EBU & DMX SC-BINARY 234 AES/EBU MKII, конструкция: 2 х 0,34 мм², оболочка: PVC 6,2 мм, цвет:  синий","м",2.39,0.18,2.8,215.98]
["520-0056","Кабель цифровой AES/EBU & DMX SC-BINARY 234 AES/EBU MKII, конструкция: 2 х 0,34 мм², оболочка: PVC 6,2 мм, цвет:  серый","м",2.39,0.18,2.8,215.98]
["520-0101","Кабель цифровой AES/EBU & DMX (патч-корд) SC-SEMICOLON 2 AES/EBU, конструкция: 2 х 0,22 мм², оболочка: PVC 5,0 мм, цвет:  черный","м",1.78,0.18,2.11,162.75]
["520-0102","Кабель цифровой AES/EBU & DMX (патч-корд) SC-SEMICOLON 2 AES/EBU PATCH, конструкция: 2 х 0,22 мм², оболочка: PVC 5,0 мм, цвет:  синий","м",1.78,0.18,2.11,{"$f":"ROUND(F334*$B$6*(1+0.02),2)","v":162.75}]
["520-0102F","Кабель цифровой AES/EBU & DMX (патч-корд) SC-SEMICOLON 2 AES/EBU PATCH негорючий, конструкция: 2 х 0,22 мм², оболочка: FRNC 5,0 мм, цвет:  синий","м",2.35,0.18,2.76,212.89]
["520-0140","Кабель цифровой AES/EBU & DMX (патч-корд) SC-SEMICOLON 4 AES/EBU PATCH 4-х жильный, конструкция: 4 х 0,14 мм², оболочка: PVC 5,2 мм, цвет:  белый","м",2.89,0.18,3.39,261.48]
["520-0141","Кабель цифровой AES/EBU & DMX (патч-корд) SC-SEMICOLON 4 AES/EBU PATCH, конструкция: 4 х 0,42 мм, оболочка: PVC 5,2 мм, цвет:  черный","м",2.89,0.18,3.39,261.48]
["521-0051","Кабель цифровой AES/EBU & DMX SC-BINARY 234 AES/EBU MKII, конструкция: 2 х 0,34 мм², оболочка: PUR-BLEND 6,2 мм, цвет:  черный","м",2.85,0.18,3.35,258.39999999999998]
["521-0141","Кабель цифровой AES/EBU & DMX (патч-корд) SC-SEMICOLON 4 AES/EBU PATCH негорючий 4-х жильный, конструкция: 4 х 0,14 мм², оболочка: SOFT PUR FRNC 5,2 мм, цвет:  черный","м",3.22,0.18,3.78,291.57]
["540-0051","Кабель цифровой AES/EBU & DMX двупарный SC-BINARY 434 DMX512 двупарный, конструкция: 4 х 0,34 мм², оболочка: PVC 7,0 мм, цвет:  черный","м",3.09,0.18,3.65,281.54000000000002]
["540-0051F","Кабель цифровой AES/EBU & DMX двупарный SC-BINARY 434 DMX512 FRNC негорючий, конструкция: 4 х 0,34 мм², оболочка: FRNC 7,0 мм, цвет:  черный","м",3.7,0.18,4.37,337.08]
["540-0051PE","Кабель цифровой AES/EBU & DMX двупарный SC-BINARY 434 DMX512 двупарный, конструкция: 4 х 0,34 мм², оболочка: PE 7,0 мм, цвет:  черный","м",3.87,0.18,4.57,352.5]
["540-0056","Кабель цифровой AES/EBU & DMX двупарный SC-BINARY 434 DMX512, конструкция: 4 х 0,34 мм², оболочка: PVC 7,0 мм, цвет:  серый","м",3.09,0.18,3.65,281.54000000000002]
["541-0051","Кабель цифровой AES/EBU & DMX двупарный SC-BINARY 434 DMX512, конструкция: 4 х 0,34 мм², оболочка: PUR-BLEND 7,0 мм, цвет:  черный","м",3.61,0.18,4.26,328.59]
["542-0051","Кабель цифровой AES/EBU & DMX двупарный SC-BINARY 422 TP DMX512, конструкция: 4 х 0,22 мм², оболочка: S-PVC 8,0 мм, цвет:  черный","м",3.76,0.18,4.43,341.7]
["542-0052","Кабель цифровой AES/EBU & DMX двупарный SC-BINARY 422 TP DMX512, конструкция: 4 х 0,22 мм², оболочка: S-PVC 8,0 мм, цвет:  синий","м",3.76,0.18,4.43,341.7]
["580-0056","Кабель \"Витая пара\" 5-ой категории SC-MERCATOR CAT.5E INSTALL F/UTP, конструкция: 4 х 2 х 0,51 мм, оболочка: PVC 6,1 мм, цвет:  серый","м",1.42,0.18,1.68,129.59]
["580-0056F","Кабель \"Витая пара\" 5-ой категории SC-MERCATOR CAT.5E INSTALL F/UTP негорючий, конструкция: 4 х 2 х 0,51 мм, оболочка: FRNC 6,4 мм, цвет:  серый","м",1.44,0.18,1.69,130.36000000000001]
["580-0106","Кабель \"Витая пара\" 5-ой категории SC-MERCATOR CAT.5E PATCH F/UTP, конструкция: 4 х 2 х 0,14 мм², оболочка: PVC 5,7 мм, цвет:  серый","м",1.29,0.18,1.52,117.24]
["580-0201","Кабель \"Витая пара\" 6-ой категории SC-MERCATOR CAT.6 PUR SUPERFLEX S/UTP негорючий, конструкция: 4 х 2 х 0,57 мм, оболочка: PUR 8,0 мм, цвет:  черный","м",3.92,0.18,4.63,357.13]
["580-0241AQ","Кабель \"Витая пара\" 6-ой категории водонепроницаемый SC-AQUA MARINEX CAT.6 PUR-SR без галогенов SF/UTP, конструкция: 4 х 2 х 0,51 мм, оболочка: PUR-SR 8,3 мм, цвет:  черный","м",15.5,0.18,18.3,1411.55]
["580-0295F","Кабель \"Витая пара\" 7-ой категории SC-MERCATOR CAT.7 INSTALL DUPLEX S/FTP негорючий, конструкция: 2х(4х2х0,57 мм), оболочка: FRNC 2,0 x 8,5 мм, цвет:  оранжевый","м",5.71,0.18,6.74,519.88]
["580-0306F","Кабель \"Витая пара\" 7-ой категории SC-MERCATOR CAT.7 PATCH S/FTP негорючий, конструкция: 4 х 2 х 0,14 мм², оболочка: FRNC 6,5 мм, цвет:  серый","м",2.02,0.18,2.37,182.81]
["580-0311-04","Кабель \"Витая пара\" 7-ой категории SC-MERCATOR CAT.7 QUAD S/FTP, конструкция: 4 x (4x2x0,51 мм), оболочка: PVC 20,8 мм, цвет:  черный","м",20.05,0.18,23.66,1824.99]
["580-0465","Кабель \"Витая пара\" 6-ой категории SC-MERCATOR CAT.6a F/UTP негорючий, конструкция: 4 х 2 х 0,57 мм, оболочка: FRNC 7,1 мм, цвет:  оранжевый","м",2.13,0.18,2.52,194.38]
["581-0051","Кабель \"Витая пара\" 5-ой категории SC-MERCATOR CAT.5 PUR SF/UTP негорючий, конструкция: 4 х 2 х 0,15 мм², оболочка: PUR-FRNC 6,2 мм, цвет:  черный","м",4.53,0.18,5.34,411.9]
["581-0052","Кабель \"Витая пара\" 5-ой категории SC-MERCATOR CAT.5 PUR SF/UTP негорючий, конструкция: 4 х 2 х 0,15 мм², оболочка: PUR-FRNC 6,2 мм, цвет:  синий","м",4.53,0.18,5.34,411.9]
["581-0071","Кабель \"Витая пара\" 7-ой категории SC-MERCATOR CAT.7 PUR S/FTP негорючий, конструкция: 4 х 2 х 0,14 мм², оболочка: PUR 6,5 мм, цвет:  черный","м",4.5599999999999996,0.18,5.39,415.75]
["581-0076","Кабель \"Витая пара\" 7-ой категории SC-MERCATOR CAT.7 PUR S/FTP негорючий, конструкция: 4 х 2 х 0,14 мм², оболочка: PUR 6,5 мм, цвет:  серый","м",4.5599999999999996,0.18,5.39,415.75]
["581-0078","Кабель \"Витая пара\" 7-ой категории SC-MERCATOR CAT.7 PUR S/FTP негорючий, конструкция: 4 х 2 х 0,14 мм², оболочка: PUR 6,5 мм, цвет:  фиолетовый","м",4.5599999999999996,0.18,5.39,415.75]
["581-0214","Кабель \"Витая пара\" KVM удлинитель (extender) SC-MERCATOR EXTEND U/UTP, конструкция: 4 х 2 х 0,23 мм², оболочка: PVC 6,6 мм, цвет:  зеленый","м",2.82,0.18,3.32,256.08999999999997]
["581-0251","Кабель \"Витая пара\" 7-ой категории SC-MERCATOR CAT.7 PUR XL S/FTP негорючий, конструкция: 4 х 2 х 0,26 мм², оболочка: PUR 8,5 мм, цвет:  черный","м",6.5,0.18,7.66,590.85]
["590-0092","Кабель оптоволоконный многомодовый / Полимерное оптоволокно POF 980/1000 мкм SC-OCTOPUS simplex, количество волокон: 1, оболочка: S-PVC 6,0 мм, цвет:  синий","м",5.2,0.18,6.13,472.83]
["590-0103","Кабель оптоволоконный многомодовый / Полимерное оптоволокно POF 980/1000 мкм SC-OCTOPUS duplex, количество волокон: 2, оболочка: PUR 6,0 мм, цвет:  красный","м",13.67,0.18,16.149999999999999,1245.72]
["590-0111-04-OM3","Кабель оптоволоконный многомодовый 50/125 мкм SC-OCTOPUS MARINEX OM3 водонепроницаемый, количество волокон: 4, оболочка: PUR 8,5 мм, цвет:  черный","м",7.52,0.18,8.89,685.72]
["590-0311-04-OM3","Кабель оптоволоконный многомодовый 50/125 мкм SC-OCTOPUS-G OM3 негорючий, количество волокон: 4, оболочка: PUR-FRNC 5,5 мм, цвет:  черный","м",6.39,0.18,7.54,581.59]
["590-0311-12-OM3","Кабель оптоволоконный многомодовый 50/125 мкм SC-OCTOPUS-G OM3 негорючий, количество волокон: 12, оболочка: PUR-FRNC 7,4 мм, цвет:  черный","м",9.7799999999999994,0.18,11.54,890.13]
["590-0321-04","Кабель оптоволоконный одномодовый 9/125 мкм SC-OCTOPUS-G OS2 негорючий, количество волокон: 4, оболочка: PUR-FRNC 5,5 мм, цвет:  черный","м",6.09,0.18,7.2,555.37]
["590-0321-12","Кабель оптоволоконный одномодовый 9/125 мкм SC-OCTOPUS-G OS2 негорючий, количество волокон: 12, оболочка: PUR-FRNC 7,4 мм, цвет:  черный","м",7.57,0.18,8.93,688.81]
["590-0411-04","Кабель оптоволоконный многомодовый 50/125 мкм SC-OCTOPUS-G OM2, количество волокон: 4, оболочка: PE 7,0 мм, цвет:  черный","м",2.2799999999999998,0.18,2.7,208.26]
["590-0411-04-OM3","Кабель оптоволоконный многомодовый 50/125 мкм SC-OCTOPUS-G OM3, количество волокон: 4, оболочка: PE 7,0 мм, цвет:  черный","м",3.28,0.18,3.87,298.51]
["590-0411-04-OM4","Кабель оптоволоконный многомодовый 50/125 мкм SC-OCTOPUS-G OM4, количество волокон: 4, оболочка: PE 7,0 мм, цвет:  черный","м",4.3499999999999996,0.18,5.13,395.7]
["590-0411-08","Кабель оптоволоконный многомодовый 50/125 мкм SC-OCTOPUS-G OM2, количество волокон: 8, оболочка: PE 7,2 мм, цвет:  черный","м",2.98,0.18,3.52,271.51]
["590-0411-08-OM3","Кабель оптоволоконный многомодовый 50/125 мкм SC-OCTOPUS-G OM3, количество волокон: 8, оболочка: PE 7,2 мм, цвет:  черный","м",3.85,0.18,4.5199999999999996,348.65]
["590-0411-12","Кабель оптоволоконный многомодовый 50/125 мкм SC-OCTOPUS-G OM2, количество волокон: 12, оболочка: PE 7,2 мм, цвет:  черный","м",3.11,0.18,3.67,283.08]
["590-0411-12-OM3","Кабель оптоволоконный многомодовый 50/125 мкм SC-OCTOPUS-G OM3, количество волокон: 12, оболочка: PE 7,2 мм, цвет:  черный","м",5.24,0.18,6.2,478.23]
["590-0411-24","Кабель оптоволоконный многомодовый 50/125 мкм SC-OCTOPUS-G OM2, количество волокон: 24, оболочка: PE 7,6 мм, цвет:  черный","м",5.24,0.18,6.17,475.92]
["590-0411-24-OM3","Кабель оптоволоконный многомодовый 50/125 мкм SC-OCTOPUS-G OM3, количество волокон: 24, оболочка: PE 7,6 мм, цвет:  черный","м",8.8699999999999992,0.18,10.48,808.37]
["590-0421-04","Кабель оптоволоконный одномодовый 9/125 мкм SC-OCTOPUS-G OS2, количество волокон: 4, оболочка: PE 7,0 мм, цвет:  черный","м",1.72,0.18,2.02,155.81]
["590-0421-08","Кабель оптоволоконный одномодовый 9/125 мкм SC-OCTOPUS-G OS2, количество волокон: 8, оболочка: PE 7,0 мм, цвет:  черный","м",1.74,0.18,2.0699999999999998,159.66999999999999]
["590-0421-12","Кабель оптоволоконный одномодовый 9/125 мкм SC-OCTOPUS-G OS2, количество волокон: 12, оболочка: PE 7,0 мм, цвет:  черный","м",1.91,0.18,2.2599999999999998,174.32]
["590-0421-24","Кабель оптоволоконный одномодовый 9/125 мкм SC-OCTOPUS-G OS2, количество волокон: 24, оболочка: PE 7,6 мм, цвет:  черный","м",2.7,0.18,3.2,246.83]
["590-0511-04","Кабель оптоволоконный многомодовый 50/125 мкм SC-OCTOPUS-G OM2 негорючий, количество волокон: 4, оболочка: FRNC / LSZH 7,0 мм, цвет:  черный","м",1.83,0.18,2.15,165.84]
["590-0511-04-OM3","Кабель оптоволоконный многомодовый 50/125 мкм SC-OCTOPUS G OM3 негорючий, количество волокон: 4, оболочка: FRNC / LSZH 7,0 мм, цвет:  черный","м",3.63,0.18,4.3,331.68]
["590-0511-04-OM4","Кабель оптоволоконный многомодовый 50/125 мкм SC-OCTOPUS-G OM4 негорючий, количество волокон: 4, оболочка: FRNC / LSZH 7,0 мм, цвет:  черный","м",3.61,0.18,4.26,328.59]
["590-0511-08","Кабель оптоволоконный многомодовый 50/125 мкм SC-OCTOPUS-G OM2 негорючий, количество волокон: 8, оболочка: FRNC / LSZH 7,0 мм, цвет:  черный","м",2.2200000000000002,0.18,2.61,201.32]
["590-0511-08-OM3","Кабель оптоволоконный многомодовый 50/125 мкм SC-OCTOPUS-G OM3 негорючий, количество волокон: 8, оболочка: FRNC / LSZH 7,0 мм, цвет:  черный","м",3.63,0.18,4.28,330.13]
["590-0511-08-OM4","Кабель оптоволоконный многомодовый 50/125 мкм SC-OCTOPUS-G OM4 негорючий, количество волокон: 8, оболочка: FRNC / LSZH 7,0 мм, цвет:  черный","м",4.91,0.18,5.78,445.84]
["590-0511-12","Кабель оптоволоконный многомодовый 50/125 мкм SC-OCTOPUS-G OM2 негорючий, количество волокон: 12, оболочка: FRNC / LSZH 7,0 мм, цвет:  черный","м",2.61,0.18,3.07,236.8]
["590-0511-12-OM3","Кабель оптоволоконный многомодовый 50/125 мкм SC-OCTOPUS-G OM3 негорючий, количество волокон: 12, оболочка: FRNC / LSZH 7,0 мм, цвет:  черный","м",4.3499999999999996,0.18,5.13,395.7]
["590-0511-12-OM4","Кабель оптоволоконный многомодовый 50/125 мкм SC-OCTOPUS-G OM4 негорючий, количество волокон: 12, оболочка: FRNC / LSZH 7,0 мм, цвет:  черный","м",6.13,0.18,7.24,558.45000000000005]
["590-0511-24","Кабель оптоволоконный многомодовый 50/125 мкм SC-OCTOPUS-G OM2 негорючий, количество волокон: 24, оболочка: FRNC / LSZH 7,6 мм, цвет:  черный","м",4.46,0.18,5.26,405.73]
["590-0511-24-OM3","Кабель оптоволоконный многомодовый 50/125 мкм SC-OCTOPUS-G OM3 негорючий, количество волокон: 24, оболочка: FRNC / LSZH 7,6 мм, цвет:  черный","м",7.22,0.18,8.52,657.18]
["590-0511-24-OM4","Кабель оптоволоконный многомодовый 50/125 мкм SC-OCTOPUS-G OM4 негорючий, количество волокон: 24, оболочка: FRNC / LSZH 7,6 мм, цвет:  черный","м",11.76,0.18,13.89,1071.3900000000001]
["590-0511-96","Кабель оптоволоконный многомодовый 50/125 мкм SC-OCTOPUS-G OM2 негорючий, количество волокон: 96, оболочка: FRNC / LSZH 12,8 мм, цвет:  черный","м",18,0.18,21.24,1638.33]
["590-0511-96-OM3","Кабель оптоволоконный многомодовый 50/125 мкм SC-OCTOPUS-G OM3 негорючий, количество волокон: 96, оболочка: FRNC / LSZH 12,8 мм, цвет:  черный","м",22.65,0.18,26.72,2061.02]
["590-0521-04","Кабель оптоволоконный одномодовый 9/125 мкм SC-OCTOPUS-G OS2 негорючий, количество волокон: 4, оболочка: FRNC / LSZH 7,0 мм, цвет:  черный","м",1.85,0.18,2.17,167.38]
["590-0521-12","Кабель оптоволоконный одномодовый 9/125 мкм SC-OCTOPUS-G OS2 негорючий, количество волокон: 12, оболочка: FRNC / LSZH 7,0 мм, цвет:  черный","м",1.93,0.18,2.2799999999999998,{"$f":"ROUND(F398*$B$6*(1+0.02),2)","v":175.87}]
["590-0521-24","Кабель оптоволоконный одномодовый 9/125 мкм SC-OCTOPUS-G OS2 негорючий, количество волокон: 24, оболочка: FRNC / LSZH 7,6 мм, цвет:  черный","м",2.83,0.18,3.35,258.39999999999998]
["590-0521-48","Кабель оптоволоконный одномодовый 9/125 мкм SC-OCTOPUS-G OS2 негорючий, количество волокон: 48, оболочка: FRNC / LSZH 11,0 мм, цвет:  черный","м",5.33,0.18,6.28,484.4]
["590-0521-96","Кабель оптоволоконный одномодовый 9/125 мкм SC-OCTOPUS-G OS2 негорючий, количество волокон: 96, оболочка: FRNC / LSZH 12,8 мм, цвет:  черный","м",8.2799999999999994,0.18,9.7799999999999994,754.37]
["590-0712-02-OM3","Кабель оптоволоконный многомодовый 50/125 мкм SC-OCTOPUS-G OM3 негорючий, количество волокон: 2, оболочка: FRNC / LSZH 5,8 мм, цвет:  голубой (aqua)","м",2.15,0.18,2.54,195.92]
["590-0712-04-OM3","Кабель оптоволоконный многомодовый 50/125 мкм SC-OCTOPUS-G OM3 негорючий, количество волокон: 4, оболочка: FRNC / LSZH 6,8 мм, цвет:  голубой (aqua)","м",3.65,0.18,4.3,331.68]
["590-0712-08-OM3","Кабель оптоволоконный многомодовый 50/125 мкм SC-OCTOPUS-G OM3 негорючий, количество волокон: 8, оболочка: FRNC / LSZH 9,1 мм, цвет:  голубой (aqua)","м",8.17,0.18,9.6300000000000008,742.8]
["590-0712-12-OM3","Кабель оптоволоконный многомодовый 50/125 мкм SC-OCTOPUS-G OM3 негорючий, количество волокон: 12, оболочка: FRNC / LSZH 11,6 мм, цвет:  голубой (aqua)","м",13.07,0.18,15.41,1188.6400000000001]
["590-0715-08","Кабель оптоволоконный многомодовый 50/125 мкм SC-OCTOPUS-G OM2 негорючий, количество волокон: 8, оболочка: FRNC / LSZH 9,1 мм, цвет:  оранжевый","м",6.83,0.18,8.07,622.47]
["590-0727-02","Кабель оптоволоконный одномодовый 9/125 мкм SC-OCTOPUS-G OS2 негорючий, количество волокон: 2, оболочка: LSZH 3,9 x 6,8 мм, цвет:  желтый","м",1.89,0.18,2.2400000000000002,172.78]
["590-0727-04","Кабель оптоволоконный одномодовый 9/125 мкм SC-OCTOPUS-G OS2 негорючий, количество волокон: 4, оболочка: LSZH 8,5 мм, цвет:  желтый","м",4.57,0.18,5.37,414.21]
["590-0727-08","Кабель оптоволоконный одномодовый 9/125 мкм SC-OCTOPUS-G OS2 негорючий, количество волокон: 8, оболочка: LSZH 12,1 мм, цвет:  желтый","м",7.24,0.18,8.5399999999999991,658.73]
["590-0727-12","Кабель оптоволоконный одномодовый 9/125 мкм SC-OCTOPUS-G OS2 негорючий, количество волокон: 12, оболочка: LSZH 15,8 мм, цвет:  оранжевый","м",12.93,0.18,15.26,1177.07]
["590-0812-04-OM3","Кабель оптоволоконный многомодовый 50/125 мкм SC-OCTOPUS-G OM3 негорючий, количество волокон: 4, оболочка: FRNC / LSZH 4,3 мм, цвет:  голубой (aqua)","м",2.15,0.18,2.54,195.92]
["590-0812-08-OM3","Кабель оптоволоконный многомодовый 50/125 мкм SC-OCTOPUS-G OM3 негорючий, количество волокон: 8, оболочка: FRNC / LSZH 5,2 мм, цвет:  голубой (aqua)","м",4.1100000000000003,0.18,4.8499999999999996,374.1]
["590-0815-04","Кабель оптоволоконный многомодовый 50/125 мкм SC-OCTOPUS-G OM2 негорючий, количество волокон: 4, оболочка: FRNC / LSZH 4,3 мм, цвет:  оранжевый","м",1.61,0.18,1.89,145.78]
["591-2241","Кабель комбинированный SC-OCTOPUS HYBRID 224 TPU, конструкция: 2x9/125H (Оптоволокно) + 4x0,50 мм² (Питание)+2x0,22 мм² (Управление), оболочка: TPE 9,2 мм, цвет:  черный","м",13.7,0.18,16.149999999999999,1245.72]
["591-2441","Кабель комбинированный SC-OCTOPUS-HYBRID 244 PUR BROADCAST CAMERA CABLE, конструкция: 2х9/125 мкм (Оптоволокно) + 2х(2х0,22 мм²) (Управление) + 4х0,5 мм² (Питание), оболочка: PUR 9,2 мм, цвет:  черный","м",11.74,0.18,13.85,1068.31]
["591-4431","Кабель комбинированный SC-OCTOPUS-HYBRID 443 PUR BROADCAST-CABLE, конструкция: 4х50/125 мкм (Оптоволокно) + 2х(2х0,22 мм²) (Аудио/Управление) + 3х2.5 мм² (Питание], оболочка: PUR 13,4 мм, цвет:  черный","м",14.85,0.18,17.52,1351.39]
["600-0051LC","Кабель коаксиальный видео 600-0051LC 0.6/3.7 75 Ом CPR версия, конструкция: 0,60/3,70 (1 х 0,60 мм) AWG23, оболочка: PVC 6,2 мм, цвет:  зеленый","м",1.83,0.18,2.15,165.84]
["600-0051M","Кабель коаксиальный видео SC-FOCUSLINE M HIGHFLEX 0.6/3.7 75 Ом, конструкция: 0,60/3,70 (1 х 0,60 мм) AWG23, оболочка: PVC 6,2 мм, цвет:  черный","м",1.83,0.18,2.15,165.84]
["600-0051MS","Кабель коаксиальный видео SC-FOCUSLINE MS HIGHFLEX 0.6/3.7 75 Ом Broadcast, конструкция: 0,60/3,70 (1 х 0,60 мм) AWG23, оболочка: FR-PVC 6,2 мм, цвет:  черный","м",2.15,0.18,2.52,194.38]
["600-0054L","Кабель коаксиальный видео SC-FOCUSLINE L HIGHFLEX 0.6/3.7 75 Ом, конструкция: 0,60/3,70 (1 х 0,60 мм) AWG23, оболочка: PVC 6,2 мм, цвет:  зеленый","м",1.83,0.18,2.15,165.84]
["600-0054MS","Кабель коаксиальный видео SC-FOCUSLINE MS HIGHFLEX 0.6/3.7 75 Ом Broadcast, конструкция: 0,60/3,70 (1 х 0,60 мм) AWG23, оболочка: FR-PVC 6,2 мм, цвет:  зеленый","м",2.15,0.18,2.52,194.38]
["600-0054MSF","Кабель коаксиальный видео SC-FOCUSLINE MSF HIGHFLEX 0.6/3.7 75 Ом Broadcast негорючий, конструкция: 0,60/3,70 (1 х 0,60 мм) AWG23, оболочка: FRNC 6,2 мм, цвет:  зеленый","м",2.2799999999999998,0.18,2.7,208.26]
["600-0071L","Кабель коаксиальный видео SC-FOCUSLINE PUR 0.75L/3.4 75 Ом, конструкция: 0,67/3,40 (1 х 0,67 мм) AWG22, оболочка: PUR 5,8 мм, цвет:  черный","м",2.93,0.18,3.48,268.43]
["600-0144","Кабель коаксиальный видео SC-RG CLASSIC BROADCAST 1.0/4.8 75 Ом HD-SDI, конструкция: 1,00/4,80 (1 х 1,00 мм) AWG18, оболочка: PVC 7,1 мм, цвет:  зеленый","м",2.78,0.18,3.28,253]
["600-0144F","Кабель коаксиальный видео SC-RG CLASSIC BROADCAST 1.0/4.8 75 Ом HD-SDI негорючий, конструкция: 1,00/4,80 (1 х 1,00 мм) AWG18, оболочка: FRNC 7,1 мм, цвет:  зеленый","м",3.43,0.18,4.07,313.94]
["600-0154","Кабель коаксиальный видео SC-VISIONLINE 1.0/6.6 75 Ом, конструкция: 1,00/6,30 (1 х 1,00 мм) AWG18, оболочка: PVC 9,1 мм, цвет:  зеленый","м",4,0.18,4.72,364.07]
["600-0161","Кабель коаксиальный видео SC-VECTOR (RCB) 0.8/3.7 75 Ом HD-SDI, конструкция: 0,80/3,70 (1 х 0,80 мм) AWG20, оболочка: PVC 6,0 мм, цвет:  черный","м",1.78,0.18,2.11,162.75]
["600-0162","Кабель коаксиальный видео SC-VECTOR (RCB) 0.8/3.7 75 Ом HD-SDI, конструкция: 0,80/3,70 (1 х 0,80 мм) AWG20, оболочка: PVC 6,0 мм, цвет:  синий","м",1.78,0.18,2.11,162.75]
["600-0162-02","Кабель коаксиальный видео мультикор SC-VECTOR (RCB) 0.8/3.7 75 Ом HD-SDI, конструкция: 0,80/3,70 (2 х 0,80 мм) AWG20, оболочка: PVC 15,0 мм, цвет:  синий","м",7.02,0.18,8.2799999999999994,638.66999999999996]
["600-0162-04","Кабель коаксиальный видео мультикор SC-VECTOR (RCB) 75 Ом HD-SDI, конструкция: 0,80/3,70 (4 х 0,80 мм) AWG20, оболочка: PVC 17,0 мм, цвет:  синий","м",12.3,0.18,14.52,1119.99]
["600-0162F","Кабель коаксиальный видео SC-VECTOR (RCB) 0.8/3.7 75 Ом HD-SDI негорючий, конструкция: 0,80/3,70 (1 х 0,80 мм) AWG20, оболочка: FRNC 6,0 мм, цвет:  синий","м",1.93,0.18,2.2799999999999998,175.87]
["600-0164","Кабель коаксиальный видео SC-VECTOR (RCB) 0.8/3.7 75 Ом HD-SDI, конструкция: 0,80/3,70 (1 х 0,80 мм) AWG20, оболочка: PVC 6,0 мм, цвет:  зеленый","м",1.78,0.18,2.11,162.75]
["600-0174","Кабель коаксиальный видео SC-VECTOR PLUS 1.2L/5.0 75 Ом HD-SDI, конструкция: 1,06/5,00 (1 х 1,06 мм) AWG18, оболочка: PVC 6,95 мм, цвет:  зеленый","м",2.52,0.18,2.98,229.86]
["600-0174-05","Кабель коаксиальный видео мультикор SC-VECTOR PLUS 1.2L/5.0 75 Ом HD-SDI, конструкция: 1,06/5,00 (5 х 1,06 мм) AWG18, оболочка: PVC 22,1 мм, цвет:  зеленый","м",20.350000000000001,0.18,24.02,1852.76]
["600-0174-05F","Кабель коаксиальный видео мультикор SC-VECTOR PLUS 1.2L/5.0 75 Ом HD-SDI негорючий, конструкция: 1,06/5,00 (5 х 1,06 мм) AWG18, оболочка: FRNC 22,1 мм, цвет:  зеленый","м",24.54,0.18,28.96,2233.8000000000002]
["600-0174F","Кабель коаксиальный видео SC-VECTOR PLUS 1.2L/5.0 75 Ом HD-SDI негорючий, конструкция: 1,06/5,00 (1 х 1,06 мм) AWG18, оболочка: FRNC 6,95 мм, цвет:  зеленый","м",2.76,0.18,3.26,251.46]
["600-0211","Кабель коаксиальный видео SC-VECTOR PLUS 1.2L/4.8DZ 75 Ом HD-SDI негорючий, конструкция: 1,06/4,80 (1 х 1,06 мм) AWG18, оболочка: SOFT PUR FRNC 7,1 мм, цвет:  черный","м",4.96,0.18,5.87,452.78]
["600-0214","Кабель коаксиальный видео SC-VECTOR PLUS 1.2L/4.8DZ 75 Ом HD-SDI негорючий, конструкция: 1,06/4,80 (1 х 1,06 мм) AWG18, оболочка: SOFT PUR FRNC 7,1 мм, цвет:  зеленый","м",4.96,0.18,5.87,452.78]
["600-0214-04","Кабель коаксиальный видео мультикор SC-VECTOR PLUS 4 X 1.2/4.8DZ 75 Ом HD-SDI, конструкция: 1,06/4,80 (4 х 1,06 мм) AWG18, оболочка: PMB 21,8 мм, цвет:  зеленый","м",30.43,0.18,35.909999999999997,2769.89]
["600-0214-07","Кабель коаксиальный видео мультикор SC-VECTOR PLUS 7 X 1.2/4.8DZ 75 Ом HD-SDI, конструкция: 1,06/4,80 (7 х 1,06 мм) AWG18, оболочка: PMB 28,5 мм, цвет:  зеленый","м",42.35,0.18,49.96,3853.62]
["600-0221","Кабель коаксиальный видео SC-VECTOR PLUS RCB MOBILE 1.6L/7.3 75 Ом 3G SDI, конструкция: 1,40/7,30 (1 х 1,40 мм) AWG16, оболочка: PVC 10,3 мм, цвет:  черный","м",7.2,0.18,8.5,655.64]
["600-0224","Кабель коаксиальный видео SC-VECTOR PLUS RCB MOBILE 1.6L/7.3 75 Ом 3G SDI, конструкция: 1,40/7,30 (1 х 1,40 мм) AWG16, оболочка: PVC 10,3 мм, цвет:  зеленый","м",7.2,0.18,8.5,655.64]
["600-0234","Кабель коаксиальный видео SC-VECTOR PLUS RCB INSTALL 1.6/7.0 75 Ом, конструкция: 1,60/7,00 (1 х 1,60 мм) AWG14, оболочка: PVC 10,2 мм, цвет:  зеленый","м",4.43,0.18,5.24,404.18]
["600-0234FC","Кабель коаксиальный видео SC-VECTOR PLUS RCB INSTALL 1.6/7.0 75 Ом негорючий (CPR версия), конструкция: 1,60/7,00 (1 х 1,60 мм) AWG14, оболочка: FRNC / LSZH 10,2 мм, цвет:  зеленый","м",6.15,0.18,7.28,561.54]
["600-0241AQ","Кабель коаксиальный видео водонепроницаемый SC-AQUA MARINEX VIDEO 0.6L/3.7 75 Ом без галогенов, конструкция: 0,60/3,30 (1 х 0,60 мм) AWG23, оболочка: PUR-SR 6,4 мм, цвет:  черный","м",3.59,0.18,4.24,327.05]
["600-0250-01","Кабель коаксиальный миниатюрный видео SC-MONOMAX 0.3L/1.8 75 Ом, конструкция: 0,32/1,6 (1 х 0,32 мм) AWG28, оболочка: Antistatic-PVC 2,7 мм, цвет:  белый","м",1,0.18,1.17,90.25]
["600-0251-01","Кабель коаксиальный миниатюрный видео SC-MONOMAX 0.3L/1.8 75 Ом, конструкция: 0,32/1,6 (1 х 0,32 мм) AWG28, оболочка: Antistatic-PVC 2,7 мм, цвет:  черный","м",1,0.18,1.17,90.25]
["600-0251-03","Кабель коаксиальный миниатюрный видео мультикор SC-TRANSIT MINI FLEX 0.3L/1.8 75 Ом, конструкция: 0,32/1,6 (3 х 0,32 мм) AWG28, оболочка: Antistatic-PVC 8,2 мм, цвет:  черный","м",5.78,0.18,6.83,526.83000000000004]
["600-0251-05","Кабель коаксиальный миниатюрный видео мультикор SC-TRANSIT MINI FLEX 0.3L/1.8 75 Ом, конструкция: 0,32/1,6 (5 х 0,32 мм) AWG28, оболочка: Antistatic-PVC 9,6 мм, цвет:  черный","м",8.07,0.18,9.52,734.32]
["600-0252-01","Кабель коаксиальный миниатюрный видео SC-MONOMAX 0.3L/1.8 75 Ом, конструкция: 0,32/1,6 (1 х 0,32 мм) AWG28, оболочка: Antistatic-PVC 2,7 мм, цвет:  синий","м",1,0.18,1.17,90.25]
["600-0253-01","Кабель коаксиальный миниатюрный видео SC-MONOMAX 0.3L/1.8 75 Ом, конструкция: 0,32/1,6 (1 х 0,32 мм) AWG28, оболочка: Antistatic-PVC 2,7 мм, цвет:  красный","м",1,0.18,1.17,90.25]
["600-0254-01","Кабель коаксиальный миниатюрный видео SC-MONOMAX 0.3L/1.8 75 Ом, конструкция: 0,32/1,6 (1 х 0,32 мм) AWG28, оболочка: Antistatic-PVC 2,7 мм, цвет:  зеленый","м",1,0.18,1.17,90.25]
["600-0261-0506","Кабель комбинированный SC-TRANSIT MINI CONTROL 506 , конструкция: 5х(1х0,32 мм) (Видео) + 6х0,14 мм² (Управление), оболочка: Antistatic-PVC 10,0 мм, цвет:  черный","м",10.8,0.18,12.76,984.23]
["600-0261-0506H","Кабель комбинированный SC-TRANSIT MINI CONTROL 506, конструкция: 5х(1х0,32 мм) (Видео) + 6х0,14 мм² (Управление), оболочка: TPE без галогенов 10,0 мм, цвет:  черный","м",10.89,0.18,12.85,991.17]
["600-0313","Кабель триаксиальный 11,0 мм SC-POLARIS MKII HIGHFLEX (L) 75 Ом, конструкция: 1,22/6,5 (1 х 1,22 мм) AWG16, оболочка: PVC HIGHFLEX 11,0 мм, цвет:  красный","м",7.22,0.18,8.52,657.18]
["600-0353","Кабель триаксиальный 8,5 мм SC-POLARIS 75 Ом, конструкция: 1,00/4,50 (1 х 1,00 мм) AWG18, оболочка: PUR 8,5 мм, цвет:  красный","м",4.57,0.18,5.39,415.75]
["600-0401","Кабель коаксиальный RG/U 50 Ом SC-CLASSIC SERIES MKII RG58 C/U 0.78/2.95 (RG58C/U) 50 Ом, конструкция: 0,78/2,95 (1 х 0,78 мм) AWG20, оболочка: PVC 4,95 мм, цвет:  черный","м",1.59,0.18,1.89,145.78]
["600-0401F","Кабель коаксиальный RG/U 50 Ом SC-CLASSIC SERIES MKII RG58C/U 0.78/2.95 (RG58C/U) 50 Ом негорючий, конструкция: 0,78/2,95 (1 х 0,78 мм) AWG20, оболочка: FRNC 4,95 мм, цвет:  черный","м",1.83,0.18,2.15,165.84]
["600-0401LL","Кабель коаксиальный RG/U 50 Ом SC-CLASSIC SERIES MKII RG58C/LL 50 Ом, конструкция: 1,02/2,95 (1 х 1,02 мм) AWG18, оболочка: PVC 5,0 мм, цвет:  черный","м",2.2200000000000002,0.18,2.63,202.86]
["600-0451","Кабель коаксиальный RG/U 75 Ом SC-CLASSIC SERIES MKII RG59 B/U 75 Ом, конструкция: 0,60/3,70 (1 х 0,60 мм) AWG23, оболочка: PVC 6,2 мм, цвет:  черный","м",1.87,0.18,2.2000000000000002,169.7]
["600-0481-2075","Кабель комбинированный SC-CLASSIC CONTROL, конструкция: 1х(1х0,6 мм) (Видео) + 2х0,75 мм² (Управление), оболочка: PVC 10,5 мм, цвет:  черный","м",4.24,0.18,5.0199999999999996,387.21]
["600-0501","Кабель коаксиальный RG/U 50 Ом SC-CLASSIC SERIES MKII RG174A/U RG174A/U 50 Ом, конструкция: 0,42/1,5 (1 х 0,42 мм) AWG26, оболочка: PVC 2,8 мм, цвет:  черный","м",1.33,0.18,1.54,{"$f":"ROUND(F462*$B$6*(1+0.02),2)","v":118.79}]
["600-0511","Кабель коаксиальный RG/U 50 Ом SC-CLASSIC SERIES MKII RG8/U || RG213/UBX RG8/U || RG213/UBX 50 Ом, конструкция: 1,85/6,40 (1 х 1,85 мм) AWG13, оболочка: PVC 9,5 мм, цвет:  черный","м",4.96,0.18,5.85,451.23]
["600-0529","Кабель коаксиальный RG/U 75 Ом SC-CLASSIC SERIES MKII RG179A/U FEP 75 Ом, конструкция: 0,25/1,6 (1 х 0,25 мм) AWG30, оболочка: FEP 2,5 мм, цвет:  прозрачный","м",3.85,0.18,4.5199999999999996,348.65]
["600-0549","Кабель коаксиальный RG/U 50 Ом SC-CLASSIC SERIES MKII RG316/U 50 Ом, конструкция: 0,45/1,52 (1 х 0,45 мм) AWG25, оболочка: PTFE 2,5 мм, цвет:  прозрачный","м",4.5,0.18,5.33,411.12]
["600-0551","Кабель коаксиальный RG/U 50 Ом SC-CLASSIC SERIES MKII RG213/U 50 Ом, конструкция: 1,98/7,30 (1 х 1,98 мм) AWG12, оболочка: PVC 10,3 мм, цвет:  черный","м",5.91,0.18,6.98,538.4]
["600-0551HF","Кабель коаксиальный RG/U 50 Ом HF400TT (HF400TT) SC-Classic Series MKII Low Loss; 1 x 2,74; PVC O 10,30 mm; schwarz 2.74/7.25 50 Ом, конструкция: 2.74/7,25 (1 х 2.74 мм) AWG10, оболочка: PVC 10,3 мм, цвет:  черный","м",8.02,0.18,9.4600000000000009,729.69]
["600-0551LL","Кабель коаксиальный RG/U 50 Ом SC-CLASSIC SERIES MKII RG213/LL 50 Ом, конструкция: 2,65/7,25 (1 х 2,65 мм) AWG10, оболочка: PVC 10,2 мм, цвет:  черный","м",8.6999999999999993,0.18,10.26,791.4]
["600-0581","Кабель коаксиальный RG/U 75 Ом SC-CLASSIC SERIES MKII RG6A/U 75 Ом, конструкция: 0,72/4,70 (1 х 0,72 мм) AWG21, оболочка: PVC 8,4 мм, цвет:  черный","м",5.65,0.18,6.67,514.48]
["600-0601-05F","Кабель комбинированный SC-TRANSIT KOMBI MC5200 негорючий, конструкция: 5х(1х0,6 мм) (Видео) + 2х(2х0,14 мм²) (Аудио), оболочка: FRNC 15,6 мм, цвет:  черный","м",15.83,0.18,18.670000000000002,1440.09]
["600-0611-05","Кабель комбинированный SC-TRANSIT 5231 HD-0.8, конструкция: 5 x(1х0.8 мм) (Видео) + 2x(2х0.22 мм²) (Аудио) + 3x2,5 мм² (Питание) + 1х(4x2x0,57 мм) (CAT.6), оболочка: PVC 24,8 мм, цвет:  черный","м",26.35,0.18,31.09,2398.1]
["600-0621-05","Кабель комбинированный SC-TRANSIT 5231 HD-0.6, конструкция: 5х(1х0,6 мм) (Видео) + 2x(2x0,15 мм²) (Аудио) + 1х(3x2,5 мм²) (Питание) + 1х(4х2х0,53 мм) (CAT.7), оболочка: PVC 22,5 мм, цвет:  черный","м",29.8,0.18,35.15,2711.26]
["600-0646-07","Кабель коаксиальный видео мультикор SC-TRANSIT MOBILE PUR 0.75L/3.4 75 Ом, конструкция: 0,66/3,20 (7 х 0,66 мм) AWG22, оболочка: PUR 15,3 мм, цвет:  серый","м",13.17,0.18,15.57,1200.98]
["600-0701","Кабель коаксиальный видео S-VHS SC-CINEMA-SV 0.3L/1.8 75 Ом S-Video, конструкция: 0,32/1,6 (2 х 0,32 мм) AWG28, оболочка: PVC 7,5 мм, цвет:  черный","м",3.24,0.18,3.83,295.42]
["600-0712","Кабель коаксиальный видео SC-ALTERA SPLIT 0.6/3.7 75 Ом RGB, конструкция: 0,66/3,70 (3 х 0,66 мм) AWG22, оболочка: PVC 18,0 x 6,2 мм, цвет:  синий","м",4.96,0.18,5.85,451.23]
["600-0851","Кабель коаксиальный HD-SDI/HDTV SC-SLIMLINE 0.6/2.8 75 Ом, конструкция: 0,60/2,80 (1 х 0,60 мм) AWG23, оболочка: PVC 4,2 мм, цвет:  черный","м",1.37,0.18,1.61,124.19]
["600-0851-02","Кабель коаксиальный видео мультикор SC-TRANSIT 2 HD 0.6/2.8 75 Ом HD-SDI, конструкция: 0,60/2,80 (2 х 0,60 мм) AWG23, оболочка: PVC 10,2 мм, цвет:  черный","м",5.13,0.18,6.04,465.89]
["600-0851-02F","Кабель коаксиальный видео мультикор SC-TRANSIT 2 HD FRNC 0.6/2.8 75 Ом HD-SDI, конструкция: 0,60/2,80 (2 х 0,60 мм) AWG23, оболочка: FRNC 10,2 мм, цвет:  черный","м",5.24,0.18,6.17,475.92]
["600-0851-03","Кабель коаксиальный видео мультикор SC-TRANSIT 3 HD 0.6/2.8 75 Ом HD-SDI, конструкция: 0,60/2,80 (3 х 0,60 мм) AWG23, оболочка: PVC 11,2 мм, цвет:  черный","м",6.76,0.18,7.98,615.53]
["600-0851-03F","Кабель коаксиальный видео мультикор SC-TRANSIT 3 HD FRNC 0.6/2.8 75 Ом HD-SDI, конструкция: 0,60/2,80 (3 х 0,60 мм) AWG23, оболочка: FRNC 11,2 мм, цвет:  черный","м",6.67,0.18,7.87,607.04999999999995]
["600-0851-05","Кабель коаксиальный видео мультикор SC-TRANSIT 5 HD 0.6/2.8 75 Ом HD-SDI, конструкция: 0,60/2,80 (5 х 0,60 мм) AWG23, оболочка: PVC 13,8 мм, цвет:  черный","м",10.65,0.18,12.59,971.12]
["600-0851-05F","Кабель коаксиальный видео мультикор SC-TRANSIT 5 HD FRNC 0.6/2.8 75 Ом HD-SDI негорючий, конструкция: 0,60/2,80 (5 х 0,60 мм) AWG23, оболочка: FRNC 13,8 мм, цвет:  черный","м",11.46,0.18,13.52,1042.8499999999999]
["600-0851-07","Кабель коаксиальный видео мультикор SC-TRANSIT 7 HD 0.6/2.8 75 Ом HD-SDI, конструкция: 0,60/2,80 (7 х 0,60 мм) AWG23, оболочка: PVC 15,0 мм, цвет:  черный","м",14,0.18,16.52,1274.26]
["600-0851F","Кабель коаксиальный видео SC-SLIMLINE (RCB) FRNC 0.6/2.8 75 Ом HD-SDI негорючий, конструкция: 0,60/2,80 (1 х 0,60 мм) AWG23, оболочка: FRNC 4,2 мм, цвет:  черный","м",1.61,0.18,1.89,145.78]
["600-0854","Кабель коаксиальный видео SC-SLIMLINE (RCB) 0.6/2.8 75 Ом HD-SDI, конструкция: 0,60/2,80 (1 х 0,60 мм) AWG23, оболочка: PVC 4,2 мм, цвет:  зеленый","м",1.37,0.18,1.61,124.19]
["600-0854F","Кабель коаксиальный видео SC-SLIMLINE (RCB) FRNC 0.6/2.8 75 Ом HD-SDI негорючий, конструкция: 0,60/2,80 (1 х 0,60 мм) AWG23, оболочка: FRNC 4,2 мм, цвет:  зеленый","м",1.52,0.18,1.8,138.84]
["600-0855","Кабель коаксиальный видео SC-SLIMLINE (RCB) 0.6/2.8 75 Ом HD-SDI, конструкция: 0,60/2,80 (1 х 0,60 мм) AWG23, оболочка: PVC 4,2 мм, цвет:  оранжевый","м",1.37,0.18,1.61,124.19]
["600-0857F","Кабель коаксиальный видео SC-SLIMLINE (RCB) FRNC 0.6/2.8 75 Ом HD-SDI негорючий, конструкция: 0,60/2,80 (1 х 0,60 мм) AWG23, оболочка: FRNC 4,2 мм, цвет:  желтый","м",1.52,0.18,1.78,137.30000000000001]
["600-0858","Кабель коаксиальный видео SC-SLIMLINE (RCB) 0.6/2.8 75 Ом HD-SDI, конструкция: 0,60/2,80 (1 х 0,60 мм) AWG23, оболочка: PVC 4,2 мм, цвет:  фиолетовый","м",1.37,0.18,1.61,124.19]
["600-0920","Кабель коаксиальный SAT SC-ASTRAL 75 Ом, конструкция: 0,50/2,0 (1 х 0,50 мм) AWG24, оболочка: PVC 3,6 мм, цвет:  белый","м",0.61,0.18,0.72,55.54]
["600-0960LLX","Кабель коаксиальный SAT HD-SDI/HDTV SC-ASTRAL-LLX 120 DB 75 Ом, конструкция: 1,13/5,00 (1 х 1,13 мм) AWG17, оболочка: PVC 6,8 мм, цвет:  белый","м",2.74,0.18,3.24,249.91]
["600-0960LLX-DH","Кабель комбинированный ASTRAL-LLX 120 DB DH, конструкция: 1х(1х1,13/5,0) (SAT) + 1х(4x2x0,51 мм) (CAT.5e), оболочка: PVC 14,3 x 9,7 мм, цвет:  белый","м",5.63,0.18,6.65,512.94000000000005]
["600-0960LLXF","Кабель коаксиальный SAT HD-SDI/HDTV 600-0960LLXF 75 Ом негорючий, конструкция: 1,13/5,00 (1 х 1,13 мм) AWG17, оболочка: FRNC 6,8 мм, цвет:  белый","м",2.89,0.18,3.41,263.02999999999997]
["600-0970","Кабель коаксиальный SAT SC-ASTRAL 75 Ом, конструкция: 0,65/3,00 (1 х 0,65 мм) AWG22, оболочка: PVC 4,5 мм, цвет:  белый","м",1.5,0.18,1.78,137.30000000000001]
["600-1031","Кабель комбинированный TRANSIT MC 1031 HD, конструкция: 1х(1х0,6 мм) (Видео) + 3х2,5 мм² (Питание) + 1х(4х2х0,57 мм) (CAT.7), оболочка: FR-PVC 19,9 мм, цвет:  черный","м",23.41,0.18,27.63,2131.2199999999998]
["600-1211","Кабель комбинированный SC-TRANSIT MC 73251, конструкция: 7x(1х0,70 мм) (Видео) + 3x(2x0,14 мм²) (Аудио) + 2x1,50 мм² (Питание) + 5x0,14 мм² (Управление) + 1х0,14 мм² (Управление, экран.), оболочка: PVC 12,5 мм, цвет:  черный","м",20.39,0.18,24.04,1854.3]
["600-1441","Кабель комбинированный SC-TRANSIT KOMBI MC4400 HD-SDI, конструкция: 4х(0.60/2.80) (HD-SDI) + 4х(2х0,14 мм²) (Аудио), оболочка: PUR 15,6 мм, цвет:  черный","м",14.48,0.18,17.09,1318.22]
["600-1451","Кабель комбинированный SC-TRANSIT KOMBI MC5400 HD-SDI, конструкция: 5х(1х0,6 мм) (Видео) + 4х(2х0,14 мм²) (Аудио), оболочка: PVC 17,4 мм, цвет:  черный","м",18,0.18,21.24,1638.33]
["600-1831-05","Кабель комбинированный TRANSIT MINI KOMBI 52231, конструкция: 5x(1х0,40 мм) (Видео) + 2x(2x0,08 мм²) (Аудио) + 2x0,14 мм² (Управление) + 1х(3x0,75 мм²) (Питание) + 1х(4х2х0,15 мм²) (CAT.6), оболочка: PVC 14,2 мм, цвет:  черный","м",16.37,0.18,19.3,1488.69]
["600-1841-05","Кабель комбинированный TRANSIT MINI KOMBI 522, конструкция: 5x(1х0,30 мм) (Видео) + 2x(2x0,08 мм²) (Аудио) + 2x0,14 мм² (Управление), оболочка: PVC 10,0 мм, цвет:  черный","м",9.09,0.18,10.72,826.88]
["600-1901","Кабель цифровой DVI SC-IMPULSE DVI SINGLE LINK, конструкция: 4х(2x0,10 мм²) + 2х0,10 мм² + 3х0,10 мм², оболочка: PUR 8,7 мм, цвет:  черный","м",10.15,0.18,11.98,924.07]
["600-1921","Кабель цифровой DVI SC-IMPULSE DVI DUAL LINK, конструкция: 7х(2х0,20 мм²) + 5х0,20 мм², оболочка: PVC 11,5 мм, цвет:  черный","м",8.84,0.18,10.44,805.28]
["600-2031","Кабель комбинированный TRANSIT MC 2030 HD, конструкция: 1х(1х1,06 мм) (Видео) + 1x(3х1,5 мм²) (Питание), оболочка: PMB 18,8 мм, цвет:  черный","м",29.67,0.18,35.020000000000003,2701.24]
["600-2101","Кабель комбинированный SC-OBSERVER 1 HD, конструкция: 1х(1х0,6 мм) (Видео) + 3х0,75 мм² (Питание) х 0,28 мм² (Видео); 0,75 мм² (Питание) мм², оболочка: S-PVC 9,0 мм, цвет:  черный","м",5.61,0.18,6.61,509.86]
["600-2231","Кабель комбинированный SC-TRANSIT MC 2235 HD, конструкция: 2x(1х0,80 мм) (Видео) + 2x(2x0,14 мм²) (Аудио) + 3x1,50 мм² (Питание) + 5x0,34 мм² (Управление), оболочка: S-PVC 15,5 мм, цвет:  черный","м",14.2,0.18,16.739999999999998,1291.23]
["600-2791","Кабель комбинированный SC-TRANSIT MC 3231 HD, конструкция: 3х(1х1,06 мм) (Видео) + 2х(2х0,15 мм²) (Аудио) + 1х(3х2,5 мм²) (Питание) + 1х(4х2х0,14 мм²) (CAT), оболочка: S-PVC 24,0 мм, цвет:  черный","м",32.909999999999997,0.18,38.83,2995.12]
["600-2811-01","Кабель комбинированный SC-TRANSIT MC 1101, конструкция: 1х1.2L/4.8 Видео + 1x(2x0,14 мм²) Аудио + 1х(S/FTP4х2х0,88 мм²) CAT, оболочка: PUR 19,6 мм, цвет:  черный","м",21.91,0.18,25.87,1995.46]
["600-3202","Кабель комбинированный TRANSIT MC 3202 HD, конструкция: 1х(1х0,6 мм) (Видео) + 2х(2х0,14 мм²) (Аудио) + 2х0,75 мм²) (Управление), оболочка: PVC 20,9 мм, цвет:  черный","м",20.37,0.18,24.04,1854.3]
["601-0303","Кабель триаксиальный 11,0 мм SC-POLARIS MKII HIGHFLEX (M) 75 Ом, конструкция: 1,40/6,5/8,5 (1 х 1,40 мм) AWG15, оболочка: PUR 11,0 мм, цвет:  красный","м",8.7200000000000006,0.18,10.28,792.94]
["601-0353","Кабель триаксиальный 8,5 мм SC-POLARIS MKII HIGHFLEX (M) 75 Ом, конструкция: 1,00/4,5/6,5 (1 х 1,00 мм) AWG18, оболочка: PUR 8,5 мм, цвет:  красный","м",6.02,0.18,7.11,548.41999999999996]
["601-0930","Кабель коаксиальный SAT HD/UHD/DIGITAL PROFESSIONAL SC-ASTRAL 0.7/2.9 HD 75 Ом, конструкция: 0.70/2,90 (1 х 0.70 мм) AWG22, оболочка: PVC 4,6 мм, цвет:  белый","м",1.43,0.18,1.67,128.81]
["601-0940","Кабель коаксиальный SAT HD/UHD/DIGITAL PROFESSIONAL SC-ASTRAL 2X0.7/2.9 HD 75 Ом двойной, конструкция: 0.70/2,90 (2 х 0.70 мм) AWG22, оболочка: PVC 9,0 x 4,6 mm мм, цвет:  белый","м",2.5,0.18,2.96,228.32]
["601-0950","Кабель коаксиальный SAT HD/UHD/DIGITAL PROFESSIONAL SC-ASTRAL 0.8/3.7 HD (RG59) 75 Ом, конструкция: 0,80/3,70 (1 х 0,80 мм) AWG20, оболочка: PVC 5,6 мм, цвет:  белый","м",1.57,0.18,1.85,142.69999999999999]
["601-0960","Кабель коаксиальный SAT HD/UHD/DIGITAL PROFESSIONAL SC-ASTRAL 2X0.8/3.7 HD (RG59) 75 Ом двойной, конструкция: 0,80/3,70 (2 х 0,80 мм) AWG20, оболочка: PVC 13,0 х 5,6 мм, цвет:  белый","м",4.0199999999999996,0.18,4.76,367.16]
["601-0970","Кабель коаксиальный SAT HD/UHD/DIGITAL PROFESSIONAL SC-ASTRAL 1.0/4.6 HD (RG6) 75 Ом, конструкция: 1.00/4.60 (1 х 1.00 мм) AWG18, оболочка: PVC 6,8 мм, цвет:  белый","м",1.74,0.18,2.04,157.35]
["601-0991P","Кабель коаксиальный SAT HD/UHD/DIGITAL PROFESSIONAL SC-ASTRAL 1.6/7.3 HD 75 Ом, конструкция: 1.60/7,30 (1 х 1.60 мм) AWG14, оболочка: PE 10,3 мм, цвет:  черный","м",3.76,0.18,4.43,341.7]
["605-0241AQ","Кабель коаксиальный видео водонепроницаемый SC-AQUA MARINEX VIDEO HD-SDI 1.2L/4.8 75 Ом без галогенов, конструкция: 1,06/4,80 (1 х 1,06 мм) AWG18, оболочка: PUR-SR 7,4 мм, цвет:  черный","м",6.15,0.18,7.26,559.99]
["605-0751","Кабель комбинированный TRANSIT MC123 HD, конструкция: 1х(1х0,6 мм) (Видео) + 2х(2х0,14 мм²) (Аудио) + 1х(3х1,5 мм²) (Питание), оболочка: PVC 13,1 мм, цвет:  черный","м",10.74,0.18,12.67,977.29]
["605-0761","Кабель комбинированный SC-TRANSIT MC 123 HD, конструкция: 1х0.6/2.8 (Видео) + 2 х (2х0м14 мм²) (Аудио)  +1х(3х1,5mm²), оболочка: PVC 14,2 мм, цвет:  черный","м",11.3,0.18,13.35,1029.74]
["612-0251","Кабель цифровой HDMI SC-TRANSIT HIGH SPEED HDMI WITH ETHERNET, конструкция: 5х(2х0,50 мм²) + 1х(2х0,14 мм²) + 2х0,14 мм², оболочка: PVC 9,6 мм, цвет:  черный","м",13.46,0.18,15.89,1225.6600000000001]
["700-0051-1315","Кабель силовой мультикор SC-ATRIUM FLEX, конструкция: 13 х 1,5 мм², оболочка: PVC 13,8 мм, цвет:  черный","м",9.82,0.18,11.6,894.76]
["700-0051-1325","Кабель силовой мультикор SC-ATRIUM FLEX, конструкция: 13 х 2,5 мм², оболочка: PVC 16,1 мм, цвет:  черный","м",15.94,0.18,18.79,1449.35]
["700-0051-1815","Кабель силовой мультикор SC-ATRIUM FLEX, конструкция: 18 х 1,5 мм², оболочка: PVC 14,7 мм, цвет:  черный","м",12.32,0.18,14.53,1120.76]
["700-0051-1825","Кабель силовой мультикор SC-ATRIUM FLEX, конструкция: 18 х 2,5 мм², оболочка: PVC 18,1 мм, цвет:  черный","м",21.02,0.18,24.79,1912.16]
["700-0056-0325","Кабель силовой мультикор SC-ATRIUM FLEX, конструкция: 3 х 2,5 мм², оболочка: PVC 8,3 мм, цвет:  серый","м",3.61,0.18,4.26,328.59]
["700-0056-0425","Кабель силовой мультикор SC-ATRIUM FLEX, конструкция: 4 х 2,5 мм², оболочка: PVC 9,1 мм, цвет:  серый","м",4.29,0.18,5.0599999999999996,{"$f":"ROUND(F526*$B$6*(1+0.02),2)","v":390.3}]
["700-0056-0715","Кабель силовой мультикор SC-ATRIUM FLEX, конструкция: 7 х 1,5 мм², оболочка: PVC 9,1 мм, цвет:  серый","м",4.6500000000000004,0.18,5.48,422.7]
["700-0056-1415","Кабель силовой мультикор SC-ATRIUM FLEX, конструкция: 14 х 1,5 мм², оболочка: PVC 12,9 мм, цвет:  серый","м",9.02,0.18,10.65,821.48]
["700-0056-1815","Кабель силовой мультикор SC-ATRIUM FLEX, конструкция: 18 х 1,5 мм², оболочка: PVC 14,7 мм, цвет:  серый","м",11.58,0.18,13.66,1053.6500000000001]
["700-0101-03100","Кабель силовой H07RN-F SC-RUBBERFLEX негорючий, конструкция: 3 х 10,0 мм², оболочка: резина 21,0 мм, цвет:  черный","м",15.85,0.18,18.71,1443.18]
["700-0101-0315","Кабель силовой H07RN-F SC-RUBBERFLEX негорючий, конструкция: 3 х 1,5 мм², оболочка: резина 10,0 мм, цвет:  черный","м",3.21,0.18,3.79,292.33999999999997]
["700-0101-0315TI","Кабель силовой H07RN-F SC-RUBBERFLEX TITANEX негорючий, конструкция: 3 х 1,5 мм², оболочка: резина 10,0 мм, цвет:  черный","м",3.39,0.18,4,308.54000000000002]
["700-0101-0325TI","Кабель силовой H07RN-F SC-RUBBERFLEX TITANEX негорючий, конструкция: 3 х 2,5 мм², оболочка: резина 12,5 мм, цвет:  черный","м",5.1100000000000003,0.18,6.03,465.12]
["700-0101-0340","Кабель силовой H07RN-F SC-RUBBERFLEX негорючий, конструкция: 3 х 4,0 мм², оболочка: резина 14,0 мм, цвет:  черный","м",8.92,0.18,10.52,811.45]
["700-0101-05160TI","Кабель силовой H07RN-F SC-RUBBERFLEX TITANEX негорючий, конструкция: 5 х 16,0 мм², оболочка: резина 30,5 мм, цвет:  черный","м",39.450000000000003,0.18,46.56,3591.37]
["700-0101-0525","Кабель силовой H07RN-F SC-RUBBERFLEX негорючий, конструкция: 5 х 2,5 мм², оболочка: резина 15,0 мм, цвет:  черный","м",7.4,0.18,8.74,674.15]
["700-0101-05250","Кабель силовой H07RN-F SC-RUBBERFLEX негорючий, конструкция: 5 х 25,0 мм², оболочка: резина 36,0 мм, цвет:  черный","м",50.66,0.18,59.77,4610.3100000000004]
["700-0101-0525TI","Кабель силовой H07RN-F SC-RUBBERFLEX TITANEX негорючий, конструкция: 5 х 2,5 мм², оболочка: резина 15,0 мм, цвет:  черный","м",7.74,0.18,9.15,705.78]
["700-0101-0560","Кабель силовой H07RN-F SC-RUBBERFLEX негорючий, конструкция: 5 х 6,0 мм², оболочка: резина 19,5 мм, цвет:  черный","м",15.05,0.18,17.760000000000002,1369.9]
["700-0101-0560TI","Кабель силовой H07RN-F SC-RUBBERFLEX TITANEX негорючий, конструкция: 5 х 6,0 мм², оболочка: резина 19,5 мм, цвет:  черный","м",16.059999999999999,0.18,18.95,1461.69]
["700-0241-0325AQ","Кабель силовой водонепроницаемый SC-AQUA MARINEX POWER 325 без галогенов, конструкция: 3 х 2,5 мм², оболочка: PUR-SR 9,4 мм, цвет:  черный","м",10.33,0.18,12.17,938.72]
["720-0016-01015","Кабель силовой NYM-J негорючий, конструкция: 1 х 1,5 мм², оболочка: PVC 5,3 мм, цвет:  серый","м",1.06,0.18,1.26,97.19]
["720-0016-01025","Кабель силовой NYM-J негорючий, конструкция: 1 х 2,5 мм², оболочка: PVC 5,85 мм, цвет:  серый","м",1.42,0.18,1.68,129.59]
["720-0016-01040","Кабель силовой NYM-J негорючий, конструкция: 1 х 4,0 мм², оболочка: PVC 6,6 мм, цвет:  серый","м",1.37,0.18,1.63,125.73]
["720-0016-01060","Кабель силовой NYM-J негорючий, конструкция: 1 х 6,0 мм², оболочка: PVC 7,0 мм, цвет:  серый","м",2.76,0.18,3.26,251.46]
["720-0016-01100","Кабель силовой NYM-J негорючий, конструкция: 1 х 10,0 мм², оболочка: PVC 8,2 мм, цвет:  серый","м",3.05,0.18,3.6,277.68]
["720-0016-01160","Кабель силовой NYM-J негорючий, конструкция: 1 х 16,0 мм², оболочка: PVC 9,7 мм, цвет:  серый","м",4.79,0.18,5.66,436.58]
["720-0016-03015","Кабель силовой NYM-J негорючий, конструкция: 3 х 1,5 мм², оболочка: PVC 8,2 мм, цвет:  серый","м",2.27,0.18,2.69,207.49]
["720-0016-03025","Кабель силовой NYM-J негорючий, конструкция: 3 х 2,5 мм², оболочка: PVC 9,7 мм, цвет:  серый","м",3.55,0.18,4.1900000000000004,323.19]
["720-0016-03040","Кабель силовой NYM-J негорючий, конструкция: 3 х 4,0 мм², оболочка: PVC 11,1 мм, цвет:  серый","м",3.84,0.18,4.53,349.42]
["720-0016-03060","Кабель силовой NYM-J негорючий, конструкция: 3 х 6,0 мм², оболочка: PVC 12,65 мм, цвет:  серый","м",5.81,0.18,6.85,528.37]
["720-0016-04015","Кабель силовой NYM-J негорючий, конструкция: 4 х 1,5 мм², оболочка: PVC 9,0 мм, цвет:  серый","м",3,0.18,3.55,273.83]
["720-0016-04025","Кабель силовой NYM-J негорючий, конструкция: 4 х 2,5 мм², оболочка: PVC 10,45 мм, цвет:  серый","м",3.19,0.18,3.76,290.02]
["720-0016-04040","Кабель силовой NYM-J негорючий, конструкция: 4 х 4,0 мм², оболочка: PVC 12,5 мм, цвет:  серый","м",5.08,0.18,6,462.8]
["720-0016-04060","Кабель силовой NYM-J негорючий, конструкция: 4 х 6,0 мм², оболочка: PVC 13,7 мм, цвет:  серый","м",7.27,0.18,8.6,663.35]
["720-0016-04100","Кабель силовой NYM-J негорючий, конструкция: 4 х 10,0 мм², оболочка: PVC 16,7 мм, цвет:  серый","м",11.71,0.18,13.82,1065.99]
["720-0016-04160","Кабель силовой NYM-J негорючий, конструкция: 4 х 16,0 мм², оболочка: PVC 20,0 мм, цвет:  серый","м",18.52,0.18,21.85,1685.38]
["720-0016-04250","Кабель силовой NYM-J негорючий, конструкция: 4 х 25,0 мм², оболочка: PVC 24,9 мм, цвет:  серый","м",29.32,0.18,34.6,2668.84]
["720-0016-04350","Кабель силовой NYM-J негорючий, конструкция: 4 х 35,0 мм², оболочка: PVC 27,80 мм, цвет:  серый","м",41.19,0.18,48.6,3748.72]
["720-0016-05015","Кабель силовой NYM-J негорючий, конструкция: 5 х 1,5 мм², оболочка: PVC 9,8 мм, цвет:  серый","м",3.45,0.18,4.08,314.70999999999998]
["720-0016-05025","Кабель силовой NYM-J негорючий, конструкция: 5 х 2,5 мм², оболочка: PVC 11,25 мм, цвет:  серый","м",5.6,0.18,6.6,509.09]
["720-0016-05040","Кабель силовой NYM-J негорючий, конструкция: 5 х 4,0 мм², оболочка: PVC 13,6 мм, цвет:  серый","м",9.0500000000000007,0.18,10.68,823.79]
["720-0016-05060","Кабель силовой NYM-J негорючий, конструкция: 5 х 6,0 мм², оболочка: PVC 15,0 мм, цвет:  серый","м",13.26,0.18,15.65,1207.1500000000001]
["720-0016-05100","Кабель силовой NYM-J негорючий, конструкция: 5 х 10,0 мм², оболочка: PVC 18,3 мм, цвет:  серый","м",14.23,0.18,16.77,1293.54]
["720-0016-05160","Кабель силовой NYM-J негорючий, конструкция: 5 х 16,0 мм², оболочка: PVC 22,7 мм, цвет:  серый","м",22.98,0.18,27.13,2092.65]
["720-0016-05250","Кабель силовой NYM-J негорючий, конструкция: 5 х 25,0 мм², оболочка: PVC 27,5 мм, цвет:  серый","м",37,0.18,43.66,3367.68]
["720-0016-07015","Кабель силовой NYM-J негорючий, конструкция: 7 х 1,5 мм², оболочка: PVC 10,7 мм, цвет:  серый","м",5.16,0.18,6.1,470.52]
["720-0016-07025","Кабель силовой NYM-J негорючий, конструкция: 7 х 2,5 мм², оболочка: PVC 12,75 мм, цвет:  серый","м",5.74,0.18,6.77,522.20000000000005]
["720-0036-01015","Кабель силовой NYM-O негорючий, конструкция: 1 х 1,5 мм², оболочка: PVC 5,3 мм, цвет:  серый","м",1.06,0.18,1.26,97.19]
["720-0036-01060","Кабель силовой NYM-O негорючий, конструкция: 1 х 6,0 мм², оболочка: PVC 7,0 мм, цвет:  серый","м",1.97,0.18,2.3199999999999998,178.95]
["720-0036-02015","Кабель силовой NYM-O негорючий, конструкция: 2 х 1,5 мм², оболочка: PVC 8,0 мм, цвет:  серый","м",2.0299999999999998,0.18,2.4,185.12]
["720-0036-03015","Кабель силовой NYM-O негорючий, конструкция: 3 х 1,5 мм², оболочка: PVC 8,2 мм, цвет:  серый","м",2.65,0.18,3.11,239.89]
["720-0036-04100","Кабель силовой NYM-O негорючий, конструкция: 4 х 10,0 мм², оболочка: PVC 16,7 мм, цвет:  серый","м",11.82,0.18,13.95,1076.02]
["720-0036-04160","Кабель силовой NYM-O негорючий, конструкция: 4 х 16,0 мм², оболочка: PVC 20,0 мм, цвет:  серый","м",18.95,0.18,22.35,1723.95]
["720-0036-07015","Кабель силовой NYM-O негорючий, конструкция: 7 х 1,5 мм², оболочка: PVC 10,7 мм, цвет:  серый","м",3.39,0.18,4,308.54000000000002]
["720-0056-03015","Кабель силовой (N)YM-(ST)-J негорючий, конструкция: 3 х 1,5 мм², оболочка: PVC 9,2 мм, цвет:  серый","м",3.5,0.18,4.13,318.56]
["720-0056-03025","Кабель силовой (N)YM-(ST)-J негорючий, конструкция: 3 х 2,5 мм², оболочка: PVC 10,9 мм, цвет:  серый","м",4.74,0.18,5.6,431.95]
["720-0056-03040","Кабель силовой (N)YM-(ST)-J негорючий, конструкция: 3 х 4,0 мм², оболочка: PVC 11,8 мм, цвет:  серый","м",6.98,0.18,8.24,635.59]
["720-0056-04015","Кабель силовой (N)YM-(ST)-J негорючий, конструкция: 4 х 1,5 мм², оболочка: PVC 10,2 мм, цвет:  серый","м",4.29,0.18,5.0599999999999996,390.3]
["720-0056-04025","Кабель силовой (N)YM-(ST)-J негорючий, конструкция: 4 х 2,5 мм², оболочка: PVC 11,6 мм, цвет:  серый","м",6.11,0.18,7.21,556.14]
["720-0056-04040","Кабель силовой (N)YM-(ST)-J негорючий, конструкция: 4 х 4,0 мм², оболочка: PVC 14,0 мм, цвет:  серый","м",9.94,0.18,11.73,904.78]
["720-0056-05015","Кабель силовой (N)YM-(ST)-J негорючий, конструкция: 5 х 1,5 мм², оболочка: PVC 11,4 мм, цвет:  серый","м",4.97,0.18,5.85,451.23]
["720-0056-05025","Кабель силовой (N)YM-(ST)-J негорючий, конструкция: 5 х 2,5 мм², оболочка: PVC 12,6 мм, цвет:  серый","м",7.03,0.18,8.2899999999999991,639.44000000000005]
["720-0056-05040","Кабель силовой (N)YM-(ST)-J негорючий, конструкция: 5 х 4,0 мм², оболочка: PVC 14,9 мм, цвет:  серый","м",11.15,0.18,13.15,1014.31]
["720-0056-05060","Кабель силовой (N)YM-(ST)-J негорючий, конструкция: 5 х 6,0 мм², оболочка: PVC 16,2 мм, цвет:  серый","м",15.06,0.18,17.77,1370.67]
["720-0056-05100","Кабель силовой (N)YM-(ST)-J негорючий, конструкция: 5 х 10,0 мм², оболочка: PVC 19,5 мм, цвет:  серый","м",24.31,0.18,28.68,2212.21]
["720-0056-07015","Кабель силовой (N)YM-(ST)-J негорючий, конструкция: 7 х 1,5 мм², оболочка: PVC 11,7 мм, цвет:  серый","м",6.29,0.18,7.42,572.34]
["770-0401","Кабель для фотогальванических электрических установок TEMPOFLEX SOLAR негорючий, конструкция: 1 х 4,0 мм², оболочка: HEPR / высококачественный этилен-пропиленвый каучук (этиленпропиленовая резина) 5,7 мм, цвет:  черный","м",1.71,0.18,2.02,155.81]
["770-0601","Кабель для фотогальванических электрических установок TEMPOFLEX SOLAR негорючий, конструкция: 1 х 6,0 мм², оболочка: HEPR / высококачественный этилен-пропиленвый каучук (этиленпропиленовая резина) 6,6 мм, цвет:  черный","м",2.68,0.18,3.16,243.74]
["800-0056","Кабель межблочный HiFi SC-STRATOS, конструкция: 1 х 0,34 мм², оболочка: PVC 8,5 мм, цвет:  антрацит","м",13.13,0.18,15.49,{"$f":"ROUND(F590*$B$6*(1+0.02),2)","v":1194.81}]
["800-0079","Кабель межблочный HiFi SC-CORONA, конструкция: 1 х 0,50 мм², оболочка: PVC 6,7 мм, цвет:  прозрачный","м",4.6900000000000004,0.18,5.53,426.55]
["800-0104","Кабель межблочный HiFi SC-ALBEDO MKII, конструкция: 2 х 0,20 мм², оболочка: PVC 5,9 мм, цвет:  зеленый","м",6.58,0.18,7.77,599.33000000000004]
["800-0152","Кабель комбинированный межблочный SC-AQUILA CONTROL, конструкция: 4х0,14 мм² (Аудио) + 2х0,14 мм² (Управление), оболочка: PVC, цвет:  синий","м",4.47,0.18,5.27,406.5]
["ANT-FW","Разъем HICON антенный TV угловой 90° BASIC версия, гнездо на кабель диаметром до 6,8 мм, никелированные контакты , центральный контакт с винтовым зажимом, количество контактов: 2, металлический матово хромированный корпус, пластиковый белый колпачок под байонетный замок","шт",5.31,0.18,6.28,484.4]
["ANT-MW","Разъем HICON антенный TV угловой 90° BASIC версия, штекер на кабель диаметром до 6,8 мм, никелированные контакты , центральный контакт с винтовым зажимом, количество контактов: 2, металлический матово хромированный корпус, пластиковый белый колпачок под байонетный замок","шт",5.31,0.18,6.28,484.4]
["BD11","SOMMER CABLE кабельный чулок с петлей проволочный на кабель диаметром 18 - 22 мм","шт",29.8,0.18,35.18,2713.58]
["BD13","SOMMER CABLE кабельный чулок с петлей проволочный на кабель диаметром 22 - 26 мм","шт",30.5,0.18,36,2776.83]
["BD15","SOMMER CABLE кабельный чулок с петлей проволочный на кабель диаметром 26 - 31 мм","шт",34.19,0.18,40.340000000000003,3111.59]
["BD7","SOMMER CABLE кабельный чулок с петлей проволочный на кабель диаметром 6 - 10 мм","шт",21.36,0.18,25.2,1943.78]
["BD9","SOMMER CABLE кабельный чулок с петлей проволочный на кабель диаметром 10 - 18 мм","шт",24.8,0.18,29.26,2256.94]
["BNC-FP-HD","Адаптер HICON BNC гнездо / BNC гнездо версия HDTV 75 Ом на панель, количество контактов: 2/2, металлический корпус, изоляция массы","шт",5.18,0.18,6.12,472.06]
["BNC-FP50","Адаптер HICON BNC гнездо / BNC гнездо 50 Ом на панель, количество контактов: 2/2, металлический корпус, изоляция массы","шт",5.18,0.18,6.12,472.06]
["BNC-FP50D","Адаптер HICON BNC гнездо / BNC гнездо 50 Ом на панель, количество контактов: 2/2, металлический корпус, фланец D-типа, крепежные отверстия с резьбой M3, изоляция массы","шт",8.84,0.18,10.43,804.51]
["BNC-FPD-HD","Адаптер HICON BNC гнездо / BNC гнездо версия HDTV 75 Ом на панель, количество контактов: 2/2, металлический корпус, фланец D-типа, изоляция массы","шт",8.84,0.18,10.44,805.28]
["BNC0.4/1.9","Разъем HICON BNC 0.4/1.9 75 Ом, штекер на кабель, позолоченные контакты под обжим, количество контактов: 2, металлический корпус","шт",2.83,0.18,3.34,257.63]
["BNC0.8/3.7HD","Разъем HICON BNC 0.8/3.7 3G-SDI 75 Ом, штекер на кабель, позолоченные контакты под обжим, количество контактов: 2, металлический корпус","шт",2.7,0.18,3.19,246.06]
["BNC1.6/7.3HD","Разъем HICON BNC 1.6/7.3 3G-SDI 75 Ом, штекер на кабель, позолоченные контакты под обжим, количество контактов: 2, металлический корпус","шт",4.3099999999999996,0.18,5.09,392.61]
["BNC174","Разъем HICON BNC 0.6/1.7 50 Ом, штекер на кабель, позолоченный центральный контакт, контакты под обжим, количество контактов: 2, металлический корпус","шт",1.74,0.18,2.0499999999999998,158.12]
["BNC174M90","Разъем HICON BNC 0.6/1.7 угловой 90° 50 Ом, штекер на кабель, позолоченный центральный контакт под пайку, контакт заземления под обжим, количество контактов: 2, металлический корпус","шт",2.56,0.18,3.03,233.72]
["BNC213","Разъем HICON BNC 2.2/7.3 50 Ом, штекер на кабель, позолоченный центральный контакт, контакты под обжим, количество контактов: 2, металлический корпус","шт",3.78,0.18,4.45,343.25]
["BNC58","Разъем HICON BNC 1.0/3.2 (на многопроволочную центральную жилу) 50 Ом, штекер на кабель диаметром до 3,5 мм, позолоченный центральный контакт, контакты под обжим, количество контактов: 2, металлический корпус","шт",1.86,0.18,2.19,168.92]
["BNC58FD","Разъем HICON BNC 1.0/3.2 50 Ом, гнездо на панель, позолоченный центральный контакт, контакты, количество контактов: 2, металлический корпус, фланец D-типа, крепежные отверстия с резьбой M3","шт",6.3,0.18,7.43,573.11]
["BNC58FEM","Разъем HICON BNC 1.0/3.2 50 Ом, гнездо на панель, количество контактов: 2, металлический корпус, внешняя резъба Ø 12,7 мм (1/2\"), изоляция массы","шт",4.7300000000000004,0.18,5.58,430.41]
["BNC58FEO","Разъем HICON BNC 1.0/3.2 50 Ом, гнездо на панель под обжим, количество контактов: 2, металлический корпус, внешняя резъба Ø 12,7 мм (1/2\"), без изоляции массы","шт",3.05,0.18,3.61,278.45]
["BNC58FK","Разъем HICON BNC 1.0/3.2 50 Ом, гнездо на кабель, позолоченный центральный контакт, контакты под обжим, количество контактов: 2, металлический корпус","шт",2.4700000000000002,0.18,2.91,224.46]
["BNC58KOM","Разъем HICON BNC 1.0/3.2 компрессионный 50 Ом, штекер на кабель, позолоченный центральный контакт под пайку, количество контактов: 2, металлический корпус","шт",5.0999999999999996,0.18,6.03,465.12]
["BNC58LL","Разъем HICON BNC 1.0/3.2 (на монолитную центральную жилу) 50 Ом, штекер на кабель, позолоченный центральный контакт, контакты под обжим, количество контактов: 2, металлический корпус","шт",1.87,0.18,2.21,170.47]
["BNC58M90","Разъем HICON BNC 1.0/3.2 угловой 90° 50 Ом, штекер на кабель, позолоченный центральный контакт под пайку, контакт заземления под обжим, количество контактов: 2, металлический корпус","шт",3.48,0.18,4.0999999999999996,316.25]
["BNC59","Разъем HICON BNC 0.6/3.7 75 Ом, штекер на кабель, позолоченный центральный контакт, контакты под обжим, количество контактов: 2, металлический корпус","шт",1.73,0.18,2.04,157.35]
["BNC59FD","Разъем HICON BNC 0.8/3.7 75 Ом, гнездо на панель, позолоченный центральный контакт, контакты под обжим, количество контактов: 2, металлический корпус, фланец D-типа, крепежные отверстия с резьбой M3","шт",7.45,0.18,8.7899999999999991,678.01]
["BNC59FEM","Разъем HICON BNC 0.8/3.7 75 Ом, гнездо на панель, позолоченный центральный контакт, контакты под обжим, количество контактов: 2, металлический корпус, внешняя резъба Ø 12,7 мм (1/2\"), изоляция массы","шт",5.79,0.18,6.83,526.83000000000004]
["BNC59FEO","Разъем HICON BNC 0.8/3.7 75 Ом, гнездо на панель, позолоченный центральный контакт, контакты под обжим, количество контактов: 2, металлический корпус, внешняя резъба Ø 12,7 мм (1/2\"), без изоляции массы","шт",2.81,0.18,3.31,255.31]
["BNC59FK","Разъем HICON BNC 0.8/3.7 75 Ом, гнездо на кабель, позолоченный центральный контакт, контакты под обжим, количество контактов: 2, металлический корпус","шт",2.79,0.18,3.3,254.54]
["BNC59KOM","Разъем HICON BNC 0.8/3.7 компрессионный 75 Ом, штекер на кабель, позолоченный центральный контакт под пайку, количество контактов: 2, металлический корпус","шт",5.42,0.18,6.39,492.89]
["BNC59M90","Разъем HICON BNC 0.8/3.7 угловой 90° 75 Ом, штекер на кабель, позолоченный центральный контакт под пайку, контакт заземления под обжим, количество контактов: 2, металлический корпус","шт",3.39,0.18,4,308.54000000000002]
["BNC6","Разъем HICON BNC 1.2/5.0 75 Ом, штекер на кабель, позолоченный центральный контакт, контакты под обжим, количество контактов: 2, металлический корпус","шт",1.86,0.18,2.19,168.92]
["CAP-19MM","HICON пылезащитный колпачок из термопластичной резины (TPG) со шнуром для фиксации для XLR разъемов HICON и NEUTRIK, цвет : черный","шт",2.7,0.18,3.18,245.29]
["CIKL-FM","Адаптер HICON JACK 6,3 штекер / RCA гнездо BASIC версия, никелированные контакты, количество контактов: 2/2, пластиковый черный корпус","шт",0.92,0.18,1.08,83.3]
["CIKL-MF","Адаптер HICON RCA штекер / JACK 6,3 мм гнездо BASIC версия, никелированные контакты, количество контактов: 2/2, пластиковый черный корпус","шт",1.21,0.18,1.42,109.53]
["DPDP-FF","Адаптер HICON DisplayPort гнездо / DisplayPort штекер, пластиковый черный корпус, винтовое крепление","шт",18.71,0.18,22.08,1703.12]
["DPDV-MF","Адаптер HICON DisplayPort штекер / DVI гнездо, пластиковый черный корпус","шт",15.86,0.18,18.71,1443.18]
["DPHD-MF","Адаптер HICON DisplayPort штекер / HDMI гнездо, пластиковый черный корпус","шт",14.31,0.18,16.899999999999999,1303.57]
["DVFF-0015","Адаптер HICON DVI гнездо / DVI гнездо длина кабеля 0,15 м, количество контактов: 24 + 5, винтовое крепление, металлические матово хромированные корпуса разъемов, цвет кабеля: черный","шт",20.71,0.18,24.44,1885.16]
["DVHD-FF","Адаптер HICON DVI гнездо / HDMI гнездо BASIC версия, пластиковый черный корпус, винтовое крепление","шт",13.18,0.18,15.55,1199.44]
["DVHD-FM","Адаптер HICON DVI гнездо / HDMI штекер BASIC версия, пластиковый черный корпус, винтовое крепление","шт",10.88,0.18,12.84,990.4]
["DVHD-MF","Адаптер HICON DVI штекер / HDMI гнездо BASIC версия, адаптер, количество контактов: -, пластиковый черный корпус, винтовое крепление","шт",10.27,0.18,12.12,934.87]
["DVI01","Разъем HICON DVI, штекер на кабель, позолоченные контакты под пайку, количество контактов: 24 + 1, металлический матово хромированный корпус, резиновый конический хвостовик","шт",7.55,0.18,8.9,686.49]
["DVS2-FM","Адаптер HICON DVI гнездо / SUB-D DE15 штекер, пластиковый серый корпус, винтовое крепление","шт",6.66,0.18,7.87,607.04999999999995]
["DVS2-MF","Адаптер HICON DVI штекер / SUB-D DE15 гнездо, пластиковый черный корпус, винтовое крепление","шт",6.01,0.18,7.1,547.65]
["FMC-3.7","Разъем HICON антенный серии F компрессионный, штекер на кабель, металлический хромированный корпус, растягивающее усилие: до 200 Н","шт",1.25,0.18,1.47,113.39]
["FMC-5.0","Разъем HICON антенный серии F компрессионный, штекер на кабель, металлический хромированный корпус, растягивающее усилие: до 200 Н","шт",0.99,0.18,1.17,90.25]
["FMC-5.0W","Разъем HICON антенный серии F компрессионный пыленепроницаемый и водостойкий (IP67), штекер на кабель, металлический хромированный корпус, растягивающее усилие: до 200 Н","шт",1.35,0.18,1.6,123.41]
["FMC-SEAL","HICON уплотнительная пластиковая манжета для компрессионного водостойкого и пыленепроницаемого (IP67) антенного F разъема HICON FMC-5.0W","шт",0.7,0.18,0.83,64.02]
["HDHD-MF90V","Адаптер HICON HDMI штекер / HDMI гнездо угловой 90° (вертикальный угол), пластиковый серебряный корпус","шт",6.25,0.18,7.36,567.71]
["HDHM-FM","Адаптер HICON HDMI гнездо / MINI HDMI штекер, пластиковый черный корпус","шт",8.06,0.18,9.51,733.55]
["HDMM-FM","Адаптер HICON HDMI гнездо / MICRO HDMI, пластиковый черный корпус","шт",11.65,0.18,13.74,1059.82]
["HDMU-FM1","Адаптер HICON HDMI гнездо / MICRO USB штекер с поддержкой интерфейса MHL для соединения мобильных устройств с монитором длина кабеля 6,0 см, количество контактов: 11, цвет пластиковых корпусов разъемов и кабеля: черный, совместим со смартфонами SAMSUNG модельного ряда S3 и выше","шт",21.26,0.18,25.09,1935.3]
["HDMU-FM2","Адаптер HICON HDMI гнездо / MICRO USB штекер с поддержкой интерфейса MHL для соединения мобильных устройств с монитором длина кабеля 6,0 см, количество контактов: 11, цвет пластиковых корпусов разъемов и кабеля: черный","шт",19.13,0.18,22.57,1740.92]
["HDSV-MF","Адаптер HICON HDMI штекер / SUB-D DE15 гнездо, цвет пластиковых корпусов разъемов и кабеля: белый","шт",29.27,0.18,34.549999999999997,2664.98]
["HDUC-FM","Адаптер HICON HDMI гнездо / USB-C 3.1 штекер кабельный, цвет пластиковых корпусов разъемов и кабеля: белый","шт",33.299999999999997,0.18,39.29,3030.6]
["HI-ANCF01","Разъем HICON антенный TV, гнездо на кабель диаметром 7,0 - 8,2 мм, позолоченные контакты под пайку, количество контактов: 2, металлический серый лакированный корпус, диэлектрик PTFE","шт",7.01,0.18,8.2899999999999991,639.44000000000005]
["HI-ANCF02","Разъем HICON антенный TV, гнездо на кабель диаметром до 8,0 мм, позолоченные контакты под пайку/винтовой зажим, количество контактов: 2, металлический черный корпус, диэлектрик PTFE","шт",8.4,0.18,9.92,765.17]
["HI-ANCM01","Разъем HICON антенный TV, штекер на кабель диаметром 7,0 - 8,2 мм, позолоченные контакты под пайку, количество контактов: 2, металлический серый лакированный корпус, диэлектрик PTFE","шт",7.01,0.18,8.2899999999999991,639.44000000000005]
["HI-ANCM02","Разъем HICON антенный TV, штекер на кабель диаметром до 8,0 мм, позолоченные контакты под пайку/винтовой зажим, количество контактов: 2, металлический черный корпус, диэлектрик PTFE","шт",8.4,0.18,9.92,{"$f":"ROUND(F654*$B$6*(1+0.02),2)","v":765.17}]
["HI-ANEFP01","Адаптер HICON антенное TV гнездо / антенное TV гнездо на панель, позолоченный центральный контакт, количество контактов: 2, металлический корпус, внешняя резъба Ø 12,7 мм (1/2\")","шт",4.68,0.18,5.52,425.78]
["HI-ANEFPD","Адаптер HICON антенное TV гнездо / антенное TV гнездо на панель, позолоченный центральный контакт, количество контактов: 2, металлический корпус, фланец D-типа","шт",6.35,0.18,7.49,577.73]
["HI-ANT-F","Разъем HICON антенный TV, гнездо на кабель, никелированные контакты, количество контактов: 2, металлический никелированный корпус","шт",1.86,0.18,2.19,168.92]
["HI-ANT-M","Разъем HICON антенный TV, штекер на кабель, никелированные контакты, металлический никелированный корпус","шт",1.86,0.18,2.19,168.92]
["HI-BM01-BLK","Разъем HICON акустический BANANA (\"банан\"), штекер на кабель диаметром до 4,2 мм, позолоченный контакт под винтовой зажим, количество контактов: 1, пластиковый черный корпус","шт",2.61,0.18,3.08,237.57]
["HI-BM01-RED","Разъем HICON акустический BANANA (\"банан\"), штекер на кабель диаметром до 4,2 мм, позолоченный контакт под винтовой зажим, количество контактов: 1, пластиковый красный корпус","шт",2.61,0.18,3.08,237.57]
["HI-BM04-RED","Разъем HICON акустический BANANA (\"банан\"), штекер на кабель диаметром до 4,2 мм, позолоченный контакт под винтовой зажим, количество контактов: 1, металлический серый лакированный корпус, цвет маркировки: красный","шт",4.03,0.18,4.74,365.62]
["HI-BM04-WHT","Разъем HICON акустический BANANA (\"банан\"), штекер на кабель диаметром до 4,2 мм, позолоченный контакт под винтовой зажим, количество контактов: 1, металлический серый лакированный корпус, цвет маркировки: белый (нейтральный)","шт",4.03,0.18,4.74,365.62]
["HI-BM05-RED","Разъем HICON акустический BANANA (\"банан\") Screw & Play, штекер на кабель диаметром до 4,0 мм, позолоченный ламельный контакт под винтовой зажим, количество контактов: 1, металлический черный корпус, цвет маркировки: красный","шт",5.65,0.18,6.66,513.71]
["HI-BM05-WHT","Разъем HICON акустический BANANA (\"банан\") Screw & Play, штекер на кабель диаметром до 4,0 мм, позолоченный ламельный контакт под винтовой зажим, количество контактов: 1, металлический черный корпус, цвет маркировки: белый","шт",5.65,0.18,6.66,513.71]
["HI-BM06-BLK","Разъем HICON акустический BANANA (\"банан\"), штекер на кабель диаметром до 7,2 мм, позолоченный контакт под винтовой зажим, количество контактов: 1, металлический серый лакированный корпус, цвет маркировки: черный","шт",3.71,0.18,4.38,337.85]
["HI-BM06-RED","Разъем HICON акустический BANANA (\"банан\"), штекер на кабель диаметром до 7,2 мм, позолоченный контакт под винтовой зажим, количество контактов: 1, металлический серый лакированный корпус, цвет маркировки: красный","шт",3.71,0.18,4.38,337.85]
["HI-BM07-RED","Разъем HICON акустический BANANA (\"банан\") Screw & Play, штекер на кабель диаметром до 4,2 мм, позолоченный контакт под винтовой зажим, количество контактов: 1, металлический черный корпус, цвет маркировки: красный","шт",4.04,0.18,4.7699999999999996,367.93]
["HI-BM07-WHT","Разъем HICON акустический BANANA (\"банан\") Screw & Play, штекер на кабель диаметром до 4,2 мм, позолоченный контакт под винтовой зажим, количество контактов: 1, металлический черный корпус, цвет маркировки: белый (нейтральный)","шт",4.04,0.18,4.7699999999999996,367.93]
["HI-BM08-BLK","Разъем HICON акустический BANANA (\"банан\") с замком-распоркой пина, штекер на кабель диаметром до 6,9 мм, позолоченный контакт под винтовой зажим, количество контактов: 1, металлический серый лакированный корпус, цвет маркировки: черный","шт",8.74,0.18,10.31,795.25]
["HI-BM08-RED","Разъем HICON акустический BANANA (\"банан\") с замком-распоркой пина, штекер на кабель диаметром до 6,9 мм, позолоченный контакт под винтовой зажим, количество контактов: 1, металлический серый лакированный корпус","шт",8.74,0.18,10.31,795.25]
["HI-BM13-RED","Разъем HICON акустический BANANA (\"банан\"), штекер на кабель диаметром до 8,5 мм сечением 1,5 - 6,0 мм², универсальный ламельный позолоченный контакт под пайку/зажим/обжим, количество контактов: 1, металлический черный корпус, цвет маркировки: красный","шт",5.23,0.18,6.17,475.92]
["HI-BM13-WHT","Разъем HICON акустический BANANA (\"банан\"), штекер на кабель диаметром до 8,5 мм сечением 1,5 - 6,0 мм², универсальный ламельный позолоченный контакт под пайку/зажим/обжим, количество контактов: 1, металлический черный корпус, цвет маркировки: белый (нейтральный)","шт",5.23,0.18,6.17,475.92]
["HI-BNAN-FM","Адаптер HICON BNC гнездо / антенный TV штекер, количество контактов: 2, металлический никелированный корпус","шт",2.1800000000000002,0.18,2.57,198.23]
["HI-BNBN-FF","Адаптер HICON BNC гнездо / BNC гнездо, количество контактов: 2, металлический никелированный корпус","шт",2.39,0.18,2.82,217.52]
["HI-BNBN-MF90","Адаптер HICON BNC гнездо / BNC штекер угловой 90°, количество контактов: 2, металлический никелированный корпус","шт",5.21,0.18,6.14,473.6]
["HI-BNC59FG","Разъем HICON BNC 0.8/3.7, гнездо на кабель, позолоченные контакты под пайку, количество контактов: 2, металлический серый лакированный корпус, PTFE изоляция","шт",5.35,0.18,6.31,486.72]
["HI-BNC59MG","Разъем HICON BNC 0.8/3.7, штекер на кабель, позолоченные контакты под пайку, количество контактов: 2, металлический серый лакированный корпус, PTFE изоляция","шт",5.64,0.18,6.65,512.94000000000005]
["HI-BNCI-FF","Адаптер HICON BNC гнездо / RCA гнездо, количество контактов: 2, металлический никелированный корпус","шт",3.45,0.18,4.08,314.70999999999998]
["HI-BNCI-FM","Адаптер HICON BNC гнездо / RCA штекер, количество контактов: 2, металлический никелированный корпус","шт",2.5299999999999998,0.18,2.99,230.63]
["HI-BNCI-MF","Адаптер HICON BNC штекер / RCA гнездо, количество контактов: 2, металлический никелированный корпус","шт",2.42,0.18,2.84,219.06]
["HI-C6XL-HD","HICON защитная металлическая черная гильза в формате XLR для сетевого разъема RJ45C6XL SOMMER CABLE","шт",3.08,0.18,3.64,280.77]
["HI-CEF01-BLK","Разъем HICON RCA, гнездо на панель, позолоченные контакты под пайку, количество контактов: 2, металлический позолоченный корпус, внешняя резъба Ø 8,0 мм, цвет маркировки: черный, PTFE изоляция","шт",3.56,0.18,4.21,324.73]
["HI-CEF01-RED","Разъем HICON RCA, гнездо на панель, позолоченные контакты под пайку, количество контактов: 2, металлический позолоченный корпус, внешняя резъба Ø 8,0 мм, цвет маркировки: красный, PTFE изоляция","шт",3.56,0.18,4.21,324.73]
["HI-CEF01-WHT","Разъем HICON RCA, гнездо на панель, позолоченные контакты под пайку, количество контактов: 2, металлический позолоченный корпус, внешняя резъба Ø 8,0 мм, цвет маркировки: белый, PTFE изоляция","шт",3.56,0.18,4.21,324.73]
["HI-CEF02","Разъем HICON RCA, гнездо на панель, никелированные контакты под пайку, количество контактов: 2, металлический корпус, внешняя резъба Ø 12,7 мм (1/2\"), совместин с фланцем D-типа HI-DET HICON","шт",3.65,0.18,4.3,331.68]
["HI-CEFD-BLU","Разъем HICON RCA, гнездо на панель, никелированные контакты под пайку, количество контактов: 2, металлический корпус, фланец D-типа, цвет маркировки: синий","шт",4.8099999999999996,0.18,5.66,436.58]
["HI-CEFD-GRN","Разъем HICON RCA, гнездо на панель, никелированные контакты под пайку, количество контактов: 2, металлический корпус, фланец D-типа, цвет маркировки: зеленый","шт",4.8099999999999996,0.18,5.66,436.58]
["HI-CEFD-NTL","Разъем HICON RCA, гнездо на панель, никелированные контакты под пайку, количество контактов: 2, металлический корпус, фланец D-типа, цвет маркировки: черный (нейтральный)","шт",4.8099999999999996,0.18,5.66,436.58]
["HI-CEFD-RED","Разъем HICON RCA, гнездо на панель, никелированные контакты под пайку, количество контактов: 2, металлический корпус, фланец D-типа, цвет маркировки: красный","шт",4.8099999999999996,0.18,5.66,436.58]
["HI-CEFD-WHT","Разъем HICON RCA, гнездо на панель, никелированные контакты под пайку, количество контактов: 2, металлический корпус, фланец D-типа, цвет маркировки: белый","шт",4.8099999999999996,0.18,5.66,436.58]
["HI-CEFD-YEL","Разъем HICON RCA, гнездо на панель, никелированные контакты под пайку, количество контактов: 2, металлический корпус, фланец D-типа, цвет маркировки: желтый","шт",4.8099999999999996,0.18,5.66,436.58]
["HI-CEFP01-NTL","Разъем HICON RCA удлинитель патч версия, гнездо на панель, никелированные контакты, количество контактов: 2, металлический корпус, внешняя резъба Ø 12,7 мм (1/2\"), совместин с фланцем D-типа HI-DET HICON","шт",5.09,0.18,6.01,463.58]
["HI-CF08-BLU","Разъем HICON RCA, гнездо на кабель диаметром 6,0 - 8,0 мм, позолоченные контакты под пайку, количество контактов: 2, металлический хромированный корпус, цвет маркировки: синий","шт",4.34,0.18,5.12,394.93]
["HI-CF08-RED","Разъем HICON RCA, гнездо на кабель диаметром 6,0 - 8,0 мм, позолоченные контакты под пайку, количество контактов: 2, металлический хромированный корпус, цвет маркировки: красный","шт",4.34,0.18,5.12,394.93]
["HI-CF08-WHT","Разъем HICON RCA, гнездо на кабель диаметром 6,0 - 8,0 мм, позолоченные контакты под пайку, металлический хромированный корпус, цвет маркировки: белый","шт",4.34,0.18,5.12,394.93]
["HI-CI-MF90","Адаптер HICON RCA штекер / RCA гнездо угловой 90°, позолоченные контакты, количество контактов: 2/2, металлический позолоченный корпус","шт",5.38,0.18,6.35,489.8]
["HI-CICI-FF","Адаптер HICON RCA гнездо / RCA гнездо, никелированные контакты, количество контактов: 2/2, металлический черный корпус","шт",9.4700000000000006,0.18,11.17,861.59]
["HI-CIJM3-MF","Адаптер HICON RCA штекер / MINI JACK 3,5 мм гнездо, никелированные контакты, количество контактов: 3/2, металлический никелированный корпус","шт",1.91,0.18,2.2599999999999998,174.32]
["HI-CM-SM","Разъем HICON RCA Screw & Play (для самостоятельного монтажа без пайки), штекер на кабель диаметром 4,0 - 6,8 мм, монолитный пин, позолоченные контакты , центральный контакт с винтовым зажимом, количество контактов: 2, металлический цанговый кабельный зажим, металлический позолоченный корпус, металлический черный резьбовой колпачок, изоляция из высокомолекулярного термопластика, цвет маркировки: белый / красный, в комплекте 2 маркировочных пластиковых кольца белого и красного цвета","шт",12.83,0.18,15.14,1167.81]
["HI-CM01C","Разъем HICON RCA RG59 версия, штекер на кабель, монолитный пин, позолоченные контакты под обжим, количество контактов: 2, металлический хромированный корпус","шт",7.27,0.18,8.58,661.81]
["HI-CM03-NTL","Разъем HICON RCA, штекер на кабель диаметром до 7,5 мм, монолитный пин, позолоченные контакты под пайку, количество контактов: 2, пластиковый цанговый кабельный зажим, металлический черный корпус, металлический пружинный хвостовик на кабель диаметром до 6,4 мм, цвет маркировки: белый (нейтральный)","шт",2.7,0.18,3.19,246.06]
["HI-CM03-RED","Разъем HICON RCA, штекер на кабель диаметром до 7,5 мм, монолитный пин, позолоченные контакты под пайку, количество контактов: 2, пластиковый цанговый кабельный зажим, металлический черный корпус, металлический пружинный хвостовик на кабель диаметром до 6,4 мм, цвет маркировки: красный","шт",2.7,0.18,3.19,246.06]
["HI-CM06-BLU","Разъем HICON RCA, штекер на кабель диаметром до 7,0 мм, монолитный пин, позолоченные контакты под пайку, количество контактов: 2, клеммный кабельный зажим, металлический черный корпус, резиновый конический черный хвостовик на кабель диаметром до 5,0 мм, цвет маркировки: синий","шт",3.27,0.18,3.87,298.51]
["HI-CM06-GRN","Разъем HICON RCA, штекер на кабель диаметром до 7,0 мм, монолитный пин, позолоченные контакты под пайку, количество контактов: 2, клеммный кабельный зажим, металлический черный корпус, резиновый конический черный хвостовик на кабель диаметром до 5,0 мм, цвет маркировки: зеленый","шт",3.27,0.18,3.87,298.51]
["HI-CM06-NTL","Разъем HICON RCA, штекер на кабель диаметром до 7,0 мм, монолитный пин, позолоченные контакты под пайку, количество контактов: 2, клеммный кабельный зажим, металлический черный корпус, резиновый конический черный хвостовик на кабель диаметром до 5,0 мм, цвет маркировки: белый (нейтральный)","шт",3.27,0.18,3.87,298.51]
["HI-CM06-RED","Разъем HICON RCA, штекер на кабель диаметром до 7,0 мм, монолитный пин, позолоченные контакты под пайку, количество контактов: 2, клеммный кабельный зажим, металлический черный корпус, резиновый конический черный хвостовик на кабель диаметром до 5,0 мм, цвет маркировки: красный","шт",3.27,0.18,3.87,298.51]
["HI-CM06-YEL","Разъем HICON RCA, штекер на кабель диаметром до 7,0 мм, монолитный пин, позолоченные контакты под пайку, количество контактов: 2, клеммный кабельный зажим, металлический черный корпус, резиновый конический черный хвостовик на кабель диаметром до 5,0 мм, цвет маркировки: желтый","шт",3.27,0.18,3.87,298.51]
["HI-CM07-NTL","Разъем HICON RCA, штекер на кабель диаметром 6,0 - 8,0 мм, монолитный пин, позолоченные контакты под пайку, количество контактов: 2, клеммный кабельный зажим, металлический хромированный корпус, цвет маркировки: белый (нейтральный)","шт",5.23,0.18,6.18,476.69]
["HI-CM07-RED","Разъем HICON RCA, штекер на кабель диаметром 6,0 - 8,0 мм, монолитный пин, позолоченные контакты под пайку, количество контактов: 2, клеммный кабельный зажим, металлический хромированный корпус, цвет маркировки: красный","шт",5.23,0.18,6.18,476.69]
["HI-CM09-NTL","Разъем HICON RCA с цанговым механизмом фиксации штекера в гнезде, штекер на кабель диаметром 6,0 - 8,0 мм, монолитный пин, позолоченные контакты под пайку, количество контактов: 2, винтовой кабельный зажим, металлический хромированный корпус, цвет маркировки: белый (нейтральный)","шт",13.58,0.18,16.04,1237.23]
["HI-CM09-RED","Разъем HICON RCA с цанговым механизмом фиксации штекера в гнезде, штекер на кабель диаметром 6,0 - 8,0 мм, монолитный пин, позолоченные контакты под пайку, количество контактов: 2, винтовой кабельный зажим, металлический хромированный корпус, цвет маркировки: красный","шт",13.58,0.18,16.04,1237.23]
["HI-CM13-BLK","Разъем HICON RCA с цанговым механизмом фиксации штекера в гнезде, штекер на кабель диаметром 6,0 - 9,0 мм, монолитный пин, позолоченные контакты под пайку, количество контактов: 2, винтовой кабельный зажим, металлический матово хромированный корпус, цвет маркировки: черный","шт",7.16,0.18,8.44,651.01]
["HI-CM13-RED","Разъем HICON RCA с цанговым механизмом фиксации штекера в гнезде, штекер на кабель диаметром 6,0 - 9,0 мм, монолитный пин, позолоченные контакты под пайку, количество контактов: 2, винтовой кабельный зажим, металлический матово хромированный корпус, цвет маркировки: красный","шт",7.16,0.18,8.44,651.01]
["HI-CM18-NTL","Разъем HICON RCA с цанговым механизмом фиксации штекера в гнезде, штекер на кабель диаметром 6,0 - 8,0 мм, монолитный пин, позолоченные контакты под пайку, количество контактов: 2, винтовой кабельный зажим, металлический хромированный корпус, цвет маркировки: белый (нейтральный)","шт",9.7100000000000009,0.18,11.47,884.73]
["HI-CM18-RED","Разъем HICON RCA с цанговым механизмом фиксации штекера в гнезде, штекер на кабель диаметром 6,0 - 8,0 мм, монолитный пин, позолоченные контакты под пайку, количество контактов: 2, винтовой кабельный зажим, металлический хромированный корпус, цвет маркировки: красный","шт",9.7100000000000009,0.18,11.47,884.73]
["HI-CMA01-BLK","Разъем HICON RCA угловой 90°, штекер на кабель диаметром до 7,0 мм, монолитный пин, позолоченные контакты , центральный контакт с винтовым зажимом, количество контактов: 2, металлический цанговый кабельный зажим, металлический хромированный корпус, цвет маркировки: черный","шт",12.49,0.18,14.75,1137.73]
["HI-CMA01-RED","Разъем HICON RCA угловой 90°, штекер на кабель диаметром до 7,0 мм, монолитный пин, позолоченные контакты , центральный контакт с винтовым зажимом, количество контактов: 2, металлический цанговый кабельный зажим, металлический хромированный корпус, цвет маркировки: красный","шт",12.49,0.18,14.75,1137.73]
["HI-CMA02-NTL","Разъем HICON RCA угловой 90°, штекер на кабель диаметром до 7,0 мм, монолитный пин, позолоченные контакты , центральный контакт с винтовым зажимом, количество контактов: 2, металлический цанговый кабельный зажим, металлический черный корпус, цвет маркировки: белый (нейтральный)","шт",12.1,0.18,14.29,{"$f":"ROUND(F718*$B$6*(1+0.02),2)","v":1102.25}]
["HI-CMA02-RED","Разъем HICON RCA угловой 90°, штекер на кабель диаметром до 7,0 мм, монолитный пин, позолоченные контакты , центральный контакт с винтовым зажимом, количество контактов: 2, металлический цанговый кабельный зажим, металлический черный корпус, цвет маркировки: красный","шт",12.1,0.18,14.29,1102.25]
["HI-CT05-BLK","Разъем HICON акустический \"лопатка\" на кабель диаметром до 3,8 мм сечением 4,0 - 6,0 мм², позолоченный контакт, количество контактов: 1, винтовой кабельный зажим, металлический позолоченный корпус, металлический черный резьбовой кабельный ввод, разлет лопатки: 6,0 мм, цвет маркировки: черный","шт",3.49,0.18,4.13,318.56]
["HI-CT05-RED","Разъем HICON акустический \"лопатка\" на кабель диаметром до 3,8 мм сечением 4,0 - 6,0 мм², позолоченный контакт, количество контактов: 1, винтовой кабельный зажим, металлический позолоченный корпус, металлический черный резьбовой кабельный ввод, разлет лопатки: 6,0 мм, цвет маркировки: красный","шт",3.49,0.18,4.13,318.56]
["HI-CT12-BLK","Разъем HICON акустический \"лопатка\" на кабель диаметром до 7,5 мм сечением 4,0 - 25,0 мм², позолоченный контакт, винтовой кабельный зажим, металлический позолоченный корпус, разлет лопатки: 7,7 мм, цвет маркировки: черный","шт",6.34,0.18,7.48,576.96]
["HI-CT12-RED","Разъем HICON акустический \"лопатка\" на кабель диаметром до 7,5 мм сечением 4,0 - 25,0 мм², позолоченный контакт, винтовой кабельный зажим, металлический позолоченный корпус, разлет лопатки: 7,7 мм, цвет маркировки: красный","шт",6.34,0.18,7.48,576.96]
["HI-CTA01","Разъем HICON акустический \"лопатка\" угловой 30° на кабель диаметром до 6,0 мм сечением 1,5 - 8,0 мм², позолоченный контакт, количество контактов: 1, клеммный кабельный зажим, металлический позолоченный корпус, разлет лопатки: 7,7 мм","шт",2.0299999999999998,0.18,2.39,184.35]
["HI-CTA02","Разъем HICON акустический \"лопатка\" угловой 25° на кабель диаметром до 6,0 мм сечением 1,5 - 8,0 мм², позолоченный контакт, клеммный кабельный зажим, металлический позолоченный корпус, разлет лопатки: 7,7 мм","шт",2.39,0.18,2.82,217.52]
["HI-DET","HICON универсальный пластиковый фланец D-типа, углубленный, с отверстием 12,5 мм, цвет : черный","шт",1.39,0.18,1.64,126.5]
["HI-DET-M","HICON универсальный металлический фланец D-типа, углубленный, с отверстием 12,5 мм, крепежные отверстия с резьбой M3, цвет : черный","шт",2.06,0.18,2.4300000000000002,187.44]
["HI-DPFF-0015-SW","Адаптер HICON DisplayPort гнездо / DisplayPort гнездо длина кабеля 0,15 м, цвет пластиковых корпусов разъемов и кабеля: черный, винтовое крепление","шт",14.77,0.18,17.43,1344.45]
["HI-DR-BL","HICON пластиковое маркировочное кольцо для фланцев типа D версий FDH и FPD, цвет : синий","шт",0.18,0.18,0.22,16.97]
["HI-DR-BR","HICON пластиковое маркировочное кольцо для фланцев типа D версий FDH и FPD, цвет : коричневый","шт",0.18,0.18,0.21,16.2]
["HI-DR-GE","HICON пластиковое маркировочное кольцо для фланцев типа D версий FDH и FPD, цвет : желтый","шт",0.18,0.18,0.21,16.2]
["HI-DR-GN","HICON пластиковое маркировочное кольцо для фланцев типа D версий FDH и FPD, цвет : зеленый","шт",0.18,0.18,0.21,16.2]
["HI-DR-GR","HICON пластиковое маркировочное кольцо для фланцев типа D версий FDH и FPD, цвет : серый","шт",0.18,0.18,0.21,16.2]
["HI-DR-MN","HICON пластиковое маркировочное кольцо для фланцев типа D версий FDH и FPD, цвет : мятный","шт",0.18,0.18,0.21,16.2]
["HI-DR-OR","HICON пластиковое маркировочное кольцо для фланцев типа D версий FDH и FPD, цвет : оранжевый","шт",0.18,0.18,0.21,16.2]
["HI-DR-PN","HICON пластиковое маркировочное кольцо для фланцев типа D версий FDH и FPD, цвет : розовый","шт",0.18,0.18,0.21,16.2]
["HI-DR-RT","HICON пластиковое маркировочное кольцо для фланцев типа D версий FDH и FPD, цвет : красный","шт",0.18,0.18,0.21,16.2]
["HI-DR-VI","HICON пластиковое маркировочное кольцо для фланцев типа D версий FDH и FPD, цвет : фиолетовый","шт",0.18,0.18,0.21,16.2]
["HI-DR-WS","HICON пластиковое маркировочное кольцо для фланцев типа D версий FDH и FPD, цвет : белый","шт",0.18,0.18,0.21,16.2]
["HI-DVDV-FF","Адаптер HICON DVI гнездо / DVI гнездо, количество контактов: 24 + 5, пластиковый серый корпус, винтовое крепление","шт",14.17,0.18,16.73,1290.45]
["HI-DVDV-FFL","Адаптер HICON DVI гнездо / DVI гнездо длина корпуса 61 мм, количество контактов: 24 + 5, пластиковый черный корпус, винтовое крепление","шт",7.68,0.18,9.0500000000000007,698.06]
["HI-F-MF90","Адаптер HICON антенное F гнездо / антенный F штекер угловой 90°, никелированные контакты, количество контактов: 2, металлический никелированный корпус","шт",1.27,0.18,1.49,114.93]
["HI-FAN-FF90","Адаптер HICON антенное F гнездо / антенное TV гнездо угловой 90°, никелированные контакты, количество контактов: 2, металлический никелированный корпус","шт",1.43,0.18,1.69,130.36000000000001]
["HI-FAN-FM90","Адаптер HICON антенное F гнездо / антенный TV штекер угловой 90°, никелированные контакты, количество контактов: 2, металлический никелированный корпус","шт",1.43,0.18,1.69,130.36000000000001]
["HI-FC-BL","HICON 10 маркировочных самоклеящихся полосок на одном листе для разъема HI-FIBER4-MC, цвет : синий","набор",1.58,0.18,1.87,144.24]
["HI-FC-GE","HICON 10 маркировочных самоклеящихся полосок на одном листе для разъема HI-FIBER4-MC, цвет : желтый","набор",1.58,0.18,1.87,144.24]
["HI-FC-GN","HICON 10 маркировочных самоклеящихся полосок на одном листе для разъема HI-FIBER4-MC, цвет : зеленый","набор",1.58,0.18,1.87,144.24]
["HI-FC-RT","HICON 10 маркировочных самоклеящихся полосок на одном листе для разъема HI-FIBER4-MC, цвет : красный","набор",1.58,0.18,1.87,144.24]
["HI-FC-SW","HICON 10 маркировочных самоклеящихся полосок на одном листе для разъема HI-FIBER4-MC, цвет : черный","набор",1.58,0.18,1.87,144.24]
["HI-FC-WS","HICON 10 маркировочных самоклеящихся полосок на одном листе для разъема HI-FIBER4-MC, цвет : белый","набор",1.58,0.18,1.87,144.24]
["HI-FEEP01","Адаптер HICON антенное F гнездо / антенное F гнездо, никелированные контакты, количество контактов: 2, металлический никелированный корпус, внешняя резъба Ø 12,7 мм (1/2\"), совместим с D фланцем HICON HI-DET","шт",4.0599999999999996,0.18,4.8099999999999996,371.02]
["HI-FEFP","Адаптер HICON антенное F гнездо / антенное F гнездо, никелированные контакты, количество контактов: 2, металлический никелированный корпус","шт",1.05,0.18,1.23,94.87]
["HI-FIBER4-FCAP","HICON защитный металлический колпачок на тросике для панельного адаптера HI-FIBER4-FD","шт",13.76,0.18,16.239999999999998,1252.6600000000001]
["HI-FIBER4-FD","Разъем HICON оптический LC, гнездо на панель, количество контактов: 4 (без контактов, контакты заказываются отдельно), металлический черный корпус, фланец D-типа, крепежные отверстия с резьбой M3, ответная часть: разъем HI-FIBER-MC HICON","шт",54.41,0.18,64.209999999999994,4952.78]
["HI-FIBER4-MC","Разъем HICON кожух для 4 х LC кабельных разъемов (без разъемов) пыленепроницаемый и водостойкий (IP67), штекер на кабель диаметром 5,0 - 9,0 мм, металлический темно-серебряный корпус, резиновый конический хвостовик, в комплекте металлический защитный колпачок на тросике, ответная часть: разъем HI-FIBER-FD HICON","шт",200.13,0.18,236.16,18216]
["HI-FM07","Разъем HICON антенный серии F, штекер на кабель диаметром до 8,2 мм, позолоченный центральный контакт , центральный контакт с винтовым зажимом, количество контактов: 2, 4-х лепестковый металлический цанговый кабельный зажим, металлический черный матовый корпус, диэлектрик PTFE","шт",4.95,0.18,5.84,450.46]
["HI-FM08","Разъем HICON антенный серии F, штекер на кабель диаметром до 7,3 мм, позолоченный центральный контакт под пайку, количество контактов: 2, клеммный кабельный зажим, металлический серый лакированный корпус","шт",6.71,0.18,7.92,610.9]
["HI-HD-M","Разъем HICON HDMI для самостоятельного монтажа, штекер на кабель, позолоченные контакты под пайку, количество контактов: 19, металлический черный лакированный корпус, резиновый гофрированный конический хвостовик, рекомендуемый кабель: SC-TRANSIT High Speed HDMI + Ethernet / арт. номер: 612-0251","шт",9.56,0.18,11.29,870.84]
["HI-HD-MSK","Разъем HICON HDMI для самостоятельного монтажа, штекер на кабель, позолоченные контакты под обжим, количество контактов: 19, металлический матово хромированный корпус, рекомендуемый кабель: SC-TRANSIT High Speed HDMI + Ethernet / арт. номер: 612-0251","шт",10.38,0.18,12.25,944.89]
["HI-HDFF-0015-SW","Адаптер HICON HDMI гнездо с винтовым креплением / HDMI гнездо длина кабеля 0,15 м, цвет пластиковых корпусов разъемов и кабеля: черный","шт",14.4,0.18,16.989999999999998,1310.51]
["HI-HDFM-0030-SW","Адаптер HICON HDMI гнездо с винтовым креплением / HDMI штекер длина кабеля 0,30 м, цвет пластиковых корпусов разъемов и кабеля: черный","шт",15.39,0.18,18.16,1400.76]
["HI-HDFM-0050-SW","Адаптер HICON HDMI гнездо с винтовым креплением / HDMI штекер длина кабеля 0,50 м, цвет пластиковых корпусов разъемов и кабеля: черный","шт",16.05,0.18,18.95,1461.69]
["HI-HDFM-0100-SW","Адаптер HICON HDMI гнездо с винтовым креплением / HDMI штекер длина кабеля 1,00 м, цвет пластиковых корпусов разъемов и кабеля: черный","шт",17.36,0.18,20.49,1580.48]
["HI-HDHD-FF","Адаптер HICON HDMI гнездо / HDMI гнездо, пластиковый черный корпус, винтовое крепление","шт",22.38,0.18,26.42,2037.88]
["HI-HDHD-FFDN","Адаптер HICON HDMI гнездо / HDMI гнездо на панель, позолоченные контакты, количество контактов: 19, металлический матово хромированный корпус, тип D","шт",14.65,0.18,17.29,1333.65]
["HI-HDHD-RPT","Репитер HICON HDMI пассивный, пластиковый черный корпус, опционально возможно подключение блока юитания 5 Вольт, общая максимальная длина HDMI соединения - 40 м (5 м до репитера, 35 м - после)","шт",30.13,0.18,35.56,2742.89]
["HI-HOUSING","HICON универсальный металлический прямoугольный корпус для фланцев D типа, длина: 100 мм, в комплекте винты TORX, цвет : черный","шт",12.64,0.18,14.91,1150.07]
["HI-J3563S","Разъем HICON MINI JACK 3,5 мм штекер в комплекете: адаптер MINI JACK 3,5 мм / JACK 6,3 мм на резьбовом соединениии с позолоченными контактами, штекер на кабель диаметром до 5,8 мм, позолоченные контакты под пайку, количество контактов: 3, клеммный кабельный зажим, металлический черный корпус","шт",5.6,0.18,6.6,509.09]
["HI-J35M04","Разъем HICON MINI JACK 3,5 мм штекер, штекер на кабель диаметром 4,0 - 6,8 мм, позолоченные контакты под пайку, количество контактов: 2, пластиковый цанговый кабельный зажим, металлический черный корпус","шт",6.1,0.18,7.21,556.14]
["HI-J35S-SCREW-F","Разъем HICON MINI JACK 3,5 мм гнездо резьбовое соединение с ответной частью, гнездо на кабель диаметром до 5,8 мм, позолоченные контакты под пайку, количество контактов: 3, клеммный кабельный зажим, металлический черный корпус","шт",3.53,0.18,4.17,321.64999999999998]
["HI-J35S-SCREW-M","Разъем HICON MINI JACK 3,5 мм штекер резьбовое соединение с ответной частью, штекер на кабель диаметром до 5,8 мм, позолоченные контакты под пайку, количество контактов: 3, клеммный кабельный зажим, металлический черный корпус, накидная резьбовая гильза","шт",3.83,0.18,4.5199999999999996,348.65]
["HI-J35S02","Разъем HICON MINI JACK 3,5 мм штекер, штекер на кабель диаметром до 8,4 мм, позолоченные контакты под пайку, количество контактов: 3, клеммный кабельный зажим, металлический черный корпус, резиновый конический черный хвостовик на кабель диаметром до 5,0 мм","шт",4.51,0.18,5.31,409.58]
["HI-J35S03","Разъем HICON MINI JACK 3,5 мм штекер компактная версия, штекер на кабель диаметром до 6,5 мм, позолоченные контакты под пайку, количество контактов: 3, клеммный кабельный зажим, металлический черный корпус","шт",3.39,0.18,3.99,307.77]
["HI-J35S04","Разъем HICON MINI JACK 3,5 мм штекер, штекер на кабель диаметром 4,0 - 6,8 мм, позолоченные контакты под пайку, количество контактов: 3, пластиковый цанговый кабельный зажим, металлический черный корпус","шт",6.47,0.18,7.64,589.29999999999995]
["HI-J35S05","Разъем HICON MINI JACK 3,5 мм штекер, штекер на кабель диаметром до 5,8 мм, позолоченные контакты под пайку, количество контактов: 3, клеммный кабельный зажим, алюминиевый черный корпус","шт",4,0.18,4.7300000000000004,364.84]
["HI-J35SA","Разъем HICON MINI JACK 3,5 мм угловой 90° штекер, штекер на кабель диаметром до 5,8 мм, позолоченные контакты под пайку, количество контактов: 3, клеммный кабельный зажим, алюминиевый черный корпус","шт",5.05,0.18,5.97,460.49]
["HI-J35SEF","Разъем HICON MINI JACK 3,5 мм штекер, гнездо на панель, никелированные контакты под пайку, количество контактов: 3, металлический хромированный корпус","шт",2.4900000000000002,0.18,2.95,227.55]
["HI-J35SEFD","Разъем HICON MINI JACK 3,5 мм штекер, гнездо на панель, никелированные контакты под пайку, количество контактов: 3, металлический корпус, фланец D-типа","шт",3.96,0.18,4.68,360.99]
["HI-J35SEFD-S","Разъем HICON MINI JACK 3,5 мм штекер, гнездо на панель, никелированные контакты под винтовой зажим, количество контактов: 3, фланец D-типа","шт",26.34,0.18,31.08,2397.33]
["HI-J35T02","Разъем HICON MINI JACK 3,5 мм штекер, штекер на кабель диаметром до 8,4 мм, позолоченные контакты под пайку, количество контактов: 4, клеммный кабельный зажим, металлический черный корпус, резиновый конический черный хвостовик на кабель диаметром до 5,0 мм","шт",5.75,0.18,6.78,522.97]
["HI-J63M","Разъем HICON JACK 6,3 мм (моно) с защитой центрального пина от прокручивания, штекер на кабель диаметром до 7,8 мм, монолитный позолоченный TIP контакт, контакты под пайку, количество контактов: 2, 4-х лепестковый пластиковый цанговый кабельный зажим, металлический корпус, металлический черный резьбовой колпачок, резиновый гофрированный конический хвостовик, пластиковое прозрачное кольцо для нанесения индивидуальной маркировки","шт",3.9,0.18,4.5999999999999996,354.82]
["HI-J63M-PH","Разъем HICON JACK 6,3 мм (моно) PCB версия, гнездо на панель в плату (горизонтальная установка), луженые контакты под пайку, количество контактов: 2, пластиковый черный корпус, пластиковая накидная гайка с контргайкой и шайбой","шт",0.62,0.18,0.74,{"$f":"ROUND(F782*$B$6*(1+0.02),2)","v":57.08}]
["HI-J63M-PHM","Разъем HICON JACK 6,3 мм (моно) PCB версия, гнездо на панель в плату (горизонтальная установка), луженые контакты под пайку, количество контактов: 2, пластиковый черный корпус, металлическая накидная гайка с контргайкой и шайбой","шт",0.77,0.18,0.91,70.19]
["HI-J63M-PVM","Разъем HICON JACK 6,3 мм (моно) PCB версия, гнездо на панель в плату (вертикальная установка), луженые контакты под пайку, количество контактов: 2, пластиковый черный корпус, металлическая накидная гайка с контргайкой и шайбой","шт",0.9,0.18,1.05,80.989999999999995]
["HI-J63M01","Разъем HICON JACK 6,3 мм (моно), штекер на кабель диаметром до 6,0 мм, позолоченный TIP контакт, контакты под пайку, количество контактов: 2, металлический матово хромированный корпус, резиновый конический хвостовик","шт",2.2599999999999998,0.18,2.66,205.18]
["HI-J63M03","Разъем HICON JACK 6,3 мм (моно) PRO версия, штекер на кабель диаметром до 7,8 мм, монолитный TIP контакт, никелированные контакты под пайку, количество контактов: 2, 4-х лепестковый пластиковый цанговый кабельный зажим, металлический черный корпус, металлический черный резьбовой колпачок, резиновый гофрированный конический хвостовик","шт",3.53,0.18,4.17,321.64999999999998]
["HI-J63M03-G","Разъем HICON JACK 6,3 мм (моно) PRO версия, штекер на кабель диаметром до 7,8 мм, монолитный TIP контакт, позолоченные контакты под пайку, количество контактов: 2, 4-х лепестковый пластиковый цанговый кабельный зажим, металлический черный корпус, металлический черный резьбовой колпачок, резиновый гофрированный конический хвостовик","шт",4.09,0.18,4.82,371.79]
["HI-J63M04","Разъем HICON JACK 6,3 мм (моно) CLASSIC версия, штекер на кабель диаметром до 7,0 мм, монолитный позолоченный TIP контакт, контакты под пайку, количество контактов: 2, клеммный кабельный зажим, металлический черный корпус","шт",3.3,0.18,3.9,300.82]
["HI-J63M07","Разъем HICON JACK 6,3 мм (моно), штекер на кабель диаметром до 5,0 мм, позолоченный TIP контакт, контакты под пайку, количество контактов: 2, клеммный кабельный зажим, металлический черный корпус, резиновый конический черный хвостовик на кабель диаметром до 5,0 мм","шт",2.96,0.18,3.49,269.2]
["HI-J63M14","Разъем HICON JACK 6,3 мм (моно) NOISEFREE (бесшумное подключение), штекер на кабель диаметром до 7,0 мм, монолитный позолоченный TIP контакт, контакты под пайку, количество контактов: 2, клеммный кабельный зажим, металлический черный корпус","шт",4.34,0.18,5.12,394.93]
["HI-J63MA01","Разъем HICON JACK 6,3 мм угловой 90° (моно), штекер на кабель диаметром до 6,0 мм, позолоченный TIP контакт, контакты под пайку, количество контактов: 2, металлический матово хромированный корпус, резиновый конический хвостовик","шт",3.53,0.18,4.16,320.88]
["HI-J63MA04","Разъем HICON JACK 6,3 мм угловой 90° (моно) CLASSIC версия, штекер на кабель диаметром до 7,0 мм, монолитный позолоченный TIP контакт, контакты под пайку, количество контактов: 2, клеммный кабельный зажим, металлический черный корпус","шт",4.12,0.18,4.8600000000000003,374.87]
["HI-J63MA05","Разъем HICON JACK 6,3 мм угловой 90° (моно) плоский (\"таблетка\"), штекер на кабель диаметром 4,0 - 6,4 мм, монолитный позолоченный TIP контакт, контакты под пайку, количество контактов: 2, клеммный кабельный зажим, металлический черный/металлический корпус, влагоотталкивающая изоляция","шт",2.2599999999999998,0.18,2.66,205.18]
["HI-J63MA06","Разъем HICON JACK 6,3 мм угловой 90° (моно), штекер на кабель диаметром до 8,0 мм, позолоченный TIP контакт, контакты под пайку, количество контактов: 2, 3-х лепестковый пластиковый цанговый кабельный зажим, металлический черный корпус, пластиковый черный резьбовой колпачок, резиновый конический хвостовик","шт",1.82,0.18,2.16,166.61]
["HI-J63MA07","Разъем HICON JACK 6,3 мм угловой 90° (моно), штекер на кабель диаметром до 7,5 мм, позолоченный TIP контакт, контакты под пайку, количество контактов: 2, клеммный кабельный зажим, металлический черный корпус, пластиковый черный резьбовой колпачок, резиновый конический черный хвостовик на кабель диаметром до 5,0 мм","шт",3.83,0.18,4.5199999999999996,348.65]
["HI-J63MA14","Разъем HICON JACK 6,3 мм угловой 90° (моно) NOISEFREE (бесшумное подключение), штекер на кабель диаметром до 7,0 мм, монолитный позолоченный TIP контакт, контакты под пайку, количество контактов: 2, клеммный кабельный зажим, металлический черный корпус","шт",5.01,0.18,5.91,455.86]
["HI-J63MP","Разъем HICON JACK 6,3 мм (моно) BASIC версия, штекер на кабель диаметром до 7,0 мм, монолитный TIP контакт, никелированные контакты под пайку, количество контактов: 2, 3-х лепестковый пластиковый цанговый кабельный зажим, металлический матово никелированный корпус, пластиковый черный резьбовой колпачок, резиновый конический хвостовик, пластиковое прозрачное кольцо для нанесения индивидуальной маркировки","шт",2.75,0.18,3.25,250.69]
["HI-J63MP-B","Разъем HICON JACK 6,3 мм (моно) BASIC версия, штекер на кабель диаметром до 7,0 мм, монолитный TIP контакт, никелированные контакты под пайку, количество контактов: 2, 3-х лепестковый пластиковый цанговый кабельный зажим, металлический черный корпус, пластиковый черный резьбовой колпачок, резиновый конический хвостовик, не проводящая поверхность, пластиковое прозрачное кольцо для нанесения индивидуальной маркировки","шт",2.84,0.18,3.36,259.17]
["HI-J63S","Разъем HICON JACK 6,3 мм (стерео) с защитой центрального пина от прокручивания, штекер на кабель диаметром до 7,8 мм, монолитный позолоченный TIP контакт, контакты под пайку, количество контактов: 3, 4-х лепестковый пластиковый цанговый кабельный зажим, металлический матово хромированный корпус, металлический черный резьбовой колпачок, резиновый гофрированный конический хвостовик, пластиковое прозрачное кольцо для нанесения индивидуальной маркировки","шт",4.7300000000000004,0.18,5.57,429.64]
["HI-J63S-PH","Разъем HICON JACK 6,3 мм (стерео) PCB версия, гнездо на панель в плату (горизонтальная установка), луженые контакты под пайку, количество контактов: 3, пластиковый черный корпус, пластиковая накидная гайка с контргайкой и шайбой","шт",0.65,0.18,0.77,59.39]
["HI-J63S-PHM","Разъем HICON JACK 6,3 мм (стерео) PCB версия, гнездо на панель в плату (горизонтальная установка), луженые контакты под пайку, количество контактов: 3, пластиковый черный корпус, металлическая накидная гайка с контргайкой и шайбой","шт",0.81,0.18,0.96,74.05]
["HI-J63S-PVM","Разъем HICON JACK 6,3 мм (стерео) PCB версия, гнездо на панель в плату (вертикальная установка), луженые контакты под пайку, количество контактов: 3, пластиковый черный корпус, металлическая накидная гайка с контргайкой и шайбой","шт",1.01,0.18,1.19,91.79]
["HI-J63S01","Разъем HICON JACK 6,3 мм (стерео), штекер на кабель диаметром до 6,0 мм, позолоченный TIP контакт, контакты под пайку, количество контактов: 3, клеммный кабельный зажим, металлический матово хромированный корпус, резиновый конический хвостовик","шт",2.6,0.18,3.06,236.03]
["HI-J63S02","Разъем HICON JACK 6,3 мм (стерео), штекер на кабель под пайку, количество контактов: 3, металлический корпус","шт",2.19,0.18,2.6,200.55]
["HI-J63S03","Разъем HICON JACK 6,3 мм (стерео) PRO версия, штекер на кабель диаметром до 7,8 мм, монолитный TIP контакт, никелированные контакты под пайку, количество контактов: 3, 4-х лепестковый пластиковый цанговый кабельный зажим, металлический черный корпус, металлический черный резьбовой колпачок, резиновый гофрированный конический хвостовик","шт",4.25,0.18,5.01,386.44]
["HI-J63S03-G","Разъем HICON JACK 6,3 мм (стерео) PRO версия, штекер на кабель диаметром до 7,8 мм, монолитный TIP контакт, позолоченные контакты под пайку, количество контактов: 3, 4-х лепестковый пластиковый цанговый кабельный зажим, металлический черный корпус, металлический черный резьбовой колпачок, резиновый гофрированный конический хвостовик","шт",4.75,0.18,5.61,432.72]
["HI-J63S04","Разъем HICON JACK 6,3 мм (стерео) CLASSIC версия, штекер на кабель диаметром до 7,0 мм, монолитный позолоченный TIP контакт, контакты под пайку, количество контактов: 3, клеммный кабельный зажим, металлический черный корпус","шт",3.88,0.18,4.58,353.27]
["HI-J63SA04","Разъем HICON JACK 6,3 мм угловой 90° (стерео) CLASSIC версия, штекер на кабель диаметром до 7,0 мм, монолитный позолоченный TIP контакт, контакты под пайку, количество контактов: 3, клеммный кабельный зажим, металлический черный корпус","шт",4.83,0.18,5.7,439.66]
["HI-J63SA05","Разъем HICON JACK 6,3 мм угловой 90° (стерео) плоский (\"таблетка\"), штекер на кабель диаметром 4,0 - 6,4 мм, монолитный позолоченный TIP контакт, контакты под пайку, количество контактов: 3, клеммный кабельный зажим, металлический черный корпус, влагоотталкивающая изоляция","шт",2.64,0.18,3.1,239.12]
["HI-J63SA06","Разъем HICON JACK 6,3 мм угловой 90° (стерео), штекер на кабель диаметром до 8,0 мм, позолоченный TIP контакт, контакты под пайку, количество контактов: 3, 3-х лепестковый пластиковый цанговый кабельный зажим, металлический черный корпус, пластиковый черный резьбовой колпачок, резиновый конический хвостовик","шт",2.2999999999999998,0.18,2.71,209.03]
["HI-J63SP","Разъем HICON JACK 6,3 мм (стерео) BASIC версия, штекер на кабель диаметром до 7,0 мм, монолитный TIP контакт, никелированные контакты под пайку, количество контактов: 3, 3-х лепестковый пластиковый цанговый кабельный зажим, металлический матово никелированный корпус, пластиковый черный резьбовой колпачок, резиновый конический хвостовик, пластиковое прозрачное кольцо для нанесения индивидуальной маркировки","шт",3.38,0.18,3.97,306.22000000000003]
["HI-J63SP-B","Разъем HICON JACK 6,3 мм (стерео) BASIC версия, штекер на кабель диаметром до 7,0 мм, монолитный TIP контакт, никелированные контакты под пайку, количество контактов: 3, 3-х лепестковый пластиковый цанговый кабельный зажим, металлический черный корпус, пластиковый черный резьбовой колпачок, резиновый конический хвостовик, не проводящая поверхность, пластиковое прозрачное кольцо для нанесения индивидуальной маркировки","шт",3.4,0.18,4.03,310.85000000000002]
["HI-J63TC-SM","Разъем HICON JACK 6,3 мм (моно) для быстрого самостоятельного монтажа без пайки на кабель SC-TRICONE XXL (арт. номер: 300-027#), штекер на кабель, монолитный позолоченный TIP контакт,, количество контактов: 2, пластиковый (полиамид, армированный стекловолокном) корпус, выступ для закрутки пина под гаечный ключ 8 мм","шт",3.7,0.18,4.3600000000000003,336.3]
["HI-JC-BL","HICON пластиковое маркировочное кольцо 1/2 стандартной ширины для прямых разъемов JACK 6,3 мм HICON, оснащенных прозрачным кольцом для индивид. маркировки, цвет : синий","шт",0.23,0.18,0.27,20.83]
["HI-JC-BL6","HICON пластиковое маркировочное кольцо стандартной ширины для прямых разъемов JACK 6,3 мм HICON, оснащенных прозрачным кольцом для индивид. маркировки, цвет : синий","шт",0.22,0.18,0.27,20.83]
["HI-JC-GE","HICON пластиковое маркировочное кольцо 1/2 стандартной ширины для прямых разъемов JACK 6,3 мм HICON, оснащенных прозрачным кольцом для индивид. маркировки, цвет : желтый","шт",0.23,0.18,0.27,20.83]
["HI-JC-GN","HICON пластиковое маркировочное кольцо 1/2 стандартной ширины для прямых разъемов JACK 6,3 мм HICON, оснащенных прозрачным кольцом для индивид. маркировки, цвет : зеленый","шт",0.23,0.18,0.27,20.83]
["HI-JC-OR","HICON пластиковое маркировочное кольцо 1/2 стандартной ширины для прямых разъемов JACK 6,3 мм HICON, оснащенных прозрачным кольцом для индивид. маркировки, цвет : оранжевый","шт",0.23,0.18,0.27,20.83]
["HI-JC-RT","HICON пластиковое маркировочное кольцо 1/2 стандартной ширины для прямых разъемов JACK 6,3 мм HICON, оснащенных прозрачным кольцом для индивид. маркировки, цвет : красный","шт",0.23,0.18,0.27,20.83]
["HI-JC-RT6","HICON пластиковое маркировочное кольцо стандартной ширины для прямых разъемов JACK 6,3 мм HICON, оснащенных прозрачным кольцом для индивид. маркировки, цвет : красный","шт",0.22,0.18,0.27,20.83]
["HI-JC-SW","HICON пластиковое маркировочное кольцо 1/2 стандартной ширины для прямых разъемов JACK 6,3 мм HICON, оснащенных прозрачным кольцом для индивид. маркировки, цвет : черный","шт",0.23,0.18,0.27,20.83]
["HI-JC-SW6","HICON пластиковое маркировочное кольцо стандартной ширины для прямых разъемов JACK 6,3 мм HICON, оснащенных прозрачным кольцом для индивид. маркировки, цвет : черный","шт",0.23,0.18,0.28999999999999998,22.37]
["HI-JC-TR6","HICON пластиковое маркировочное кольцо стандартной ширины для прямых разъемов JACK 6,3 мм HICON, оснащенных прозрачным кольцом для индивид. маркировки, цвет : прозрачный","шт",0.23,0.18,0.28999999999999998,22.37]
["HI-JM3CI-MF","Адаптер HICON MINI JACK (3,5 мм) штекер / RCA гнездо, никелированные контакты, количество контактов: 2/2, металлический никелированный корпус","шт",2.09,0.18,2.4700000000000002,190.52]
["HI-JM6CI-MF","Адаптер HICON JACK 6,3 мм штекер / RCA гнездо, никелированные контакты, количество контактов: 2/2, металлический никелированный корпус","шт",2.83,0.18,3.34,257.63]
["HI-JS3JS6-MF","Адаптер HICON MINI JACK 3,5 мм штекер / JACK 6,3 мм гнездо, никелированные контакты, количество контактов: 3/3, металлический никелированный корпус","шт",2.77,0.18,3.27,252.23]
["HI-JS6JS3-MF","Адаптер HICON JACK 6,3 мм штекер / MINI JACK 3,5 мм гнездо, никелированные контакты, количество контактов: 3/3, металлический никелированный корпус","шт",3.35,0.18,3.95,304.68]
["HI-KS38","HICON резиновый черный хвостовик для разъемов MINI JACK 3,5 мм HI-J35S-SCREW-M и HI-J3563S на кабель диаметром до 3,8 мм","шт",0.4,0.18,0.47,36.25]
["HI-LC01","Разъем HICON оптический LC на многомодовое оптоволокно всех классов, штекер на кабель под обжим, пластиковый бежевый корпус","шт",11.21,0.18,13.23,1020.48]
["HI-LC02","Разъем HICON оптический LC на одномодовое оптоволокно всех классов, штекер на кабель под обжим, пластиковый голубой корпус","шт",13.7,0.18,16.170000000000002,1247.26]
["HI-LK008FP","Разъем HICON LK (круглый) модификация CA-COM, гнездо на панель, количество контактов: 8 (без контактов, контакты заказываются отдельно), металлический черный корпус, байонетное соединение","шт",50.36,0.18,59.43,4584.08]
["HI-LK008FV","Разъем HICON LK (круглый) модификация CA-COM, гнездо на кабель, количество контактов: 8 (без контактов, контакты заказываются отдельно), металлический черный корпус, резьба для кабельного ввода M32, с накидной гильзой, байонетное соединение","шт",59.56,0.18,70.28,5420.99]
["HI-LK008FVR","Разъем HICON LK (круглый) модификация CA-COM, гнездо на кабель, количество контактов: 8 (без контактов, контакты заказываются отдельно), металлический черный корпус, без накидной резьбовой гильзы, байонетное соединение","шт",44.65,0.18,52.69,4064.2]
["HI-LK008MP","Разъем HICON LK (круглый) модификация CA-COM, штекер на панель, количество контактов: 8 (без контактов, контакты заказываются отдельно), металлический черный корпус, байонетное соединение","шт",25.21,0.18,29.76,2295.5100000000002]
["HI-LK008MV","Разъем HICON LK (круглый) модификация CA-COM, штекер на кабель, количество контактов: 8 (без контактов, контакты заказываются отдельно), металлический черный корпус, резьба для кабельного ввода M32, без накидной гильзы, байонетное соединение","шт",43.8,0.18,51.68,3986.29]
["HI-LK008MVR","Разъем HICON LK (круглый) модификация CA-COM, штекер на кабель, количество контактов: 8 (без контактов, контакты заказываются отдельно), металлический черный корпус, резьба для кабельного ввода M32, с накидной гильзой, байонетное соединение","шт",58.52,0.18,69.05,5326.11]
["HI-LK013FP","Разъем HICON LK (круглый), гнездо на панель, количество контактов: 13 (без контактов, контакты заказываются отдельно), металлический черный корпус, байонетное соединение","шт",56.99,0.18,67.25,5187.2700000000004]
["HI-LK013FV","Разъем HICON LK (круглый), гнездо на кабель, количество контактов: 13 (без контактов, контакты заказываются отдельно), металлический черный корпус, байонетное соединение","шт",64.8,0.18,76.47,5898.45]
["HI-LK013MP","Разъем HICON LK (круглый), штекер на панель, количество контактов: 13 (без контактов, контакты заказываются отдельно), металлический черный корпус, байонетное соединение","шт",28.92,0.18,34.130000000000003,2632.59]
["HI-LK013MV","Разъем HICON LK (круглый), штекер на кабель, количество контактов: 13 (без контактов, контакты заказываются отдельно), металлический черный корпус, байонетное соединение","шт",56.09,0.18,66.19,5105.51]
["HI-LK025FP","Разъем HICON LK (круглый), гнездо на панель, количество контактов: 25, металлический черный корпус, байонетное соединение","шт",49.61,0.18,58.55,4516.2]
["HI-LK025FV","Разъем HICON LK (круглый), гнездо на кабель, количество контактов: 25, металлический черный корпус, кабельный ввод PG16, байонетное соединение","шт",60.56,0.18,71.45,5511.23]
["HI-LK025MP","Разъем HICON LK (круглый), штекер на панель, количество контактов: 25, металлический черный корпус, байонетное соединение","шт",21.92,0.18,25.87,1995.46]
["HI-LK025MV","Разъем HICON LK (круглый), штекер на кабель, количество контактов: 25, металлический черный корпус, кабельный ввод PG16, байонетное соединение","шт",55.76,0.18,65.8,5075.43]
["HI-LK037FP","Разъем HICON LK (круглый), гнездо на панель, количество контактов: 37 (без контактов, контакты заказываются отдельно), металлический черный корпус, байонетное соединение","шт",55.88,0.18,65.930000000000007,5085.45]
["HI-LK037FV","Разъем HICON LK (круглый), гнездо на кабель, количество контактов: 37 (без контактов, контакты заказываются отдельно), металлический черный корпус, кабельный ввод PG21, байонетное соединение","шт",71.27,0.18,84.11,{"$f":"ROUND(F846*$B$6*(1+0.02),2)","v":6487.75}]
["HI-LK037MP","Разъем HICON LK (круглый), штекер на панель, количество контактов: 37 (без контактов, контакты заказываются отдельно), металлический черный корпус, байонетное соединение","шт",25.09,0.18,29.61,2283.94]
["HI-LK037MV","Разъем HICON LK (круглый), штекер на кабель, количество контактов: 37 (без контактов, контакты заказываются отдельно), металлический черный корпус, кабельный ввод PG21, байонетное соединение","шт",64.319999999999993,0.18,75.89,5853.71]
["HI-LK054FP","Разъем HICON LK (круглый), гнездо на панель, количество контактов: 54 (без контактов, контакты заказываются отдельно), металлический черный корпус, байонетное соединение","шт",73.209999999999994,0.18,86.39,6663.62]
["HI-LK054FV","Разъем HICON LK (круглый), гнездо на кабель, количество контактов: 54 (без контактов, контакты заказываются отдельно), металлический черный корпус, байонетное соединение","шт",84.36,0.18,99.55,7678.7]
["HI-LK054MP","Разъем HICON LK (круглый), штекер на панель, количество контактов: 54 (без контактов, контакты заказываются отдельно), металлический черный корпус, байонетное соединение","шт",33.200000000000003,0.18,39.17,3021.34]
["HI-LK054MV","Разъем HICON LK (круглый), штекер на кабель, количество контактов: 54 (без контактов, контакты заказываются отдельно), металлический черный корпус, байонетное соединение","шт",71.28,0.18,84.11,6487.75]
["HI-LK085FP","Разъем HICON LK (круглый), гнездо на панель, количество контактов: 85, металлический черный корпус, байонетное соединение","шт",78.23,0.18,92.31,7120.25]
["HI-LK085FV","Разъем HICON LK (круглый), гнездо на кабель, количество контактов: 85, металлический черный корпус, кабельный ввод PG29, байонетное соединение","шт",95.56,0.18,112.77,8698.42]
["HI-LK085MP","Разъем HICON LK (круглый), штекер на панель, количество контактов: 85, металлический черный корпус, байонетное соединение","шт",36.29,0.18,42.83,3303.65]
["HI-LK085MV","Разъем HICON LK (круглый), штекер на кабель, количество контактов: 85, металлический черный корпус, кабельный ввод PG29, байонетное соединение","шт",79.290000000000006,0.18,93.57,7217.44]
["HI-LK100FP","Разъем HICON LK (круглый), гнездо на панель, позолоченные контакты, количество контактов: 100 (без контактов, контакты заказываются отдельно), металлический черный корпус, байонетное соединение","шт",94.89,0.18,111.97,8636.7099999999991]
["HI-LK100FV","Разъем HICON LK (круглый), гнездо на кабель, количество контактов: 100 (без контактов, контакты заказываются отдельно), металлический черный корпус, байонетное соединение","шт",94.89,0.18,111.97,8636.7099999999991]
["HI-LK150FP","Разъем HICON LK (круглый), гнездо на панель, количество контактов: 150 (без контактов, контакты заказываются отдельно), металлический черный корпус, байонетное соединение","шт",77.59,0.18,91.55,7061.63]
["HI-LK150FV","Разъем HICON LK (круглый), гнездо на кабель, количество контактов: 150 (без контактов, контакты заказываются отдельно), металлический черный корпус, кабельный ввод PG29, байонетное соединение","шт",95.68,0.18,112.89,8707.67]
["HI-LK150MP","Разъем HICON LK (круглый), штекер на панель, количество контактов: 150 (без контактов, контакты заказываются отдельно), металлический черный корпус, байонетное соединение","шт",36.270000000000003,0.18,42.79,3300.57]
["HI-LK150MV","Разъем HICON LK (круглый), штекер на кабель, количество контактов: 150 (без контактов, контакты заказываются отдельно), металлический черный корпус, кабельный ввод PG29, байонетное соединение","шт",82.13,0.18,96.91,7475.07]
["HI-LKBODY-PG36","HICON PG36 корпус металлический черный для LK разъема, размер: 40","шт",48.09,0.18,56.76,4378.13]
["HI-LKCAP-F25","HICON гнездовая защитная крышка металлическая черная для 25-контактного LK разъема, байонетное соединение","шт",31.05,0.18,36.64,2826.19]
["HI-LKCAP-F37","HICON гнездовая защитная крышка металлическая черная для 37-контактного LK разъема, байонетное соединение","шт",33.04,0.18,38.99,3007.46]
["HI-LKCAP-F85","HICON гнездовая защитная крышка металлическая черная для 85-контактного LK разъема, байонетное соединение","шт",43.69,0.18,51.55,3976.26]
["HI-LKCAP-M25","HICON штекерная защитная крышка металлическая черная для 25-контактного LK разъема, байонетное соединение","шт",30.03,0.18,35.44,2733.63]
["HI-LKCAP-M37","HICON штекерная защитная крышка металлическая черная для 37-контактного LK разъема, байонетное соединение","шт",37.75,0.18,44.55,3436.33]
["HI-LKCAP-M85","HICON штекерная защитная крышка металлическая черная для 85-контактного LK разъема, байонетное соединение","шт",42.53,0.18,50.19,3871.36]
["HI-LKPIN-F12GL","HICON позолоченный гнездовой контакт под обжим для 8-контактного CA-COM (арт. номер: HI-LK008F#) разъема на проводник сечением 2,5 - 4,0 мм²","шт",3.76,0.18,4.43,341.7]
["HI-LKPIN-F12S","HICON посеребренный гнездовой контакт под обжим для 8-контактного CA-COM (арт. номер: HI-LK008F#) разъема на проводник сечением 1,5 - 2,5 мм²","шт",1.45,0.18,1.71,131.9]
["HI-LKPIN-F16G","HICON позолоченный гнездовой контакт под обжим для 25-/37-/85-контактного LK разъема на проводник сечением 1,0 - 1,5 мм²","шт",1.52,0.18,1.8,138.84]
["HI-LKPIN-F16GS","HICON позолоченный гнездовой контакт под обжим для 25-/37-/85-контактного LK разъема на проводник сечением 0,15 - 0,6 мм²","шт",1.53,0.18,1.81,139.61000000000001]
["HI-LKPIN-F16S","HICON посеребренный гнездовой контакт под обжим для 25-/37-/85-контактного LK разъема на проводник сечением 0,15 - 0,6 мм²","шт",1.21,0.18,1.43,110.3]
["HI-LKPIN-F18G","HICON позолоченный гнездовой контакт под обжим для 100-/150-контактного LK разъема на проводник сечением 0,15 - 0,6 мм²","шт",1.88,0.18,2.23,172.01]
["HI-LKPIN-M12GL","HICON позолоченный штекерный контакт под обжим для 8-контактного CA-COM (арт. номер: HI-LK008M#) разъема на проводник сечением 2,5 - 4,0 мм²","шт",2.41,0.18,2.84,219.06]
["HI-LKPIN-M12S","HICON посеребренный штекерный контакт под обжим для 8-контактного CA-COM (арт. номер: HI-LK008M#) разъема на проводник сечением 1,5 - 2,5 мм²","шт",0.76,0.18,0.91,70.19]
["HI-LKPIN-M16G","HICON позолоченный штекерный контакт под обжим для 25-/37-/85-контактного LK разъема на проводник сечением 1,0 - 1,5 мм²","шт",0.79,0.18,0.93,71.73]
["HI-LKPIN-M16GS","HICON позолоченный штекерный контакт под обжим для 25-/37-/85-контактного LK разъема на проводник сечением 0,15 - 0,6 мм²","шт",0.79,0.18,0.93,71.73]
["HI-LKPIN-M16S","HICON посеребренный штекерный контакт под обжим для 25-/37-/85-контактного LK разъема на проводник сечением 0,15 - 0,6 мм²","шт",0.6,0.18,0.71,54.77]
["HI-LKPIN-M18G","HICON позолоченный штекерный контакт под обжим для 100-/150-контактного LK разъема на проводник сечением 0,15 - 0,6 мм²","шт",0.83,0.18,0.97,74.819999999999993]
["HI-LKPING-16","HICON вспомогательный металлический штыревой инструмент для установки гнездовых контактов 16 размера в разъемы LK HICON","шт",5.19,0.18,6.12,472.06]
["HI-MIDI-EFD","Разъем HICON MIDI на панель под пайку, количество контактов: 5, металлический корпус, фланец D-типа","шт",7.45,0.18,8.7899999999999991,678.01]
["HI-RC-BL","HICON маркировочный резиновый конический хвостовик для защитных металлических корпусов в формате XLR для разъемов RJ45 (HI-RJ45-HD и HI-C6XL-HD), цвет : синий","шт",1.0900000000000001,0.18,1.29,99.5]
["HI-RC-GE","HICON маркировочный резиновый конический хвостовик для защитных металлических корпусов в формате XLR для разъемов RJ45 (HI-RJ45-HD и HI-C6XL-HD), цвет : желтый","шт",1.0900000000000001,0.18,1.29,99.5]
["HI-RC-GN","HICON маркировочный резиновый конический хвостовик для защитных металлических корпусов в формате XLR для разъемов RJ45 (HI-RJ45-HD и HI-C6XL-HD), цвет : зеленый","шт",1.0900000000000001,0.18,1.29,99.5]
["HI-RC-GR","HICON маркировочный резиновый конический хвостовик для защитных металлических корпусов в формате XLR для разъемов RJ45 (HI-RJ45-HD и HI-C6XL-HD), цвет : серый","шт",1.0900000000000001,0.18,1.29,99.5]
["HI-RC-RT","HICON маркировочный резиновый конический хвостовик для защитных металлических корпусов в формате XLR для разъемов RJ45 (HI-RJ45-HD и HI-C6XL-HD), цвет : красный","шт",1.0900000000000001,0.18,1.29,99.5]
["HI-RJ45-HD","HICON защитная металлическая черная гильза в формате XLR для стандартных сетевых разъемов RJ45","шт",3.35,0.18,3.96,305.45]
["HI-SCSVCI","Адаптер HICON SCART штекер / 1 x S-VHS гнездо + 3 x RCA гнездо, позолоченные контакты, количество контактов: 21, металлический серый корпус, с переключателем вход/выход","шт",21,0.18,24.78,1911.38]
["HI-SVCM02","Разъем HICON S-VHS, штекер на кабель диаметром до 8,2 мм, позолоченные контакты под пайку, количество контактов: 4, клеммный кабельный зажим, металлический серый лакированный корпус, диэлектрик PTFE","шт",5.04,0.18,5.95,458.95]
["HI-TL01","Разъем HICON TOSLINK Screw & Play (для самостоятельного монтажа), штекер на кабель диаметром до 8,0 мм, металлический черный корпус, рекомендуемый кабель: SC-OCTOPUS / арт. номер: 590-0092","шт",9.31,0.18,10.99,847.7]
["HI-UC-BL","HICON набор цветных эластичных силиконовых маркировочных колец для разъемов HICON с гофрированым хвостовиком, 10 шт., цвет : синий","набор",1.05,0.18,1.23,94.87]
["HI-UC-GE","HICON набор цветных эластичных силиконовых маркировочных колец для разъемов HICON с гофрированым хвостовиком, 10 шт., цвет : желтый","набор",1.05,0.18,1.23,94.87]
["HI-UC-GN","HICON набор цветных эластичных силиконовых маркировочных колец для разъемов HICON с гофрированым хвостовиком, 10 шт., цвет : зеленый","набор",1.05,0.18,1.23,94.87]
["HI-UC-RT","HICON набор цветных эластичных силиконовых маркировочных колец для разъемов HICON с гофрированым хвостовиком, 10 шт., цвет : красный","набор",1.05,0.18,1.23,94.87]
["HI-UC-WS","HICON набор цветных эластичных силиконовых маркировочных колец для разъемов HICON с гофрированым хвостовиком, 10 шт., цвет : белый","набор",1.05,0.18,1.23,94.87]
["HI-X3AF","Разъем HICON XLR3 для горизонтальной установки, гнездо на панель, позолоченные контакты под пайку, количество контактов: 3, пластиковый черный корпус, тип А","шт",1.48,0.18,1.74,134.21]
["HI-X3AF-PV","Разъем HICON XLR3 с пружинным механизмом фиксации, гнездо на панель, позолоченные контакты под пайку, количество контактов: 3, пластиковый черный корпус, тип А, PCB версия","шт",1.01,0.18,1.19,91.79]
["HI-X3AM-PV","Разъем HICON XLR3 для вертикальной установки, штекер на панель, позолоченные контакты под пайку, количество контактов: 3, пластиковый черный корпус, тип А, PCB версия","шт",0.97,0.18,1.1599999999999999,89.48]
["HI-X3CF","Разъем HICON XLR3, штекер на кабель диаметром 4,0 - 8,5 мм, посеребренные контакты, количество контактов: 3, 6-и лепестковый пластиковый цанговый кабельный зажим, металлический матово серебряный корпус, пластиковый черный резьбовой колпачок, резиновый гофрированный конический хвостовик","шт",2.75,0.18,3.26,251.46]
["HI-X3CF-B","Разъем HICON XLR3, гнездо на кабель диаметром 4,0 - 8,5 мм, посеребренные контакты под пайку, количество контактов: 3, 6-и лепестковый пластиковый цанговый кабельный зажим, металлический черный корпус, пластиковый черный резьбовой колпачок, резиновый гофрированный конический хвостовик","шт",2.96,0.18,3.49,269.2]
["HI-X3CF-BLK","Разъем HICON XLR3, гнездо на кабель диаметром 3,5 - 7,0 мм, посеребренные контакты под пайку, количество контактов: 3, 3-х лепестковый пластиковый цанговый кабельный зажим, металлический черный корпус, пластиковый черный резьбовой колпачок, резиновый конический хвостовик","шт",2.27,0.18,2.68,206.72]
["HI-X3CF-G","Разъем HICON XLR3, гнездо на кабель диаметром 4,0 - 8,5 мм, позолоченные контакты под пайку, количество контактов: 3, 6-и лепестковый пластиковый цанговый кабельный зажим, металлический черный корпус, металлический черный резьбовой колпачок, резиновый гофрированный конический хвостовик, в комплекте - дополнительный пластиковый цанговый зажим HI-XSR40 на кабель диаметром 2,0 - 5,0 мм","шт",3.79,0.18,4.4800000000000004,345.56]
["HI-X3CF-HD","Разъем HICON XLR3 пыленепроницаемый и водостойкий (IP67), гнездо на кабель диаметром 4,6 - 6,5 мм, посеребренные контакты под пайку, количество контактов: 3, стандартный пластиковый цанговый кабельный зажим, металлический матово никелированный корпус, металлический никелированный резьбовой колпачок, резиновый конический хвостовик","шт",4.18,0.18,4.9400000000000004,381.04]
["HI-X3CF-HD-B","Разъем HICON XLR3 пыленепроницаемый и водостойкий (IP67), гнездо на кабель диаметром 4,6 - 6,5 мм, позолоченные контакты под пайку, количество контактов: 3, стандартный пластиковый цанговый кабельный зажим, металлический черный корпус, металлический черный резьбовой колпачок, резиновый конический хвостовик","шт",4.66,0.18,5.51,425.01]
["HI-X3CF-M","Разъем HICON XLR3, гнездо на кабель диаметром 4,0 - 8,5 мм, посеребренные контакты под пайку, количество контактов: 3, 6-и лепестковый пластиковый цанговый кабельный зажим, металлический черный корпус, металлический черный резьбовой колпачок, резиновый гофрированный конический хвостовик","шт",3.4,0.18,4.01,309.31]
["HI-X3CF-V","Разъем HICON XLR3, гнездо на кабель диаметром 3,5 - 7,0 мм, посеребренные контакты под пайку, количество контактов: 3, 3-х лепестковый пластиковый цанговый кабельный зажим, металлический никелированный корпус, пластиковый черный резьбовой колпачок, резиновый конический хвостовик","шт",2.27,0.18,2.69,207.49]
["HI-X3CI-FF","Адаптер HICON XLR3 гнездо / RCA гнездо, никелированные контакты, количество контактов: 3/2, металлический черный корпус","шт",5.29,0.18,6.25,482.09]
["HI-X3CI-MF","Адаптер HICON XLR3 штекер / RCA гнездо, никелированные контакты, количество контактов: 3/2, металлический черный корпус","шт",5.23,0.18,6.18,{"$f":"ROUND(F910*$B$6*(1+0.02),2)","v":476.69}]
["HI-X3CM","Разъем HICON XLR3, штекер на кабель диаметром 4,0 - 8,5 мм, посеребренные контакты под пайку, количество контактов: 3, 6-и лепестковый пластиковый цанговый кабельный зажим, металлический матово серебряный корпус, пластиковый черный резьбовой колпачок, резиновый гофрированный конический хвостовик","шт",2.57,0.18,3.03,233.72]
["HI-X3CM-B","Разъем HICON XLR3, штекер на кабель диаметром 4,0 - 8,5 мм, посеребренные контакты под пайку, количество контактов: 3, 6-и лепестковый пластиковый цанговый кабельный зажим, металлический черный корпус, пластиковый черный резьбовой колпачок, резиновый гофрированный конический хвостовик","шт",2.57,0.18,3.03,233.72]
["HI-X3CM-BLK","Разъем HICON XLR3, штекер на кабель диаметром 3,5 - 7,0 мм, посеребренные контакты под пайку, количество контактов: 3, 3-х лепестковый пластиковый цанговый кабельный зажим, металлический черный корпус, пластиковый черный резьбовой колпачок, резиновый конический хвостовик","шт",1.99,0.18,2.35,181.27]
["HI-X3CM-G","Разъем HICON XLR3, штекер на кабель диаметром 4,0 - 8,5 мм, позолоченные контакты под пайку, количество контактов: 3, 6-и лепестковый пластиковый цанговый кабельный зажим, металлический черный корпус, металлический черный резьбовой колпачок, резиновый гофрированный конический хвостовик, в комплекте - дополнительный пластиковый цанговый зажим HI-XSR40 на кабель диаметром 2,0 - 5,0 мм","шт",3.62,0.18,4.2699999999999996,329.36]
["HI-X3CM-HD","Разъем HICON XLR3 пыленепроницаемый и водостойкий (IP67), штекер на кабель диаметром 4,6 - 6,5 мм, посеребренные контакты под пайку, количество контактов: 3, стандартный пластиковый цанговый кабельный зажим, металлический матово хромированный корпус, металлический никелированный резьбовой колпачок, резиновый конический хвостовик","шт",3.74,0.18,4.4000000000000004,339.39]
["HI-X3CM-HD-B","Разъем HICON XLR3 пыленепроницаемый и водостойкий (IP67), штекер на кабель диаметром 4,6 - 6,5 мм, позолоченные контакты под пайку, количество контактов: 3, стандартный пластиковый цанговый кабельный зажим, металлический черный корпус, металлический черный резьбовой колпачок, резиновый конический хвостовик","шт",4.22,0.18,4.97,383.36]
["HI-X3CM-M","Разъем HICON XLR3, штекер на кабель диаметром 4,0 - 8,5 мм, посеребренные контакты под пайку, количество контактов: 3, 6-и лепестковый пластиковый цанговый кабельный зажим, металлический черный корпус, металлический черный резьбовой колпачок, резиновый гофрированный конический хвостовик","шт",3.16,0.18,3.73,287.70999999999998]
["HI-X3CM-V","Разъем HICON XLR3, штекер на кабель диаметром 3,5 - 7,0 мм, посеребренные контакты под пайку, количество контактов: 3, 3-х лепестковый пластиковый цанговый кабельный зажим, металлический никелированный корпус, пластиковый черный резьбовой колпачок, резиновый конический хвостовик","шт",2.04,0.18,2.4,185.12]
["HI-X3DF","Разъем HICON XLR3 с пружинным механизмом фиксации, гнездо на панель, никелированные контакты под пайку, количество контактов: 3, металлический никелированный корпус, фланец D-типа","шт",2.57,0.18,3.04,234.49]
["HI-X3DF-G","Разъем HICON XLR3 с пружинным механизмом фиксации, гнездо на панель, позолоченные контакты под пайку, количество контактов: 3, металлический черный корпус, фланец D-типа","шт",2.94,0.18,3.47,267.66000000000003]
["HI-X3DF-G-M3","Разъем HICON XLR3 с пружинным механизмом фиксации, гнездо на панель, позолоченные контакты под пайку, количество контактов: 3, металлический черный корпус, фланец D-типа, крепежные отверстия с резьбой M3","шт",3.22,0.18,3.79,292.33999999999997]
["HI-X3DF-HD-B","Разъем HICON XLR3 пылезащищенный и водостойкий (IP54), гнездо на панель, позолоченные контакты под пайку, количество контактов: 3, металлический черный корпус, фланец D-типа","шт",4.3,0.18,5.08,391.84]
["HI-X3DF-M","Разъем HICON XLR3 с пружинным механизмом фиксации, гнездо на панель, посеребренные контакты под пайку, количество контактов: 3, металлический черный корпус, фланец D-типа","шт",2.68,0.18,3.16,243.74]
["HI-X3DF-M3","Разъем HICON XLR3 с пружинным механизмом фиксации, гнездо на панель, посеребренные контакты под пайку, количество контактов: 3, металлический черный корпус, фланец D-типа, крепежные отверстия с резьбой M3","шт",2.83,0.18,3.34,257.63]
["HI-X3DF-P","Разъем HICON XLR3, гнездо на панель, посеребренные контакты под пайку, количество контактов: 3, пластиковый черный корпус, фланец D-типа","шт",1.68,0.18,1.99,153.5]
["HI-X3DM","Разъем HICON XLR3, штекер на панель, никелированные контакты под пайку, количество контактов: 3, металлический никелированный корпус, фланец D-типа","шт",2.06,0.18,2.4300000000000002,187.44]
["HI-X3DM-G","Разъем HICON XLR3, штекер на панель, позолоченные контакты под пайку, количество контактов: 3, металлический черный корпус, фланец D-типа","шт",2.4300000000000002,0.18,2.87,221.37]
["HI-X3DM-G-M3","Разъем HICON XLR3, штекер на панель, позолоченные контакты под пайку, количество контактов: 3, металлический черный корпус, фланец D-типа, крепежные отверстия с резьбой M3","шт",2.66,0.18,3.14,242.2]
["HI-X3DM-HD-B","Разъем HICON XLR3 пыленепроницаемый и водостойкий (IP67), штекер на панель, позолоченные контакты под пайку, количество контактов: 3, металлический черный корпус, фланец D-типа","шт",4.66,0.18,5.51,425.01]
["HI-X3DM-M","Разъем HICON XLR3, штекер на панель, посеребренные контакты под пайку, количество контактов: 3, металлический черный корпус, фланец D-типа","шт",2.2599999999999998,0.18,2.66,205.18]
["HI-X3DM-M3","Разъем HICON XLR3, штекер на панель, посеребренные контакты под пайку, количество контактов: 3, металлический черный корпус, фланец D-типа, крепежные отверстия с резьбой M3","шт",2.4900000000000002,0.18,2.94,226.77]
["HI-X3DM-P","Разъем HICON XLR3, штекер на панель, посеребренные контакты под пайку, количество контактов: 3, пластиковый черный корпус, фланец D-типа","шт",1.69,0.18,1.99,153.5]
["HI-X3FT","Адаптер HICON XLR3 DMX терминатор 120 Ом, гнездо на кабель, никелированные контакты под пайку, количество контактов: 3, металлический черный корпус, пластиковый черный резьбовой колпачок, резиновый гофрированный конический хвостовик","шт",11.04,0.18,13.03,1005.06]
["HI-X3MT","Адаптер HICON XLR3 DMX терминатор 120 Ом, штекер на кабель, никелированные контакты под пайку, количество контактов: 3, металлический черный корпус, пластиковый черный резьбовой колпачок, резиновый гофрированный конический хвостовик","шт",10.84,0.18,12.79,986.55]
["HI-X3MX3-FM","Адаптер HICON XLR3 гнездо / MINI XLR3 штекер, никелированные контакты, количество контактов: 3/3, металлический черный корпус","шт",6.18,0.18,7.3,563.08000000000004]
["HI-X3MX3-MM","Адаптер HICON XLR3 штекер / MINI XLR3 штекер, никелированные контакты, количество контактов: 3/3, металлический черный корпус","шт",6.12,0.18,7.22,556.91]
["HI-X3X3-20-200","Адаптер HICON XLR3 штекер / XLR3 гнездо с демпфером -20 дБ при импендансе 200 Ом, никелированные контакты, количество контактов: 3/3, металлический черный корпус","шт",31.18,0.18,36.81,2839.31]
["HI-X3X3-FF","Адаптер HICON XLR3 гнездо / XLR3 гнездо, никелированные контакты, количество контактов: 3/3, металлический черный корпус","шт",5.95,0.18,7.01,540.71]
["HI-X3X3-FM","Адаптер HICON XLR3 гнездо / XLR3 штекер, никелированные контакты, количество контактов: 3/3, металлический черный корпус","шт",5.51,0.18,6.49,500.6]
["HI-X3X3-MM","Адаптер HICON XLR3 штекер / XLR3 штекер, никелированные контакты, количество контактов: 3/3, металлический черный корпус","шт",5.27,0.18,6.23,480.55]
["HI-X3X5-FM","Адаптер HICON XLR3 гнездо / XLR5 штекер, никелированные контакты, количество контактов: 3/5, металлический черный корпус","шт",6.01,0.18,7.09,546.88]
["HI-X3X5-MF","Адаптер HICON XLR3 штекер / XLR5 гнездо, никелированные контакты, количество контактов: 3/5, металлический черный корпус","шт",6.01,0.18,7.09,546.88]
["HI-X4CF-G","Разъем HICON XLR4, гнездо на кабель диаметром 4,0 - 8,5 мм, позолоченные контакты под пайку, количество контактов: 4, 6-и лепестковый пластиковый цанговый кабельный зажим, металлический черный корпус, металлический черный резьбовой колпачок, резиновый гофрированный конический хвостовик","шт",4.1399999999999997,0.18,4.88,376.41]
["HI-X4CM-G","Разъем HICON XLR4, штекер на кабель диаметром 4,0 - 8,5 мм, позолоченные контакты под пайку, количество контактов: 4, 6-и лепестковый пластиковый цанговый кабельный зажим, металлический черный корпус, металлический черный резьбовой колпачок, резиновый гофрированный конический хвостовик","шт",3.79,0.18,4.47,344.79]
["HI-X4DF-G","Разъем HICON XLR4 с пружинным механизмом фиксации, гнездо на панель, позолоченные контакты под пайку, количество контактов: 4, металлический черный корпус, фланец D-типа","шт",3.32,0.18,3.92,302.37]
["HI-X4DM-G","Разъем HICON XLR4, штекер на панель, позолоченные контакты под пайку, количество контактов: 4, металлический черный корпус, фланец D-типа","шт",3.23,0.18,3.82,294.64999999999998]
["HI-X5CF-B","Разъем HICON XLR5, гнездо на кабель диаметром 4,0 - 8,5 мм, посеребренные контакты под пайку, количество контактов: 5, 6-и лепестковый пластиковый цанговый кабельный зажим, металлический черный корпус, пластиковый черный резьбовой колпачок, резиновый гофрированный конический хвостовик","шт",3.38,0.18,3.97,306.22000000000003]
["HI-X5CF-G","Разъем HICON XLR5, гнездо на кабель диаметром 4,0 - 8,5 мм, позолоченные контакты под пайку, количество контактов: 5, 6-и лепестковый пластиковый цанговый кабельный зажим, металлический черный корпус, металлический черный резьбовой колпачок, резиновый гофрированный конический хвостовик","шт",4.13,0.18,4.87,375.64]
["HI-X5CF-HD","Разъем HICON XLR5 пыленепроницаемый и водостойкий (IP67), гнездо на кабель диаметром 4,6 - 6,5 мм, посеребренные контакты под пайку, количество контактов: 5, стандартный пластиковый цанговый кабельный зажим, металлический матово никелированный корпус, металлический никелированный резьбовой колпачок, резиновый конический хвостовик","шт",6.03,0.18,7.1,547.65]
["HI-X5CF-HD-B","Разъем HICON XLR5 пыленепроницаемый и водостойкий (IP67), гнездо на кабель диаметром 4,6 - 6,5 мм, позолоченные контакты под пайку, количество контактов: 5, стандартный пластиковый цанговый кабельный зажим, металлический черный корпус, металлический черный резьбовой колпачок, резиновый конический хвостовик","шт",6.55,0.18,7.71,594.70000000000005]
["HI-X5CF-M","Разъем HICON XLR5, гнездо на кабель диаметром 4,0 - 8,5 мм, посеребренные контакты под пайку, количество контактов: 5, 6-и лепестковый пластиковый цанговый кабельный зажим, металлический черный корпус, металлический черный резьбовой колпачок, резиновый гофрированный конический хвостовик","шт",4.01,0.18,4.74,365.62]
["HI-X5CM-B","Разъем HICON XLR5, штекер на кабель диаметром 4,0 - 8,5 мм, посеребренные контакты под пайку, количество контактов: 5, 6-и лепестковый пластиковый цанговый кабельный зажим, металлический черный корпус, пластиковый черный резьбовой колпачок, резиновый гофрированный конический хвостовик","шт",3.01,0.18,3.55,273.83]
["HI-X5CM-G","Разъем HICON XLR5, штекер на кабель диаметром 4,0 - 8,5 мм, позолоченные контакты под пайку, количество контактов: 5, 6-и лепестковый пластиковый цанговый кабельный зажим, металлический черный корпус, металлический черный резьбовой колпачок, резиновый гофрированный конический хвостовик","шт",3.91,0.18,4.6100000000000003,355.59]
["HI-X5CM-HD","Разъем HICON XLR5 пыленепроницаемый и водостойкий (IP67), штекер на кабель диаметром 4,6 - 6,5 мм, посеребренные контакты под пайку, количество контактов: 5, стандартный пластиковый цанговый кабельный зажим, металлический матово никелированный корпус, металлический никелированный резьбовой колпачок, резиновый конический хвостовик","шт",4.9000000000000004,0.18,5.77,445.06]
["HI-X5CM-HD-B","Разъем HICON XLR5 пыленепроницаемый и водостойкий (IP67), штекер на кабель диаметром 4,6 - 6,5 мм, позолоченные контакты под пайку, количество контактов: 5, стандартный пластиковый цанговый кабельный зажим, металлический черный корпус, металлический черный резьбовой колпачок, резиновый конический хвостовик","шт",5.34,0.18,6.3,485.95]
["HI-X5CM-M","Разъем HICON XLR5, штекер на кабель диаметром 4,0 - 8,5 мм, посеребренные контакты под пайку, количество контактов: 5, 6-и лепестковый пластиковый цанговый кабельный зажим, металлический черный корпус, металлический черный резьбовой колпачок, резиновый гофрированный конический хвостовик","шт",3.86,0.18,4.55,350.96]
["HI-X5DF-G","Разъем HICON XLR5 с пружинным механизмом фиксации, гнездо на панель, позолоченные контакты под пайку, количество контактов: 5, металлический черный корпус, фланец D-типа","шт",3.39,0.18,4,308.54000000000002]
["HI-X5DF-M","Разъем HICON XLR5 с пружинным механизмом фиксации, гнездо на панель, посеребренные контакты под пайку, количество контактов: 5, металлический черный корпус, фланец D-типа","шт",3.4,0.18,4.01,309.31]
["HI-X5DF-M3","Разъем HICON XLR5 с пружинным механизмом фиксации, гнездо на панель, позолоченные контакты под пайку, количество контактов: 5, металлический черный корпус, фланец D-типа","шт",3.48,0.18,4.12,317.79000000000002]
["HI-X5DM-G","Разъем HICON XLR5, штекер на панель, позолоченные контакты под пайку, количество контактов: 5, металлический черный корпус, фланец D-типа","шт",3.19,0.18,3.77,290.8]
["HI-X5DM-M","Разъем HICON XLR5, штекер на панель, посеребренные контакты под пайку, количество контактов: 5, металлический черный корпус, фланец D-типа","шт",2.65,0.18,3.13,241.43]
["HI-X5DM-M3","Разъем HICON XLR5, штекер на панель, позолоченные контакты под пайку, количество контактов: 5, металлический черный корпус, фланец D-типа, крепежные отверстия с резьбой M3","шт",3.13,0.18,3.7,285.39999999999998]
["HI-X5FT","Адаптер HICON XLR5 DMX терминатор 120 Ом на кабель, никелированные контакты под пайку, количество контактов: 5, металлический черный корпус, пластиковый черный резьбовой колпачок, резиновый гофрированный конический хвостовик","шт",13.68,0.18,16.14,1244.94]
["HI-X5MT","Адаптер HICON XLR5 DMX терминатор 120 Ом на кабель, никелированные контакты под пайку, количество контактов: 5, металлический черный корпус, пластиковый черный резьбовой колпачок, резиновый гофрированный конический хвостовик","шт",13.49,0.18,15.92,1227.98]
["HI-XC-00-WS","HICON набор пластиковых маркировочных колец с номером \"0\" для XLR разъемов HICON, защита от прокручивания, 1/2 стандартной ширины, 10 шт., цвет : белый","набор",2.36,0.18,2.78,214.43]
["HI-XC-05-RT","HICON набор пластиковых маркиров. колец с номером \"0\" (5 шт.) и номером \"1\" (5 шт.) для XLR разъемов HICON, защита от прокручивания, 1/2 стандартной ширины, цвет : красный","набор",2.36,0.18,2.78,214.43]
["HI-XC-09-RT","HICON набор пластиковых маркировочных колец с номерами от \"0\" до \"9\" для XLR разъемов HICON, защита от прокручивания, 1/2 стандартной ширины, 10 шт., цвет : красный","набор",2.36,0.18,2.78,214.43]
["HI-XC-09-WS","HICON набор пластиковых маркировочных колец с номерами от \"0\" до \"9\" для XLR разъемов HICON, защита от прокручивания, 1/2 стандартной ширины, 10 шт., цвет : белый","набор",2.36,0.18,2.78,214.43]
["HI-XC-10-WS","HICON набор пластиковых маркировочных колец с номером \"1\" для XLR разъемов HICON, защита от прокручивания, 1/2 стандартной ширины, 10 шт., цвет : белый","набор",2.36,0.18,2.78,214.43]
["HI-XC-20-WS","HICON набор пластиковых маркировочных колец с номером \"2\" для XLR разъемов HICON, защита от прокручивания, 1/2 стандартной ширины, 10 шт., цвет : белый","набор",2.36,0.18,2.78,214.43]
["HI-XC-30-WS","HICON набор пластиковых маркировочных колец с номером \"3\" для XLR разъемов HICON, защита от прокручивания, 1/2 стандартной ширины, 10 шт., цвет : белый","набор",2.36,0.18,2.78,214.43]
["HI-XC-40-WS","HICON набор пластиковых маркировочных колец с номером \"4\" для XLR разъемов HICON, защита от прокручивания, 1/2 стандартной ширины, 10 шт., цвет : белый","набор",2.36,0.18,2.78,214.43]
["HI-XC-BL","HICON маркировочное пластиковое кольцо для XLR разъемов HICON, цвет : синий","шт",0.25,0.18,0.3,23.14]
["HI-XC-BR","HICON маркировочное пластиковое кольцо для XLR разъемов HICON, цвет : коричневый","шт",0.25,0.18,0.3,{"$f":"ROUND(F974*$B$6*(1+0.02),2)","v":23.14}]
["HI-XC-CAP-P","HICON защитный металлический колпачок для всех XLR разъемов HICON","шт",0.4,0.18,0.48,37.020000000000003]
["HI-XC-GE","HICON маркировочное пластиковое кольцо для XLR разъемов HICON, цвет : желтый","шт",0.25,0.18,0.3,23.14]
["HI-XC-GN","HICON маркировочное пластиковое кольцо для XLR разъемов HICON, цвет : зеленый","шт",0.25,0.18,0.3,23.14]
["HI-XC-GR","HICON маркировочное пластиковое кольцо для XLR разъемов HICON, цвет : серый","шт",0.25,0.18,0.3,23.14]
["HI-XC-OR","HICON маркировочное пластиковое кольцо для XLR разъемов HICON, цвет : оранжевый","шт",0.25,0.18,0.3,23.14]
["HI-XC-RT","HICON маркировочное пластиковое кольцо для XLR разъемов HICON, цвет : красный","шт",0.25,0.18,0.3,23.14]
["HI-XC-SW","HICON маркировочное пластиковое кольцо для XLR разъемов HICON, цвет : черный","шт",0.25,0.18,0.3,23.14]
["HI-XC-TR","HICON маркировочное пластиковое кольцо для XLR разъемов HICON, цвет : прозрачный","шт",0.25,0.18,0.3,23.14]
["HI-XC-VI","HICON маркировочное пластиковое кольцо для XLR разъемов HICON, цвет : фиолетовый","шт",0.25,0.18,0.3,23.14]
["HI-XC-WS","HICON маркировочное пластиковое кольцо для XLR разъемов HICON, цвет : белый","шт",0.25,0.18,0.3,23.14]
["HI-XJEF6S","Разъем HICON комбинированный XLR/JACK с пружинным механизмом фиксации, гнездо/гнездо на панель, позолоченные контакты под пайку, количество контактов: 3/3, пластиковый черный корпус, для фланца D-типа","шт",3.34,0.18,3.94,303.91000000000003]
["HI-XMCF3","Разъем HICON MINI XLR3, гнездо на кабель диаметром до 3,2 мм, позолоченные контакты под пайку, количество контактов: 3, металлический никелированный корпус, пластиковый черный резьбовой колпачок, резиновый конический хвостовик","шт",2.87,0.18,3.39,261.48]
["HI-XMCF3-B","Разъем HICON MINI XLR3, гнездо на кабель диаметром до 5,0 мм, позолоченные контакты под пайку, количество контактов: 3, металлический черный корпус, металлический черный резьбовой колпачок","шт",4.96,0.18,5.86,452.01]
["HI-XMCF3-HD","Разъем HICON MINI XLR3 пыленепроницаемый и водостойкий (IP67), гнездо на кабель диаметром до 4,9 мм, позолоченные контакты под пайку, количество контактов: 3, металлический никелированный корпус","шт",8.34,0.18,9.83,758.23]
["HI-XMCF3-HD-B","Разъем HICON MINI XLR3 пыленепроницаемый и водостойкий (IP67), гнездо на кабель диаметром до 4,9 мм, позолоченные контакты под пайку, количество контактов: 3, металлический черный корпус","шт",8.49,0.18,10.01,772.11]
["HI-XMCF4","Разъем HICON MINI XLR4, гнездо на кабель диаметром до 3,2 мм, позолоченные контакты под пайку, количество контактов: 4, металлический никелированный корпус, пластиковый черный резьбовой колпачок, резиновый конический хвостовик","шт",2.95,0.18,3.48,268.43]
["HI-XMCF4-HD","Разъем HICON MINI XLR4 пыленепроницаемый и водостойкий (IP67), гнездо на кабель диаметром до 4,9 мм, позолоченные контакты под пайку, количество контактов: 4, металлический никелированный корпус","шт",8.58,0.18,10.130000000000001,781.37]
["HI-XMCF4-HD-B","Разъем HICON MINI XLR4 пыленепроницаемый и водостойкий (IP67), гнездо на кабель диаметром до 4,9 мм, позолоченные контакты под пайку, количество контактов: 4, металлический черный корпус","шт",8.73,0.18,10.29,793.71]
["HI-XMCF5","Разъем HICON MINI XLR5, гнездо на кабель диаметром до 3,2 мм, позолоченные контакты под пайку, количество контактов: 5, металлический никелированный корпус, пластиковый черный резьбовой колпачок, резиновый конический хвостовик","шт",3.04,0.18,3.58,276.14]
["HI-XMCF5-HD","Разъем HICON MINI XLR5 пыленепроницаемый и водостойкий (IP67), гнездо на кабель диаметром до 4,9 мм, позолоченные контакты под пайку, количество контактов: 5, металлический никелированный корпус","шт",8.7799999999999994,0.18,10.36,799.11]
["HI-XMCF5-HD-B","Разъем HICON MINI XLR5 пыленепроницаемый и водостойкий (IP67), гнездо на кабель диаметром до 4,9 мм, позолоченные контакты под пайку, количество контактов: 5, металлический черный корпус","шт",8.8800000000000008,0.18,10.48,808.37]
["HI-XMCM3","Разъем HICON MINI XLR3, штекер на кабель диаметром до 3,2 мм, позолоченные контакты под пайку, количество контактов: 3, металлический никелированный корпус, пластиковый черный резьбовой колпачок, резиновый конический хвостовик","шт",3.14,0.18,3.71,286.17]
["HI-XMCM3-B","Разъем HICON MINI XLR3, штекер на кабель диаметром до 5,0 мм, позолоченные контакты под пайку, количество контактов: 3, металлический черный корпус, металлический черный резьбовой колпачок","шт",4.62,0.18,5.47,421.92]
["HI-XMCM3-HD","Разъем HICON MINI XLR3 пыленепроницаемый и водостойкий (IP67), штекер на кабель диаметром до 4,9 мм, позолоченные контакты под пайку, количество контактов: 3, металлический никелированный корпус, накидная резьбовая гильза","шт",8.36,0.18,9.86,760.54]
["HI-XMCM3-HD-B","Разъем HICON MINI XLR3 пыленепроницаемый и водостойкий (IP67), штекер на кабель диаметром до 4,9 мм, позолоченные контакты под пайку, количество контактов: 3, металлический черный корпус, накидная резьбовая гильза","шт",8.6199999999999992,0.18,10.17,784.45]
["HI-XMCM4","Разъем HICON MINI XLR4, штекер на кабель, позолоченные контакты под пайку, количество контактов: 4, металлический никелированный корпус, пластиковый черный резьбовой колпачок, резиновый конический хвостовик","шт",3.14,0.18,3.71,286.17]
["HI-XMCM4-HD","Разъем HICON MINI XLR4 пыленепроницаемый и водостойкий (IP67), штекер на кабель диаметром до 4,9 мм, позолоченные контакты под пайку, количество контактов: 4, металлический никелированный корпус, накидная резьбовая гильза","шт",8.61,0.18,10.16,783.68]
["HI-XMCM4-HD-B","Разъем HICON MINI XLR4 пыленепроницаемый и водостойкий (IP67), штекер на кабель диаметром до 4,9 мм, позолоченные контакты под пайку, количество контактов: 4, металлический черный корпус, накидная резьбовая гильза","шт",8.7100000000000009,0.18,10.27,792.17]
["HI-XMCM5","Разъем HICON MINI XLR5, штекер на кабель диаметром до 3,2 мм, позолоченные контакты под пайку, количество контактов: 5, металлический никелированный корпус, пластиковый черный резьбовой колпачок, резиновый конический хвостовик","шт",3.23,0.18,3.82,294.64999999999998]
["HI-XMCM5-HD","Разъем HICON MINI XLR5 пыленепроницаемый и водостойкий (IP67), штекер на кабель диаметром до 4,9 мм, позолоченные контакты под пайку, количество контактов: 5, металлический никелированный корпус, накидная резьбовая гильза","шт",8.81,0.18,10.39,801.42]
["HI-XMCM5-HD-B","Разъем HICON MINI XLR5 пыленепроницаемый и водостойкий (IP67), штекер на кабель диаметром до 4,9 мм, позолоченные контакты под пайку, количество контактов: 5, металлический черный корпус, накидная резьбовая гильза","шт",8.91,0.18,10.51,810.68]
["HI-XMDM3","Разъем HICON MINI XLR3, штекер на панель, позолоченные контакты под пайку, количество контактов: 3, металлический никелированный корпус, фланец D-типа, внешняя резьба Ø 10,9 мм","шт",5.86,0.18,6.92,533.77]
["HI-XMDM4","Разъем HICON MINI XLR4, штекер на панель, позолоченные контакты под пайку, количество контактов: 4, металлический никелированный корпус, фланец D-типа, внешняя резьба Ø 10,9 мм","шт",5.94,0.18,7,539.94000000000005]
["HI-XMDM5","Разъем HICON MINI XLR5, штекер на панель, позолоченные контакты под пайку, количество контактов: 5, металлический никелированный корпус, фланец D-типа, внешняя резьба Ø 10,9 мм","шт",6.04,0.18,7.12,549.20000000000005]
["HI-XMEF3","Разъем HICON MINI XLR3 с пружинным механизмом фиксации, гнездо на панель, позолоченные контакты под пайку, количество контактов: 3, металлический никелированный корпус, размер отверстий: 17,1 х 11,4 мм (Ø 2,8 мм), фланец: 24,4 х 18,8 мм (В х Ш)","шт",3.61,0.18,4.26,328.59]
["HI-XMEF3-HD","Разъем HICON MINI XLR3 пыленепроницаемый и водостойкий (IP67), гнездо на панель, позолоченные контакты под пайку, количество контактов: 3, металлический никелированный корпус, внешняя резьба Ø 10,9 мм","шт",7.53,0.18,8.9,686.49]
["HI-XMEF3-HD-B","Разъем HICON MINI XLR3 пыленепроницаемый и водостойкий (IP67), гнездо на панель, позолоченные контакты под пайку, количество контактов: 3, металлический черный корпус, внешняя резьба Ø 10,9 мм","шт",7.95,0.18,9.39,724.29]
["HI-XMEF4","Разъем HICON MINI XLR4 с пружинным механизмом фиксации, гнездо на панель, позолоченные контакты под пайку, количество контактов: 4, металлический никелированный корпус, размер отверстий: 17,1 х 11,4 мм (Ø 2,8 мм), фланец: 24,4 х 18,8 мм (В х Ш)","шт",3.7,0.18,4.3600000000000003,336.3]
["HI-XMEF4-HD","Разъем HICON MINI XLR4 пыленепроницаемый и водостойкий (IP67), гнездо на панель, позолоченные контакты под пайку, количество контактов: 4, металлический никелированный корпус, внешняя резьба Ø 10,9 мм","шт",7.87,0.18,9.2899999999999991,716.58]
["HI-XMEF4-HD-B","Разъем HICON MINI XLR4 пыленепроницаемый и водостойкий (IP67), гнездо на панель, позолоченные контакты под пайку, количество контактов: 4, металлический черный корпус, внешняя резьба Ø 10,9 мм","шт",8.0399999999999991,0.18,9.49,732]
["HI-XMEF5","Разъем HICON MINI XLR5 с пружинным механизмом фиксации, гнездо на панель, позолоченные контакты под пайку, количество контактов: 5, металлический никелированный корпус, размер отверстий: 17,1 х 11,4 мм (Ø 2,8 мм), фланец: 24,4 х 18,8 мм (В х Ш)","шт",3.86,0.18,4.55,350.96]
["HI-XMEF5-HD","Разъем HICON MINI XLR5 пыленепроницаемый и водостойкий (IP67), гнездо на панель, позолоченные контакты под пайку, количество контактов: 5, металлический никелированный корпус, внешняя резьба Ø 10,9 мм","шт",8.06,0.18,9.52,734.32]
["HI-XMEF5-HD-B","Разъем HICON MINI XLR5 пыленепроницаемый и водостойкий (IP67), гнездо на панель, позолоченные контакты под пайку, количество контактов: 5, металлический черный корпус, внешняя резьба Ø 10,9 мм","шт",8.2200000000000006,0.18,9.6999999999999993,748.2]
["HI-XMEM3","Разъем HICON MINI XLR3, штекер на панель, позолоченные контакты под пайку, количество контактов: 3, металлический никелированный корпус, резьбовое соединение, внешняя резьба Ø 10,9 мм","шт",3.18,0.18,3.75,289.25]
["HI-XMEM3-HD","Разъем HICON MINI XLR3 пыленепроницаемый и водостойкий (IP67), штекер на панель, позолоченные контакты под пайку, количество контактов: 3, металлический никелированный корпус, внешняя резьба Ø 10,9 мм","шт",7.61,0.18,8.9700000000000006,691.89]
["HI-XMEM3-HD-B","Разъем HICON MINI XLR3 пыленепроницаемый и водостойкий (IP67), штекер на панель, позолоченные контакты под пайку, количество контактов: 3, металлический черный корпус, внешняя резьба Ø 10,9 мм","шт",7.84,0.18,9.26,714.26]
["HI-XMEM4","Разъем HICON MINI XLR4, штекер на панель, позолоченные контакты под пайку, количество контактов: 4, металлический никелированный корпус, внешняя резьба Ø 10,9 мм","шт",3.23,0.18,3.82,294.64999999999998]
["HI-XMEM4-HD","Разъем HICON MINI XLR4 пыленепроницаемый и водостойкий (IP67), штекер на панель, позолоченные контакты под пайку, количество контактов: 4, металлический никелированный корпус, внешняя резьба Ø 10,9 мм","шт",7.83,0.18,9.25,713.49]
["HI-XMEM4-HD-B","Разъем HICON MINI XLR4 пыленепроницаемый и водостойкий (IP67), штекер на панель, позолоченные контакты под пайку, количество контактов: 4, металлический черный корпус, внешняя резьба Ø 10,9 мм","шт",8.0399999999999991,0.18,9.49,732]
["HI-XMEM5","Разъем HICON MINI XLR5, штекер на панель, позолоченные контакты под пайку, количество контактов: 5, металлический никелированный корпус, внешняя резьба Ø 10,9 мм","шт",3.34,0.18,3.94,303.91000000000003]
["HI-XMEM5-HD","Разъем HICON MINI XLR5 пыленепроницаемый и водостойкий (IP67), штекер на панель, позолоченные контакты под пайку, количество контактов: 5, металлический никелированный корпус, внешняя резьба Ø 10,9 мм","шт",8.0399999999999991,0.18,9.48,731.23]
["HI-XMEM5-HD-B","Разъем HICON MINI XLR5 пыленепроницаемый и водостойкий (IP67), штекер на панель, позолоченные контакты под пайку, количество контактов: 5, металлический черный корпус, внешняя резьба Ø 10,9 мм","шт",8.18,0.18,9.66,745.12]
["HI-XSR40","HICON пластиковый цанговый зажим на кабель диаметром 2,0 - 5,00 мм для прямых XLR разъемов HICON, цвет : белый","шт",0.17,0.18,0.19,14.66]
["HT-CRIMPSET","HICON набор инструментов в пластиковом чемодане 680x450x480 мм для монтажа BNC разъемов HICON,  (обжимные клещи с набором насадок, инструмент для снятия изоляции)","набор",146.58000000000001,0.18,172.96,13341.12]
["KMS13","SOMMER CABLE кабельный ввод, PG13, с защитным металлическим рукавом для кабеля и раструбным вводом на противоположном конце, общая длина: 27 см","шт",35.08,0.18,41.4,3193.35]
["KS58-BL","HICON резиновый хвостовик для разъемов BNC58, BNC0.6/2,8 HICON, цвет : синий","шт",0.65,0.18,0.77,59.39]
["KS58-BR","HICON резиновый хвостовик для разъемов BNC58, BNC0.6/2,8 HICON, цвет : коричневый","шт",0.65,0.18,0.77,59.39]
["KS58-GE","HICON резиновый хвостовик для разъемов BNC58, BNC0.6/2,8 HICON, цвет : желтый","шт",0.65,0.18,0.77,59.39]
["KS58-GN","HICON резиновый хвостовик для разъемов BNC58, BNC0.6/2,8 HICON, цвет : зеленый","шт",0.65,0.18,0.77,59.39]
["KS58-OR","HICON резиновый хвостовик для разъемов BNC58, BNC0.6/2,8 HICON, цвет : оранжевый","шт",0.65,0.18,0.77,59.39]
["KS58-RT","HICON резиновый хвостовик для разъемов BNC58, BNC0.6/2,8 HICON, цвет : красный","шт",0.65,0.18,0.77,59.39]
["KS58-SW","HICON резиновый хвостовик для разъемов BNC58, BNC0.6/2,8 HICON, цвет : черный","шт",0.65,0.18,0.77,59.39]
["KS58-VI","HICON резиновый хвостовик для разъемов BNC58, BNC0.6/2,8 HICON, цвет : фиолетовый","шт",0.65,0.18,0.77,59.39]
["KS58-WS","HICON резиновый хвостовик для разъемов BNC58, BNC0.6/2,8 HICON, цвет : белый","шт",0.65,0.18,0.77,{"$f":"ROUND(F1038*$B$6*(1+0.02),2)","v":59.39}]
["KS59-BL","HICON резиновый хвостовик для разъемов BNC59, BNC0.6/3,7, BNC0.8/3.8, BNC0.66/3.2, HI-CM01C HICON, цвет : синий","шт",0.65,0.18,0.77,59.39]
["KS59-BR","HICON резиновый хвостовик для разъемов BNC59, BNC0.6/3,7, BNC0.8/3.8, BNC0.66/3.2, HI-CM01C HICON, цвет : коричневый","шт",0.65,0.18,0.77,59.39]
["KS59-GE","HICON резиновый хвостовик для разъемов BNC59, BNC0.6/3,7, BNC0.8/3.8, BNC0.66/3.2, HI-CM01C HICON, цвет : желтый","шт",0.65,0.18,0.77,59.39]
["KS59-GN","HICON резиновый хвостовик для разъемов BNC59, BNC0.6/3,7, BNC0.8/3.8, BNC0.66/3.2, HI-CM01C HICON, цвет : зеленый","шт",0.65,0.18,0.77,59.39]
["KS59-GR","HICON резиновый хвостовик для разъемов BNC59, BNC0.6/3,7, BNC0.8/3.8, BNC0.66/3.2, HI-CM01C HICON, цвет : серый","шт",0.65,0.18,0.77,59.39]
["KS59-OR","HICON резиновый хвостовик для разъемов BNC59, BNC0.6/3,7, BNC0.8/3.8, BNC0.66/3.2, HI-CM01C HICON, цвет : оранжевый","шт",0.65,0.18,0.77,59.39]
["KS59-RT","HICON резиновый хвостовик для разъемов BNC59, BNC0.6/3,7, BNC0.8/3.8, BNC0.66/3.2, HI-CM01C HICON, цвет : красный","шт",0.65,0.18,0.77,59.39]
["KS59-SW","HICON резиновый хвостовик для разъемов BNC59, BNC0.6/3,7, BNC0.8/3.8, BNC0.66/3.2, HI-CM01C HICON, цвет : черный","шт",0.65,0.18,0.77,59.39]
["KS59-VI","HICON резиновый хвостовик для разъемов BNC59, BNC0.6/3,7, BNC0.8/3.8, BNC0.66/3.2, HI-CM01C HICON, цвет : фиолетовый","шт",0.65,0.18,0.77,59.39]
["KS59-WS","HICON резиновый хвостовик для разъемов BNC59, BNC0.6/3,7, BNC0.8/3.8, BNC0.66/3.2, HI-CM01C HICON, цвет : белый","шт",0.65,0.18,0.77,59.39]
["KST-RJ45C6-P","Адаптер SOMMER CABLE RJ45 гнездо / RJ45 гнездо ONESIZE CAT.6 на панель, позолоченные контакты, количество контактов: 8, металлический корпус, Keystone Clip in","шт",8.31,0.18,9.8000000000000007,755.91]
["KST-RJ45C6A-P","Адаптер SOMMER CABLE RJ45 гнездо / RJ45 гнездо ONESIZE CAT.6a на панель, позолоченные контакты, количество контактов: 8, металлический корпус, Keystone Clip in","шт",10.6,0.18,12.5,964.18]
["KVM16","SOMMER CABLE кабельный ввод из никелированной латуни, PG16, на кабель диаметром 12 - 16 мм, с уплотнительным кольцом","шт",6.77,0.18,8,617.07000000000005]
["KVM21","SOMMER CABLE кабельный ввод из никелированной латуни, PG21 <---> PG29, на кабель диаметром 15 - 20 мм, с уплотнительным кольцом","шт",8.8699999999999992,0.18,10.47,807.59]
["KVM29","SOMMER CABLE кабельный ввод из никелированной латуни, PG29, на кабель диаметром 21 - 28 мм, с уплотнительным кольцом","шт",17.72,0.18,20.92,1613.65]
["MDDP-FM","Адаптер HICON MINI DisplayPort гнездо / DisplayPort штекер, цвет пластиковых корпусов разъемов и кабеля: белый","шт",24.63,0.18,29.07,2242.29]
["MDDP-MF","Адаптер HICON MINI DisplayPort штекер / DisplayPort гнездо, цвет пластиковых корпусов разъемов и кабеля: белый","шт",24.64,0.18,29.07,2242.29]
["MDDV-MF","Адаптер HICON MINI DisplayPort штекер / DVI-D 24+5 Single Link гнездо, цвет пластиковых корпусов разъемов и кабеля: белый","шт",16.47,0.18,19.43,1498.72]
["MDHD-MF","Адаптер HICON MINI DisplayPort штекер / HDMI гнездо, цвет пластиковых корпусов разъемов и кабеля: белый","шт",19.12,0.18,22.56,1740.15]
["MDSV-MF","Адаптер HICON MINI DisplayPort штекер / SUB-D DE15 гнездо, цвет пластиковых корпусов разъемов и кабеля: белый","шт",43.42,0.18,51.23,3951.58]
["MDXX-MF","Адаптер HICON MINI DisplayPort штекер / HDMI гнездо + DVI гнездо + DisplayPort гнездо, цвет пластиковых корпусов разъемов и кабеля: белый","шт",33.92,0.18,40.03,3087.68]
["PGA16","SOMMER CABLE заглушка пластиковая черная, PG16","шт",0.28999999999999998,0.18,0.33,25.45]
["PGA21","SOMMER CABLE заглушка пластиковая черная, PG21","шт",0.4,0.18,0.47,36.25]
["PGA29","SOMMER CABLE заглушка пластиковая черная, PG29","шт",0.81,0.18,0.97,74.819999999999993]
["PGM16","SOMMER CABLE контргайка шестигранная из никелированной латуни, PG16","шт",0.48,0.18,0.56000000000000005,43.2]
["PGM21","SOMMER CABLE контргайка шестигранная из никелированной латуни, PG21","шт",0.53,0.18,0.63,48.59]
["PGM29","SOMMER CABLE контргайка шестигранная из никелированной латуни, PG29","шт",0.84,0.18,1,77.13]
["PGV16-SW","SOMMER CABLE кабельный ввод пластиковый черный водонепроницаемый, PG16, на кабель диаметром 10 - 14 мм","шт",1.39,0.18,1.63,125.73]
["PGV16K-SW","SOMMER CABLE кабельный ввод с хвостовиком пластиковый черный водонепроницаемый, PG16, на кабель диаметром 10 - 14 мм","шт",3.17,0.18,3.73,287.70999999999998]
["PGV21-SW","SOMMER CABLE кабельный ввод пластиковый черный водонепроницаемый, PG21, на кабель диаметром 13 - 18 мм","шт",1.96,0.18,2.31,178.18]
["PGV21K-GR","SOMMER CABLE кабельный ввод с хвостовиком пластиковый серый водонепроницаемый, PG21, на кабель диаметром 13 - 18 мм","шт",6.27,0.18,7.4,570.79]
["PGV21K-MESH","SOMMER CABLE кабельный ввод металлический, PG21, на кабель диаметром 15,9 - 19,0 мм, хвостовик из стальной проволоки","шт",65.510000000000005,0.18,77.290000000000006,5961.7]
["PGV21K-SW","SOMMER CABLE кабельный ввод с хвостовиком пластиковый черный водонепроницаемый, PG21, на кабель диаметром 13 - 18 мм","шт",6.2,0.18,7.32,564.62]
["PGV29-SW","SOMMER CABLE кабельный ввод пластиковый черный водонепроницаемый, PG29, на кабель диаметром 18 - 25 мм","шт",3.71,0.18,4.37,337.08]
["PGV29K-MESH","SOMMER CABLE кабельный ввод металлический, PG29, на кабель диаметром 19,0 - 22,2 мм, хвостовик из стальной проволоки","шт",76.13,0.18,89.84,6929.73]
["PGV36-SW","SOMMER CABLE кабельный ввод пластиковый черный водонепроницаемый, PG36, на кабель диаметром 26 - 32 мм","шт",10.73,0.18,12.67,977.29]
["PGV36K-MESH","SOMMER CABLE кабельный ввод металлический, PG36, на кабель диаметром 22,2 - 25,5 мм, хвостовик из стальной проволоки","шт",90.13,0.18,106.35,8203.2199999999993]
["PGVM16-SW","SOMMER CABLE кабельный ввод пластиковый черный водонепроницаемый, M16 x 1,5 мм, на кабель диаметром 5 - 10 мм","шт",1.28,0.18,1.5,115.7]
["PGVM16K-SW","SOMMER CABLE кабельный ввод с хвостовиком пластиковый черный водонепроницаемый, M16 x 1,5 мм, на кабель диаметром 5 - 10 мм","шт",2.46,0.18,2.9,223.69]
["PGVM25-SW","SOMMER CABLE кабельный ввод пластиковый черный водонепроницаемый, M25 x 1,5 мм, на кабель диаметром 9 - 17 мм","шт",3.55,0.18,4.1900000000000004,323.19]
["PGVM25K-SW","SOMMER CABLE кабельный ввод с хвостовиком пластиковый черный водонепроницаемый, M25 x 1,5 мм, на кабель диаметром 9 - 17 мм","шт",4.9800000000000004,0.18,5.86,452.01]
["PGVM32-SW","SOMMER CABLE кабельный ввод пластиковый черный водонепроницаемый, M32 x 1,5 мм, на кабель диаметром 11 - 21 мм","шт",5.55,0.18,6.53,503.69]
["PGVM32K-SW","SOMMER CABLE кабельный ввод с хвостовиком пластиковый черный водонепроницаемый, M32 x 1,5 мм, на кабель диаметром 11 - 21 мм","шт",7.69,0.18,9.08,700.38]
["PGVM40-SW","SOMMER CABLE кабельный ввод пластиковый черный водонепроницаемый, M40 x 1,5 мм, на кабель диаметром 19 - 28 мм","шт",11.63,0.18,13.72,1058.28]
["PGZ16-15","SOMMER CABLE кабельный ввод из никелированной латуни, PG16, на кабель диаметром 13 - 15 мм, с резиновым хвостовиком","шт",15.71,0.18,18.53,1429.3]
["PGZ21-17","SOMMER CABLE кабельный ввод из никелированной латуни, PG21 <---> PG29, на кабель диаметром 15 - 17 мм, с резиновым хвостовиком","шт",24.08,0.18,28.41,2191.38]
["PGZ21-19","SOMMER CABLE кабельный ввод из никелированной латуни, PG21 <---> PG29, на кабель диаметром 17 - 19 мм, с резиновым хвостовиком","шт",21.2,0.18,25.01,1929.12]
["PGZ29-25","SOMMER CABLE кабельный ввод из никелированной латуни, PG29, на кабель диаметром 20 - 25 мм, с резиновым хвостовиком","шт",42.49,0.18,50.13,3866.73]
["POF-709","Адаптер HICON TOSLINK гнездо / TOSLINK гнездо (удлинитель), пластиковый черный корпус","шт",2.2599999999999998,0.18,2.66,205.18]
["POF-711","Адаптер HICON TOSLINK гнездо / MINI TOSLINK штекер, пластиковый черный корпус","шт",3.01,0.18,3.56,274.60000000000002]
["POF-723","Адаптер HICON TOSLINK штекер / MINI TOSLINK гнездо, пластиковый черный корпус","шт",2.4300000000000002,0.18,2.86,220.6]
["POF-732","Адаптер HICON TOSLINK гнездо / TOSLINK штекер угловой 90° с поворачивающимся штырем на 360°, пластиковый черный корпус","шт",4.25,0.18,5.01,386.44]
["POF-740","Адаптер HICON TOSLINK гнездо / TOSLINK гнездо на панель, пластиковый черный корпус, фланец D-типа","шт",10.39,0.18,12.26,945.66]
["POF-810","Адаптер HICON TOSLINK гнездо / 2 х TOSLINK гнездо (разветвитель), пластиковый черный корпус","шт",8.73,0.18,10.3,794.48]
["POF-TOS","Разъем HICON TOSLINK, штекер на кабель диаметром до 6,0 мм, металлический черный корпус, рекомендуемый кабель: SC-OCTOPUS / арт. номер: 590-0092","шт",3.65,0.18,4.3099999999999996,332.45]
["RJ45-COUP","Адаптер SOMMER CABLE RJ45 гнездо / RJ45 гнездо диаметром 5,5 - 9,0 мм, макс. AWG26-22, металлический корпус, резиновые черные защитные колпачки с двух сторон","шт",38,0.18,44.84,3458.69]
["RJ45C6XL","Разъем SOMMER CABLE RJ45 ONESIZE  CAT.6a/10 Гбит / IP20 для быстрого самостоятельного монтажа без пайки и снятия изоляции, штекер на кабель диаметром 5,5 - 8,5 мм, макс. AWG22, позолоченные врезные контакты (система IDC), количество контактов: 8, металлический металлический корпус, рекомендуемый защитный металлический кожух в формате XLR: HI-C6XL-HD HICON","шт",15.36,0.18,18.13,1398.44]
["RJ45C6XL-A","Разъем SOMMER CABLE RJ45 ONESIZE угловой 90° CAT.6a/10 Гбит / IP20 для быстрого самостоятельного монтажа без пайки и снятия изоляции, штекер на кабель диаметром 5,5 - 10,0 мм, макс. AWG22, позолоченные врезные контакты (система IDC), количество контактов: 8, металлический корпус","шт",21.19,0.18,25,1928.35]
["RJ45CM6-SW","Разъем SOMMER CABLE RJ45 ONESIZE  CAT.6 для быстрого самостоятельного монтажа без пайки и снятия изоляции, штекер на кабель диаметром 5,5 - 8,0 мм, макс. AWG26-23, позолоченные врезные контакты (система IDC) под зажим, количество контактов: 8, пластиковый черный корпус","шт",11.41,0.18,13.47,1039]
["RJ45CMXL-SW","Разъем SOMMER CABLE RJ45 ONESIZE  CAT.6a/10 Гбит / IP20 для быстрого самостоятельного монтажа без пайки и снятия изоляции, штекер на кабель диаметром 4,5 - 8,0 мм, макс. AWG22, позолоченные контакты под зажим, количество контактов: 8, пластиковый черный корпус","шт",25.48,0.18,30.05,2317.88]
["RZG16-13","SOMMER CABLE резьбовой адаптер из никелированной латуни, PG16 <---> PG13","шт",1.73,0.18,2.0499999999999998,158.12]
["RZG21-16","SOMMER CABLE резьбовой адаптер из никелированной латуни, PG21 <---> PG16","шт",2.13,0.18,2.52,194.38]
["RZG21-29","SOMMER CABLE резьбовой адаптер из никелированной латуни, PG21 <---> PG29","шт",6.72,0.18,7.93,611.66999999999996]
["RZG29-16","SOMMER CABLE резьбовой адаптер из никелированной латуни, PG29 <---> PG16","шт",5.97,0.18,7.05,{"$f":"ROUND(F1102*$B$6*(1+0.02),2)","v":543.79999999999995}]
["RZG29-21","SOMMER CABLE резьбовой адаптер из никелированной латуни, PG29 <---> PG21","шт",4.7300000000000004,0.18,5.59,431.18]
["RZG29-M32","SOMMER CABLE резьбовой адаптер из никелированной латуни, PG29 <---> M32","шт",6.59,0.18,7.77,599.33000000000004]
["RZGM40-M32","SOMMER CABLE резьбовой адаптер из никелированной латуни, M40 <---> M32","шт",8.2899999999999991,0.18,9.7899999999999991,755.14]
["RZGM40-M50","SOMMER CABLE резьбовой адаптер из никелированной латуни, M40 <---> M50","шт",16.27,0.18,19.190000000000001,1480.2]
["SUBD0915GM","SOMMER CABLE корпус разъема металлический матово хромированный для 9/15-контактного SUB-D разъема, с винтами для фиксации, на кабель диаметром до 11,5 мм","шт",5.29,0.18,6.25,482.09]
["SUBD0915GMA","SOMMER CABLE корпус разъема металлический угловой 35° для 9/15-контактного SUB-D разъема, на кабель диаметром до 12,5 мм","шт",5.78,0.18,6.83,526.83000000000004]
["SUBD09CFL","Разъем SOMMER CABLE SUB-D, гнездовая контактная колодка на кабель / панель, никелированные контакты под пайку, количество контактов: 9, металлический корпус","шт",0.49,0.18,0.57999999999999996,44.74]
["SUBD09CML","Разъем SOMMER CABLE SUB-D, штекерная контактная колодка на кабель / панель, никелированные контакты под пайку, количество контактов: 9, металлический корпус","шт",0.55000000000000004,0.18,0.65,50.14]
["SUBD15CFL","Разъем SOMMER CABLE SUB-D, гнездовая контактная колодка на кабель / панель, никелированные контакты под пайку, количество контактов: 15, металлический корпус","шт",1.29,0.18,1.53,118.02]
["SUBD15CML","Разъем SOMMER CABLE SUB-D, штекерная контактная колодка на кабель / панель, никелированные контакты под пайку, количество контактов: 15, металлический корпус","шт",1.3,0.18,1.54,118.79]
["SUBD15HDCFL","Разъем SOMMER CABLE SUB-D, гнездовая контактная колодка на кабель / панель, никелированные контакты под пайку, количество контактов: 15 (VGA), металлический корпус","шт",1.1499999999999999,0.18,1.35,104.13]
["SUBD15HDCML","Разъем SOMMER CABLE SUB-D, штекерная контактная колодка на кабель / панель, никелированные контакты под пайку, количество контактов: 15 (VGA), металлический корпус","шт",1.1399999999999999,0.18,1.35,104.13]
["SUBD15HM","SOMMER CABLE корпус разъема металлический для 15-контактного SUB-D разъема, с винтами для фиксации, на кабель диаметром до 13,0 мм","шт",16.05,0.18,18.940000000000001,1460.92]
["SUBD25CFL","Разъем SOMMER CABLE SUB-D, гнездовая контактная колодка на кабель / панель, никелированные контакты под пайку, количество контактов: 25, металлический корпус","шт",2.54,0.18,3,231.4]
["SUBD25CML","Разъем SOMMER CABLE SUB-D, штекерная контактная колодка на кабель / панель под пайку, количество контактов: 25, металлический корпус","шт",2.5299999999999998,0.18,2.98,229.86]
["SUBD25GK","SOMMER CABLE корпус разъема пластиковый черный для 25-контактного SUB-D разъема, с винтами для фиксации, на кабель диаметром до 10,5 мм","шт",3.19,0.18,3.76,290.02]
["SUBD25GM","SOMMER CABLE корпус разъема металлический для 25-контактного SUB-D разъема, с винтами для фиксации, на кабель диаметром до 9,5 мм","шт",5.2,0.18,6.14,473.6]
["SUBD25GMA","SOMMER CABLE корпус разъема металлический угловой 35° для 25-контактного SUB-D разъема, с винтами для фиксации, на кабель диаметром до 12,5 мм","шт",7.63,0.18,9,694.21]
["SUBD25HM","SOMMER CABLE корпус разъема металлический для 25-контактного SUB-D разъема, с винтами для фиксации, на кабель диаметром до 13,0 мм","шт",16.14,0.18,19.05,1469.41]